{"text_format":"1","workbook":"xlsx","n_sheets":9,"sheets":["Info","Calcul - Berekening","Choix vase - Keuze vat","Richtlijnen","Directives","Langage","DataBase","Coef_expansion","Images"],"not_rendered":{"charts":0,"images":45,"macros":1,"external_links":0,"defined_names":58,"comments":4,"pivot_tables":0},"unopened":[],"bounds":{"document_bytes":16777216,"sheet_cells":100000,"rows_first":2000,"rows_last":500,"rows_between":2000,"halvings":0,"cell_chars":16384,"cell_head_chars":4096},"cells_cut":0,"cells_raw":0,"read":"whole","date_system":"1900"}

{"sheet":"Info","index":0,"n_rows":32,"n_cols":10,"rows_kept":32,"cut":false,"hidden":false,"merged":[[31,9,31,15],[31,1,31,7],[5,1,5,7],[15,1,15,7],[16,1,16,7],[17,1,17,7],[18,1,18,7],[19,1,19,7],[20,1,20,7],[22,1,22,7],[19,9,19,15],[20,9,20,15],[21,9,21,15],[22,9,22,15],[30,9,30,15],[12,9,12,15],[15,9,15,15],[16,9,16,15],[17,9,17,15],[18,9,18,15],[4,9,4,15],[5,9,5,15],[7,9,7,15],[9,9,9,15],[11,9,11,15],[21,1,21,7],[4,1,4,7],[9,1,9,7],[11,1,11,7],[12,1,12,7],[13,1,13,7],[7,1,7,7]]}
[]
[]
[]
[]
[null,"Dimensionering van expansievaten",null,null,null,null,null,null,null,"Dimensionnement des vases d'expansion"]
[null,"voor sanitaire installaties",null,null,null,null,null,null,null,"destinés à des installations sanitaires"]
[]
[null,"Ontwikkeld in het kader van het Belgische project \"KMO - Normenantenne\"",null,null,null,null,null,null,null,"Développé dans le cadre du projet belge \"PME - Antenne-normes\""]
[]
[null,"Bezoek onze website : http://www.wtcb.be",null,null,null,null,null,null,null,"Visitez notre site web : http://www.cstc.be"]
[]
[null,"Het WTCB kan niet verantwoordelijk gesteld worden voor de ingevoerde  ",null,null,null,null,null,null,null,"Le CSTC ne peut être tenu responsable des données introduites, de la"]
[null,"gegevens, noch voor het verkeerde gebruik van de software",null,null,null,null,null,null,null,"mauvaise utilisation du programme ou des erreurs qui en résulteraient."]
[null,"of de verkeerde resultaten die eruit zouden voortkomen."]
[]
[null,"Deze rekentool bevat een databank met expansievaten die op",null,null,null,null,null,null,null,"Cette feuille de calcul contient une base de données avec des vases"]
[null,"de Belgische markt beschikbaar zijn. Deze databank bevat niet alle",null,null,null,null,null,null,null,"d'expansion disponibles sur le marché belge. Cette base de données"]
[null,"mogelijke merken en types. We kunnen ook niet garanderen dat al de",null,null,null,null,null,null,null,"n'est pas exhaustive. Nous ne pouvons pas non plus garantir que toutes"]
[null,"gegevens perfect up-to-date bijgehouden worden. Fabrikanten die hun",null,null,null,null,null,null,null,"les données soient parfaitement tenues à jour. Les fabricants qui souhaitent"]
[null,"productgegevens in onze databank willen invoeren/aanpassen, kunnen",null,null,null,null,null,null,null,"intégrer/mettre à jour des données propres à leurs produits, peuvent nous"]
[null,"ons via onze website contacteren.",null,null,null,null,null,null,null,"contacter via notre site web."]
[null,"De gegevens die in de technische fiches van de fabrikanten worden",null,null,null,null,null,null,null,"Dans tous les cas, les informations contenues dans les fiches techniques des"]
[null,"opgenomen hebben altijd voorrang op de gevevens van onze databank.",null,null,null,null,null,null,null,"fabricants priment sur celles contenues dans notre base de données."]
[]
[]
[]
[]
[]
[]
[]
[]
[null,"Versie 1.1 (oct. 2021)",null,null,null,null,null,null,null,"Version 1.1 (oct. 2021)"]

{"sheet":"Calcul - Berekening","index":1,"n_rows":67,"n_cols":20,"rows_kept":67,"cut":false,"hidden":false,"merged":[[63,13,63,15],[52,12,52,13],[54,12,54,13],[58,12,58,13],[54,14,54,15],[58,14,58,15],[52,14,52,15],[62,13,62,15],[42,12,42,13],[44,12,44,13],[45,12,45,13],[46,12,46,13],[39,10,39,15],[47,12,47,13],[49,12,49,13],[50,12,50,13],[47,14,47,15],[49,14,49,15],[50,14,50,15],[58,1,58,3],[54,1,54,3],[53,1,53,3],[57,1,57,3],[53,4,53,7],[54,4,54,7],[57,4,57,7],[58,4,58,7],[56,1,56,6],[3,1,3,16],[5,1,5,16],[7,1,7,2],[7,3,7,10],[16,1,16,10],[8,1,8,2],[9,1,9,2],[10,1,10,2],[7,11,7,12],[7,13,7,15],[8,3,8,15],[9,3,9,15],[10,3,10,15],[18,1,18,10],[17,1,17,10],[19,1,19,10],[21,1,21,16],[11,3,11,15],[11,1,11,2],[13,1,13,16],[15,1,15,10],[30,1,30,3],[30,4,30,12],[27,1,27,3],[23,1,23,3],[24,1,24,3],[24,4,24,12],[23,4,23,12],[25,1,25,3],[28,1,28,3],[29,1,29,3],[50,1,50,3],[51,1,51,3],[52,1,52,3],[42,14,42,15],[44,14,44,15],[45,14,45,15],[46,14,46,15],[50,4,50,7],[44,4,44,7],[45,4,45,7],[46,4,46,7],[47,4,47,7],[51,4,51,7],[52,4,52,7],[46,1,46,3],[47,1,47,3],[32,1,32,16],[49,1,49,3],[44,1,44,3],[45,1,45,3],[48,1,48,3],[34,1,34,3],[35,1,35,3],[36,1,36,3],[37,1,37,3],[39,1,39,3],[40,1,40,3],[48,4,48,7],[49,4,49,7],[39,4,39,7],[40,4,40,7],[41,4,41,6]]}
[]
[null,"   Langue / Taal :",null,"Français"]
[]
[null,{"$f":"Langage!A5","v":"Feuille de calcul destinée au dimensionnement du volume d'un vase d'expansion sanitaire"}]
[]
[null,{"$f":"Langage!A6","v":"Références"}]
[]
[null,{"$f":"Langage!A64","v":"Dossier"},null,null,null,null,null,null,null,null,null,{"$f":"Langage!A69","v":"Date  "}]
[null,{"$f":"Langage!A65","v":"Nom"}]
[null,{"$f":"Langage!A66","v":"Adresse"}]
[null,{"$f":"Langage!A67","v":"Commune"}]
[null,{"$f":"Langage!A68","v":"Commentaire"}]
[]
[null,{"$f":"Langage!A7","v":"Données relatives à l'installation"}]
[]
[null,{"$f":"IF(Langage!$A$3=\"Français\",HYPERLINK(Langage!F11,Langage!B11),HYPERLINK(Langage!G11,Langage!C11))","v":"1 Contenance en eau du boiler"},null,null,null,null,null,null,null,null,null,"Vbal",null,null,"ℓ"]
[null,{"$f":"IF(Langage!$A$3=\"Français\",HYPERLINK(Langage!F12,Langage!B12),HYPERLINK(Langage!G12,Langage!C12))","v":"2 Température de consigne pour l'eau chaude sanitaire"},null,null,null,null,null,null,null,null,null,"Tmax",null,null,"°C","\u0082"]
[null,{"$f":"IF(Langage!$A$3=\"Français\",HYPERLINK(Langage!F13,Langage!B13),HYPERLINK(Langage!G13,Langage!C13))","v":"3 Pression de tarage de la soupape de sûreté"},null,null,null,null,null,null,null,null,null,"psv",null,null,"bar",null,null,null,null,{"$f":"IF(N28=\"\",\"\",N18*1.2+N28)","v":""}]
[null,{"$f":"IF(Langage!$A$3=\"Français\",HYPERLINK(Langage!F14,Langage!B14),HYPERLINK(Langage!G14,Langage!C14))","v":"4 Pression de l'eau dans l'installation au niveau du vase d'expansion"},null,null,null,null,null,null,null,null,null,"pi",null,null,"bar","\u0084"]
[null,{"$f":"IF(Langage!$A$3=\"Français\",HYPERLINK(Langage!F15,Langage!B15),HYPERLINK(Langage!G15,Langage!C15))","v":"5 Différence de hauteur (delta h) entre le vase d'expansion et la soupape de sûreté"},null,null,null,null,null,null,null,null,null,"Dh",null,null,"m","\u0085"]
[]
[null,{"$f":"Langage!A8","v":"Calculs"}]
[]
[null,{"$f":"IF(Langage!$A$3=\"Français\",HYPERLINK(Langage!F17,Langage!B17),HYPERLINK(Langage!G17,Langage!C17))","v":"6 Coefficient d'expansion (remplissage à 10°C)"},null,null,"e",null,null,null,null,null,null,null,null,{"$f":"IF(N17=\"\",\"\",VLOOKUP(N17,Coef_expansion!A5:B17,2,FALSE))","v":""},"%"]
[null,{"$f":"IF(Langage!$A$3=\"Français\",HYPERLINK(Langage!F18,Langage!B18),HYPERLINK(Langage!G18,Langage!C18))","v":"7 Volume d'expansion de l'eau"},null,null,"Vex = Vbal x e / 100",null,null,null,null,null,null,null,null,{"$f":"IF(OR(N24=\"\",N16=\"\"),\"\",N24*N16/100)","v":""},"ℓ"]
[null,{"$f":"IF(Langage!$A$3=\"Français\",HYPERLINK(Langage!F19,Langage!B19),HYPERLINK(Langage!G19,Langage!C19))","v":"8 Pression maximale de gonflage du vase"},null,null,"p0,max  =   pi  -",{"$f":"G27","v":0.2},null,null,null,null,null,null,null,{"$f":"IF(N19=\"\",\"\",N19-G27)","v":""},"bar"]
[null,null,null,null,{"$f":"Langage!A20","v":"valeur par défaut :"},null,0.2,null,null,null,null,null,null,null,"bar","\u0088"]
[null,{"$f":"IF(Langage!$A$3=\"Français\",HYPERLINK(Langage!F21,Langage!B21),HYPERLINK(Langage!G21,Langage!C21))","v":"9 Différerence de pression consécutive à 'delta h'"},null,null,"Dp = Dh x 0,098",null,null,null,null,null,null,null,null,{"$f":"IF(N20=\"\",\"\",ROUNDUP(N20*0.098,1))","v":""},"bar"]
[null,{"$f":"IF(Langage!$A$3=\"Français\",HYPERLINK(Langage!F22,Langage!B22),HYPERLINK(Langage!G22,Langage!C22))","v":"10 Pression maximale admissible"},null,null,"pf,max = (psv x",{"$f":"G30","v":0.8},") + Dp",null,null,null,null,null,null,{"$f":"IF(OR(N18=\"\",N20=\"\"),\"\",ROUNDUP(N28+N18*G30,1))","v":""},"bar"]
[null,null,null,null,{"$f":"Langage!A23","v":"valeur par défaut :"},null,0.8,null,null,null,null,null,null,null,"-","\u008a"]
[null,{"$f":"IF(Langage!$A$3=\"Français\",HYPERLINK(Langage!F24,Langage!B24),HYPERLINK(Langage!G24,Langage!C24))","v":"11 Volume minimal du vase"},null,null,"VN,min = MAX (Vex / (1 - (p0,max+1)/(pf,max+1) - (pi-p0,max)/(pi+1)) ; 0,04 x Vbal)",null,null,null,null,null,null,null,null,{"$f":"IF(OR(N16=\"\",N19=\"\",N18=\"\",N20=\"\",N25=\"\",N26=\"\"),\"\",ROUNDUP(MAX(N25/(1-(N26+1)/(N29+1)-(N19-N26)/(N19+1)),0.04*N16),1))","v":""},"ℓ"]
[]
[null,{"$f":"Langage!A9","v":"Choix du vase d'expansion"}]
[]
[null,{"$f":"IF(Langage!$A$3=\"Français\",HYPERLINK(Langage!M86,Langage!B86),HYPERLINK(Langage!N86,Langage!C86))","v":"Vase à circulation forcée"},null,null,null,null,null,null,null,null,{"$f":"IF(N31=\"\",\"\",IF(E41<>0,\"\",Langage!E86))","v":""}]
[null,{"$f":"IF(Langage!$A$3=\"Français\",HYPERLINK(Langage!M91,Langage!B91),HYPERLINK(Langage!N91,Langage!C91))","v":"Position"},null,null,null,null,null,null,null,null,{"$f":"IF(N31=\"\",\"\",IF(E41<>0,\"\",COUNTIF('Choix vase - Keuze vat'!E7:E332,\">0\")))","v":""}]
[null,{"$f":"IF(Langage!$A$3=\"Français\",HYPERLINK(Langage!M96,Langage!B96),HYPERLINK(Langage!N96,Langage!C96))","v":"Membrane/Vessie interchangeable"},null,null,null,null,null,null,null,null,{"$f":"IF(N31=\"\",\"\",IF(K36=0,Langage!E88,\"\"))","v":""}]
[null,{"$f":"IF(Langage!$A$3=\"Français\",HYPERLINK(Langage!M78,Langage!B78),HYPERLINK(Langage!N78,Langage!C78))","v":"Marque"}]
[null,null,null,null,null,null,null,null,null,null,null,null,null,null,null,null,null,null,null,{"$f":"OFFSET(TypeVase,0,0,COUNTA(TypeVase))","v":""}]
[null,{"$f":"IF(OR(E41<>0,K36=0,E40=\"NOT IN DATABASE\"),\"\",IF(Langage!$A$3=\"Français\",HYPERLINK(Langage!M84,Langage!B84),HYPERLINK(Langage!N84,Langage!C84)))","v":"Type"},null,null,{"$f":"IF(N31=\"\",\"\",INDEX(TypeVase,'Choix vase - Keuze vat'!$B$1))","v":""},null,null,null,null,null,{"$f":"IF(OR(N31=\"\",K36=0,E41<>0),\"\",Langage!E91)","v":""}]
[null,{"$f":"IF(OR(E41<>0,K36=0,E40=\"NOT IN DATABASE\"),IF(Langage!$A$3=\"Français\",HYPERLINK(Langage!M84,Langage!B84),HYPERLINK(Langage!N84,Langage!C84)),\"\")","v":""},null,null,null,null,null,null,null,null,{"$f":"IF(E41<>0,\"\",IF(OR(K36=0,E40=\"NOT IN DATABASE\"),Langage!E92,\"\"))","v":""}]
[]
[null,null,null,null,null,null,null,null,{"$f":"Langage!A26","v":"(Données du fabricant)"},null,{"$f":"Langage!A26","v":"(Données du fabricant)"},null,"CONTROLES"]
[]
[null,{"$f":"IF(Langage!$A$3=\"Français\",HYPERLINK(Langage!P28,Langage!B28),HYPERLINK(Langage!Q28,Langage!C28))","v":"12 Volume nominal du vase"},null,null,"VN =",null,null,null,{"$f":"IF(N31=\"\",\"\",IF(E41<>0,0,INDEX(Capacity,'Choix vase - Keuze vat'!$B$1)))","v":""},null,null,"ℓ","VN ≥ VN,min",null,{"$f":"IF(E41=\"\",IF(OR(I45=\"\",I45=0),\"\",IF(I45>=N31,\"OK\",\"NOT OK!\")),IF(K45=\"\",\"\",IF(K45>=N31,\"OK\",\"NOT OK!\")))","v":""},null,null,null,{"$f":"IF(O45=\"\",\"\",IF(O45=\"NOT OK!\",Langage!E28,IF(OR(I45>=2*N31,K45>=2*N31),Langage!I28,\"\")))","v":""}]
[null,{"$f":"IF(Langage!$A$3=\"Français\",HYPERLINK(Langage!P29,Langage!B29),HYPERLINK(Langage!Q29,Langage!C29))","v":"13 Température de service admissible"},null,null,"Tmax,adm =",null,null,null,{"$f":"IF(N31=\"\",\"\",IF(E41<>0,0,INDEX(Tmaxadm,'Choix vase - Keuze vat'!$B$1)))","v":""},null,null,"°C","Tmax,adm ≥ Tmax",null,{"$f":"IF(E41=\"\",IF(OR(I46=\"\",I46=0),\"\",IF(I46>=N17,\"OK\",\"NOT OK!\")),IF(K46=\"\",\"\",IF(K46>=N17,\"OK\",\"NOT OK!\")))","v":""},null,null,null,{"$f":"IF(O46=\"NOT OK!\",Langage!E29,\"\")","v":""}]
[null,{"$f":"IF(Langage!$A$3=\"Français\",HYPERLINK(Langage!P30,Langage!B30),HYPERLINK(Langage!Q30,Langage!C30))","v":"14 Pression de gonflage ajustée en usine"},null,null,"p0,fabr =",null,null,null,{"$f":"IF(OR(N31=\"\",E41<>0),\"\",INDEX(Pregonflage,'Choix vase - Keuze vat'!$B$1))","v":""},null,null,"bar","p0,fabr ≤ p0,max",null,{"$f":"IF(E41=\"\",IF(OR(I47=\"\",I47=0),\"\",IF(I47<=N26,\"OK\",\"NOT OK!\")),IF(OR(K47=\"\"),\"\",IF(K47<=N26,\"OK\",\"NOT OK!\")))","v":""},null,null,null,{"$f":"IF(O47=\"NOT OK!\",Langage!E30,\"\")","v":""}]
[null,{"$f":"IF(Langage!$A$3=\"Français\",HYPERLINK(Langage!P31,Langage!B31),HYPERLINK(Langage!Q31,Langage!C31))","v":"15 Pression de gonflage ajustée sur site"},null,null,"p0 =",null,null,null,null,null,null,"bar","p0 ≤ p0,max",null,{"$f":"IF(E41=\"\",IF(OR(I45=\"\",I45=0,I48=\"\"),\"\",IF(I48<=N26,\"OK\",\"NOT OK!\")),IF(K48=\"\",\"\",IF(K48<=N26,\"OK\",\"NOT OK!\")))","v":""},null,null,null,{"$f":"IF(O48=\"NOT OK!\",Langage!E31,\"\")","v":""}]
[null,{"$f":"IF(Langage!$A$3=\"Français\",HYPERLINK(Langage!P32,Langage!B32),HYPERLINK(Langage!Q32,Langage!C32))","v":"16 Volume de réserve d'eau réel"},null,null,"Vwr = VN x (pi - p0) / (pi + 1) =",null,null,null,{"$f":"IF(OR(I45=\"\",I45=0,I48=\"\",N19=\"\"),\"\",I45*(N19-I48)/(N19+1))","v":""},null,{"$f":"IF(OR(K45=\"\",K48=\"\",N19=\"\"),\"\",K45*(N19-K48)/(N19+1))","v":""},"ℓ"]
[null,{"$f":"IF(Langage!$A$3=\"Français\",HYPERLINK(Langage!P33,Langage!B33),HYPERLINK(Langage!Q33,Langage!C33))","v":"17 Pression finale"},null,null,"pf = ((p0+1) x VN / (VN - Vex - Vwr)) - 1 =",null,null,null,{"$f":"IF(OR(I45=\"\",I45=0,N25=\"\",I49=\"\"),\"\",((I48+1)*I45/(I45-N25-I49))-1)","v":""},null,{"$f":"IF(OR(K45=\"\",N25=\"\",K49=\"\"),\"\",((K48+1)*K45/(K45-N25-K49))-1)","v":""},"bar","pf ≤ pf,max",null,{"$f":"IF(E41=\"\",IF(I50=\"\",\"\",IF(I50<=N29,\"OK\",\"NOT OK!\")),IF(K50=\"\",\"\",IF(K50<=N29,\"OK\",\"NOT OK!\")))","v":""},null,null,null,{"$f":"IF(O50=\"NOT OK!\",Langage!E33,\"\")","v":""}]
[null,{"$f":"IF(Langage!$A$3=\"Français\",HYPERLINK(Langage!P34,Langage!B34),HYPERLINK(Langage!Q34,Langage!C34))","v":"18 Pression nominale de service admissible"},null,null,"pmax =",null,null,null,{"$f":"IF(OR(N31=\"\",E41<>0),\"\",INDEX(pservicemax,'Choix vase - Keuze vat'!$B$1))","v":""},null,null,"bar","pmax ≥ psv*1,2 + Dp",null,{"$f":"IF(E41=\"\",IF(OR(I51=\"\",I51=0),\"\",IF(N18*1.2+N28<=I51,\"OK\",\"NOT OK!\")),IF(K51=\"\",\"\",IF(N18*1.2+N28<=K51,\"OK\",\"NOT OK!\")))","v":""},null,null,null,{"$f":"IF(O51=\"NOT OK!\",Langage!E34,\"\")","v":""}]
[null,{"$f":"IF(Langage!$A$3=\"Français\",HYPERLINK(Langage!P35,Langage!B35),HYPERLINK(Langage!Q35,Langage!C35))","v":"19 Volume utile admissible"},null,null,"Vutile,adm =",null,null,null,{"$f":"IF(OR(N31=\"\",E41<>0),\"\",INDEX(Vutile,'Choix vase - Keuze vat'!$B$1))","v":""},null,null,"ℓ"]
[null,{"$f":"IF(Langage!$A$3=\"Français\",HYPERLINK(Langage!P36,Langage!B36),HYPERLINK(Langage!Q36,Langage!C36))","v":"20 Volume d'eau maximal dans le vase (eau à  °C)"},null,null,"Vwater = Vex + Vwr =",null,null,null,{"$f":"IF(OR(N25=\"\",I49=\"\"),\"\",N25+I49)","v":""},null,{"$f":"IF(K49=\"\",\"\",N25+K49)","v":""},"ℓ","Vwater ≤ Vutile,adm",null,{"$f":"IF(E41=\"\",IF(OR(I52=\"\",I53=\"\"),\"\",IF(I52=\"n.c.\",\"OK?\",IF(I52>=I53,\"OK\",\"NOT OK!\"))),IF(K53=\"\",\"\",IF(K52=\"\",\"OK?\",IF(K52>=K53,\"OK\",\"NOT OK!\"))))","v":""},null,null,null,{"$f":"IF(O53=\"NOT OK!\",Langage!E36,IF(O53=\"OK?\",Langage!I36,\"\"))","v":""}]
[null,{"$f":"IF(Langage!$A$3=\"Français\",HYPERLINK(Langage!P37,Langage!B37),HYPERLINK(Langage!Q37,Langage!C37))","v":"21 Effet utile admissible"},null,null,"hutile,adm = ",null,null,null,{"$f":"IF(OR(N31=\"\",E41<>0),\"\",INDEX(rendementutile,'Choix vase - Keuze vat'!$B$1))","v":""},null,null,"-"]
[null,{"$f":"IF(Langage!$A$3=\"Français\",HYPERLINK(Langage!P38,Langage!B38),HYPERLINK(Langage!Q38,Langage!C38))","v":"22 Rendement d'utilisation réel"},null,null,"hwater = (Vex+Vwr) / VN = ",null,null,null,{"$f":"IF(OR(N25=\"\",I49=\"\",I45=\"\",I45=0),\"\",(N25+I49)/I45)","v":""},null,{"$f":"IF(OR(N25=\"\",K49=\"\",K45=\"\"),\"\",(N25+K49)/K45)","v":""},"-","hwater ≤ hutile,adm",null,{"$f":"IF(E41=\"\",IF(OR(I54=\"\",I55=\"\"),\"\",IF(I54=\"n.c.\",\"OK?\",IF(I54>=I55,\"OK\",\"NOT OK!\"))),IF(K55=\"\",\"\",IF(K54=\"\",\"OK?\",IF(K54>=K55,\"OK\",\"NOT OK!\"))))","v":""},null,null,null,{"$f":"IF(O55=\"NOT OK!\",Langage!E38,IF(O55=\"OK?\",Langage!I38,\"\"))","v":""}]
[]
[null,{"$f":"Langage!A39","v":"   Contrôle supplémentaire pour vases à circulation intégrale du débit d'eau :"}]
[null,{"$f":"IF(Langage!$A$3=\"Français\",HYPERLINK(Langage!P40,Langage!B40),HYPERLINK(Langage!Q40,Langage!C40))","v":"23 Débit d'eau maximal admissible"},null,null,"Qmax,adm =",null,null,null,{"$f":"IF(OR(N31=\"\",E41<>0),\"\",INDEX(Debitmax,'Choix vase - Keuze vat'!$B$1))","v":""},null,null,"m³/h"]
[null,{"$f":"IF(Langage!$A$3=\"Français\",HYPERLINK(Langage!P41,Langage!B41),HYPERLINK(Langage!Q41,Langage!C41))","v":"24 Débit de pointe traversant le vase"},null,null,"Qpeak =",null,null,null,null,null,null,"m³/h","Qpeak ≤ Qmax,adm",null,{"$f":"IF(E41=\"\",IF(OR(I58=\"\",I58=0,I58=\"/\"),\"\",IF(OR(I58=\"n.c.\",I59=\"\",I59=0),\"OK?\",IF(I59<=I58,\"OK\",\"NOT OK!\"))),IF(AND(K58=\"\",K59=\"\"),\"\",IF(_xlfn.XOR(AND(K59<>0,K58=\"\"),AND(K59=\"\",K58<>0)),\"OK?\",IF(K59<=K58,\"OK\",\"NOT OK!\"))))","v":""},null,null,null,{"$f":"IF(O59=\"NOT OK!\",Langage!I41,IF(O59=\"OK?\",Langage!E41,\"\"))","v":""}]
[]
[]
[null,null,null,null,null,null,null,null,null,null,null,null,null,{"$f":"Langage!A56","v":"Plus d'info :"}]
[null,{"$f":"Langage!A46","v":"(2) La température de l'eau chaude dans le boiler devrait idéalement s'élever à 60 °C minimum (pour garantir l'absence de légionelles)."},null,null,null,null,null,null,null,null,null,null,null,{"$f":"IF(Langage!A3=\"Français\",HYPERLINK(Langage!B57,Langage!B58),HYPERLINK(Langage!C57,Langage!C58))","v":"Dossier CSTC n° 2017/02.12"}]
[null,{"$f":"Langage!A47","v":"(4) Pression mesurée lorsque l'eau est froide (10 °C). NOTE : Cette pression devrait être inférieure à un certain seuil (voir FAQ 166)"},null,null,null,null,null,null,null,null,null,null,null,{"$f":"IF(Langage!A3=\"Français\",HYPERLINK(Langage!B59,Langage!B60),HYPERLINK(Langage!C59,Langage!C60))","v":"CSTC-FAQ n° 166"}]
[null,{"$f":"Langage!A48","v":"(5) delta h > 0 si le vase d'expansion est plus bas que la soupape; delta h < 0 dans le cas contraire."}]
[null,{"$f":"Langage!A49","v":"(8) Valeur issue de la norme allemande DIN 4807-5 : 0,2."}]
[null,{"$f":"Langage!A50","v":"(10) Valeur issue de la norme allemande DIN 4807-5 : 0,8."}]

{"sheet":"Choix vase - Keuze vat","index":2,"n_rows":333,"n_cols":25,"rows_kept":333,"cut":false,"hidden":false,"merged":[[2,12,2,13],[3,20,3,21],[0,5,1,6],[0,10,1,20]]}
[1,1,{"$f":"Langage!A119","v":"Sélectionnez votre modèle via ce menu déroulant."},null,1,{"$f":"Langage!A117","v":"RETOUR A LA FEUILLE DE CALCUL "},null,null,null,null,{"$f":"Langage!A113","v":"Si le modèle souhaité ne figure pas dans notre base de données, veuillez sélectionner \"NOT IN DATABASE\"."},null,null,null,null,null,null,null,null,null,null,null,"VN,min","p0,max"]
[null,null,null,null,null,null,null,null,null,null,null,null,null,null,null,null,null,null,null,null,null,null,{"$f":"'Calcul - Berekening'!N31","v":""},{"$f":"'Calcul - Berekening'!N26","v":""}]
[null,null,null,null,null,null,null,null,"[n.c. =",{"$f":"Langage!A120","v":"Donnée non disponible]"},null,null,{"$f":"Langage!A123","v":"(dimensions)"}]
[null,null,{"$f":"Langage!A121","v":"Marque"},"Type","VN","Vutile,adm","ɳ utile,adm","Tmax,adm","p0,fabr","pmax",{"$f":"Langage!A122","v":"circulation forcée?"},"Qmax,adm",{"$f":"Langage!A124","v":"diamètre"},{"$f":"Langage!A125","v":"hauteur"},{"$f":"Langage!A126","v":"raccord"},{"$f":"Langage!A127","v":"brides"},{"$f":"Langage!A128","v":"poids"},{"$f":"Langage!A129","v":"position"},{"$f":"Langage!A130","v":"avec support mural fixe"},{"$f":"Langage!A131","v":"avec jambes"},{"$f":"Langage!A132","v":"membrane/vessie"},null,{"$f":"Langage!A134","v":"couleur"},{"$f":"Langage!A135","v":"référence fabricant"},{"$f":"Langage!A136","v":"type"}]
[null,null,null,null,"ℓ","ℓ","-","°C","bar","bar",null,"m³/h","mm","mm",null,null,"kg","vert./horiz.",null,null,"butyl/EPDM",{"$f":"Langage!A133","v":"interchangeable"}]
[{"$f":"AJ6","v":0},null,1,2,3,4,5,6,7,8,9,10,11,12,13,14,15,16,17,18,19,20,21,23,24]
[{"$f":"IF(ROW()-ROW(dbConsult)<=COUNTIF(dbListRef,RefCherchee),MATCH(RefCherchee,OFFSET(DataBase!$A$6,A6,0,ROWS(dbList)),0)+A6,0)","v":1},null,{"$f":"IF($A7,INDEX(dbList,$A7,C$6),\"\")","v":0}," ",0,0,0,0,0,0,0,0,{"$f":"IF($A7,INDEX(dbList,$A7,M$6),\"\")","v":0},0,0,0,0,0,0,0,0,0,{"$f":"IF($A7,INDEX(dbList,$A7,W$6+1),\"\")","v":0},0,{"$f":"IF($A7,INDEX(dbList,$A7,Y$6),\"_\")","v":"_"}]
[{"$f":"IF(ROW()-ROW(dbConsult)<=COUNTIF(dbListRef,RefCherchee),MATCH(RefCherchee,OFFSET(DataBase!$A$6,A7,0,ROWS(dbList)),0)+A7,0)","v":2},null,0,"NOT IN DATABASE",0,0,0,0,0,0,0,0,0,0,0,0,0,0,0,0,0,0,0,0,"_"]
[{"$f":"IF(ROW()-ROW(dbConsult)<=COUNTIF(dbListRef,RefCherchee),MATCH(RefCherchee,OFFSET(DataBase!$A$6,A8,0,ROWS(dbList)),0)+A8,0)","v":0},null,"","","","","","","","","","","","","","","","","","","","","","","_"]
[{"$f":"IF(ROW()-ROW(dbConsult)<=COUNTIF(dbListRef,RefCherchee),MATCH(RefCherchee,OFFSET(DataBase!$A$6,A9,0,ROWS(dbList)),0)+A9,0)","v":0},null,"","","","","","","","","","","","","","","","","","","","","","","_"]
[{"$f":"IF(ROW()-ROW(dbConsult)<=COUNTIF(dbListRef,RefCherchee),MATCH(RefCherchee,OFFSET(DataBase!$A$6,A10,0,ROWS(dbList)),0)+A10,0)","v":0},null,"","","","","","","","","","","","","","","","","","","","","","","_"]
[{"$f":"IF(ROW()-ROW(dbConsult)<=COUNTIF(dbListRef,RefCherchee),MATCH(RefCherchee,OFFSET(DataBase!$A$6,A11,0,ROWS(dbList)),0)+A11,0)","v":0},null,"","","","","","","","","","","","","","","","","","","","","","","_"]
[{"$f":"IF(ROW()-ROW(dbConsult)<=COUNTIF(dbListRef,RefCherchee),MATCH(RefCherchee,OFFSET(DataBase!$A$6,A12,0,ROWS(dbList)),0)+A12,0)","v":0},null,"","","","","","","","","","","","","","","","","","","","","","","_"]
[{"$f":"IF(ROW()-ROW(dbConsult)<=COUNTIF(dbListRef,RefCherchee),MATCH(RefCherchee,OFFSET(DataBase!$A$6,A13,0,ROWS(dbList)),0)+A13,0)","v":0},null,"","","","","","","","","","","","","","","","","","","","","","","_"]
[{"$f":"IF(ROW()-ROW(dbConsult)<=COUNTIF(dbListRef,RefCherchee),MATCH(RefCherchee,OFFSET(DataBase!$A$6,A14,0,ROWS(dbList)),0)+A14,0)","v":0},null,"","","","","","","","","","","","","","","","","","","","","","","_"]
[{"$f":"IF(ROW()-ROW(dbConsult)<=COUNTIF(dbListRef,RefCherchee),MATCH(RefCherchee,OFFSET(DataBase!$A$6,A15,0,ROWS(dbList)),0)+A15,0)","v":0},null,"","","","","","","","","","","","","","","","","","","","","","","_"]
[{"$f":"IF(ROW()-ROW(dbConsult)<=COUNTIF(dbListRef,RefCherchee),MATCH(RefCherchee,OFFSET(DataBase!$A$6,A16,0,ROWS(dbList)),0)+A16,0)","v":0},null,{"$f":"IF($A17,INDEX(dbList,$A17,C$6),\"\")","v":""},"","","","","","","","","",{"$f":"IF($A17,INDEX(dbList,$A17,M$6),\"\")","v":""},"","","","","","","","","","","","_"]
[{"$f":"IF(ROW()-ROW(dbConsult)<=COUNTIF(dbListRef,RefCherchee),MATCH(RefCherchee,OFFSET(DataBase!$A$6,A17,0,ROWS(dbList)),0)+A17,0)","v":0},null,"","","","","","","","","","","","","","","","","","","","","","","_"]
[{"$f":"IF(ROW()-ROW(dbConsult)<=COUNTIF(dbListRef,RefCherchee),MATCH(RefCherchee,OFFSET(DataBase!$A$6,A18,0,ROWS(dbList)),0)+A18,0)","v":0},null,"","","","","","","","","","","","","","","","","","","","","","","_"]
[{"$f":"IF(ROW()-ROW(dbConsult)<=COUNTIF(dbListRef,RefCherchee),MATCH(RefCherchee,OFFSET(DataBase!$A$6,A19,0,ROWS(dbList)),0)+A19,0)","v":0},null,"","","","","","","","","","","","","","","","","","","","","","","_"]
[{"$f":"IF(ROW()-ROW(dbConsult)<=COUNTIF(dbListRef,RefCherchee),MATCH(RefCherchee,OFFSET(DataBase!$A$6,A20,0,ROWS(dbList)),0)+A20,0)","v":0},null,"","","","","","","","","","","","","","","","","","","","","","","_"]
[{"$f":"IF(ROW()-ROW(dbConsult)<=COUNTIF(dbListRef,RefCherchee),MATCH(RefCherchee,OFFSET(DataBase!$A$6,A21,0,ROWS(dbList)),0)+A21,0)","v":0},null,"","","","","","","","","","","","","","","","","","","","","","","_"]
[{"$f":"IF(ROW()-ROW(dbConsult)<=COUNTIF(dbListRef,RefCherchee),MATCH(RefCherchee,OFFSET(DataBase!$A$6,A22,0,ROWS(dbList)),0)+A22,0)","v":0},null,"","","","","","","","","","","","","","","","","","","","","","","_"]
[{"$f":"IF(ROW()-ROW(dbConsult)<=COUNTIF(dbListRef,RefCherchee),MATCH(RefCherchee,OFFSET(DataBase!$A$6,A23,0,ROWS(dbList)),0)+A23,0)","v":0},null,"","","","","","","","","","","","","","","","","","","","","","","_"]
[{"$f":"IF(ROW()-ROW(dbConsult)<=COUNTIF(dbListRef,RefCherchee),MATCH(RefCherchee,OFFSET(DataBase!$A$6,A24,0,ROWS(dbList)),0)+A24,0)","v":0},null,"","","","","","","","","","","","","","","","","","","","","","","_"]
[{"$f":"IF(ROW()-ROW(dbConsult)<=COUNTIF(dbListRef,RefCherchee),MATCH(RefCherchee,OFFSET(DataBase!$A$6,A25,0,ROWS(dbList)),0)+A25,0)","v":0},null,"","","","","","","","","","","","","","","","","","","","","","","_"]
[{"$f":"IF(ROW()-ROW(dbConsult)<=COUNTIF(dbListRef,RefCherchee),MATCH(RefCherchee,OFFSET(DataBase!$A$6,A26,0,ROWS(dbList)),0)+A26,0)","v":0},null,{"$f":"IF($A27,INDEX(dbList,$A27,C$6),\"\")","v":""},"","","","","","","","","",{"$f":"IF($A27,INDEX(dbList,$A27,M$6),\"\")","v":""},"","","","","","","","","","","","_"]
[{"$f":"IF(ROW()-ROW(dbConsult)<=COUNTIF(dbListRef,RefCherchee),MATCH(RefCherchee,OFFSET(DataBase!$A$6,A27,0,ROWS(dbList)),0)+A27,0)","v":0},null,"","","","","","","","","","","","","","","","","","","","","","","_"]
[{"$f":"IF(ROW()-ROW(dbConsult)<=COUNTIF(dbListRef,RefCherchee),MATCH(RefCherchee,OFFSET(DataBase!$A$6,A28,0,ROWS(dbList)),0)+A28,0)","v":0},null,"","","","","","","","","","","","","","","","","","","","","","","_"]
[{"$f":"IF(ROW()-ROW(dbConsult)<=COUNTIF(dbListRef,RefCherchee),MATCH(RefCherchee,OFFSET(DataBase!$A$6,A29,0,ROWS(dbList)),0)+A29,0)","v":0},null,"","","","","","","","","","","","","","","","","","","","","","","_"]
[{"$f":"IF(ROW()-ROW(dbConsult)<=COUNTIF(dbListRef,RefCherchee),MATCH(RefCherchee,OFFSET(DataBase!$A$6,A30,0,ROWS(dbList)),0)+A30,0)","v":0},null,"","","","","","","","","","","","","","","","","","","","","","","_"]
[{"$f":"IF(ROW()-ROW(dbConsult)<=COUNTIF(dbListRef,RefCherchee),MATCH(RefCherchee,OFFSET(DataBase!$A$6,A31,0,ROWS(dbList)),0)+A31,0)","v":0},null,"","","","","","","","","","","","","","","","","","","","","","","_"]
[{"$f":"IF(ROW()-ROW(dbConsult)<=COUNTIF(dbListRef,RefCherchee),MATCH(RefCherchee,OFFSET(DataBase!$A$6,A32,0,ROWS(dbList)),0)+A32,0)","v":0},null,"","","","","","","","","","","","","","","","","","","","","","","_"]
[{"$f":"IF(ROW()-ROW(dbConsult)<=COUNTIF(dbListRef,RefCherchee),MATCH(RefCherchee,OFFSET(DataBase!$A$6,A33,0,ROWS(dbList)),0)+A33,0)","v":0},null,"","","","","","","","","","","","","","","","","","","","","","","_"]
[{"$f":"IF(ROW()-ROW(dbConsult)<=COUNTIF(dbListRef,RefCherchee),MATCH(RefCherchee,OFFSET(DataBase!$A$6,A34,0,ROWS(dbList)),0)+A34,0)","v":0},null,"","","","","","","","","","","","","","","","","","","","","","","_"]
[{"$f":"IF(ROW()-ROW(dbConsult)<=COUNTIF(dbListRef,RefCherchee),MATCH(RefCherchee,OFFSET(DataBase!$A$6,A35,0,ROWS(dbList)),0)+A35,0)","v":0},null,"","","","","","","","","","","","","","","","","","","","","","","_"]
[{"$f":"IF(ROW()-ROW(dbConsult)<=COUNTIF(dbListRef,RefCherchee),MATCH(RefCherchee,OFFSET(DataBase!$A$6,A36,0,ROWS(dbList)),0)+A36,0)","v":0},null,{"$f":"IF($A37,INDEX(dbList,$A37,C$6),\"\")","v":""},"","","","","","","","","",{"$f":"IF($A37,INDEX(dbList,$A37,M$6),\"\")","v":""},"","","","","","","","","","","","_"]
[{"$f":"IF(ROW()-ROW(dbConsult)<=COUNTIF(dbListRef,RefCherchee),MATCH(RefCherchee,OFFSET(DataBase!$A$6,A37,0,ROWS(dbList)),0)+A37,0)","v":0},null,"","","","","","","","","","","","","","","","","","","","","","","_"]
[{"$f":"IF(ROW()-ROW(dbConsult)<=COUNTIF(dbListRef,RefCherchee),MATCH(RefCherchee,OFFSET(DataBase!$A$6,A38,0,ROWS(dbList)),0)+A38,0)","v":0},null,"","","","","","","","","","","","","","","","","","","","","","","_"]
[{"$f":"IF(ROW()-ROW(dbConsult)<=COUNTIF(dbListRef,RefCherchee),MATCH(RefCherchee,OFFSET(DataBase!$A$6,A39,0,ROWS(dbList)),0)+A39,0)","v":0},null,"","","","","","","","","","","","","","","","","","","","","","","_"]
[{"$f":"IF(ROW()-ROW(dbConsult)<=COUNTIF(dbListRef,RefCherchee),MATCH(RefCherchee,OFFSET(DataBase!$A$6,A40,0,ROWS(dbList)),0)+A40,0)","v":0},null,"","","","","","","","","","","","","","","","","","","","","","","_"]
[{"$f":"IF(ROW()-ROW(dbConsult)<=COUNTIF(dbListRef,RefCherchee),MATCH(RefCherchee,OFFSET(DataBase!$A$6,A41,0,ROWS(dbList)),0)+A41,0)","v":0},null,"","","","","","","","","","","","","","","","","","","","","","","_"]
[{"$f":"IF(ROW()-ROW(dbConsult)<=COUNTIF(dbListRef,RefCherchee),MATCH(RefCherchee,OFFSET(DataBase!$A$6,A42,0,ROWS(dbList)),0)+A42,0)","v":0},null,"","","","","","","","","","","","","","","","","","","","","","","_"]
[{"$f":"IF(ROW()-ROW(dbConsult)<=COUNTIF(dbListRef,RefCherchee),MATCH(RefCherchee,OFFSET(DataBase!$A$6,A43,0,ROWS(dbList)),0)+A43,0)","v":0},null,"","","","","","","","","","","","","","","","","","","","","","","_"]
[{"$f":"IF(ROW()-ROW(dbConsult)<=COUNTIF(dbListRef,RefCherchee),MATCH(RefCherchee,OFFSET(DataBase!$A$6,A44,0,ROWS(dbList)),0)+A44,0)","v":0},null,"","","","","","","","","","","","","","","","","","","","","","","_"]
[{"$f":"IF(ROW()-ROW(dbConsult)<=COUNTIF(dbListRef,RefCherchee),MATCH(RefCherchee,OFFSET(DataBase!$A$6,A45,0,ROWS(dbList)),0)+A45,0)","v":0},null,"","","","","","","","","","","","","","","","","","","","","","","_"]
[{"$f":"IF(ROW()-ROW(dbConsult)<=COUNTIF(dbListRef,RefCherchee),MATCH(RefCherchee,OFFSET(DataBase!$A$6,A46,0,ROWS(dbList)),0)+A46,0)","v":0},null,{"$f":"IF($A47,INDEX(dbList,$A47,C$6),\"\")","v":""},"","","","","","","","","",{"$f":"IF($A47,INDEX(dbList,$A47,M$6),\"\")","v":""},"","","","","","","","","","","","_"]
[{"$f":"IF(ROW()-ROW(dbConsult)<=COUNTIF(dbListRef,RefCherchee),MATCH(RefCherchee,OFFSET(DataBase!$A$6,A47,0,ROWS(dbList)),0)+A47,0)","v":0},null,"","","","","","","","","","","","","","","","","","","","","","","_"]
[{"$f":"IF(ROW()-ROW(dbConsult)<=COUNTIF(dbListRef,RefCherchee),MATCH(RefCherchee,OFFSET(DataBase!$A$6,A48,0,ROWS(dbList)),0)+A48,0)","v":0},null,"","","","","","","","","","","","","","","","","","","","","","","_"]
[{"$f":"IF(ROW()-ROW(dbConsult)<=COUNTIF(dbListRef,RefCherchee),MATCH(RefCherchee,OFFSET(DataBase!$A$6,A49,0,ROWS(dbList)),0)+A49,0)","v":0},null,"","","","","","","","","","","","","","","","","","","","","","","_"]
[{"$f":"IF(ROW()-ROW(dbConsult)<=COUNTIF(dbListRef,RefCherchee),MATCH(RefCherchee,OFFSET(DataBase!$A$6,A50,0,ROWS(dbList)),0)+A50,0)","v":0},null,"","","","","","","","","","","","","","","","","","","","","","","_"]
[{"$f":"IF(ROW()-ROW(dbConsult)<=COUNTIF(dbListRef,RefCherchee),MATCH(RefCherchee,OFFSET(DataBase!$A$6,A51,0,ROWS(dbList)),0)+A51,0)","v":0},null,"","","","","","","","","","","","","","","","","","","","","","","_"]
[{"$f":"IF(ROW()-ROW(dbConsult)<=COUNTIF(dbListRef,RefCherchee),MATCH(RefCherchee,OFFSET(DataBase!$A$6,A52,0,ROWS(dbList)),0)+A52,0)","v":0},null,"","","","","","","","","","","","","","","","","","","","","","","_"]
[{"$f":"IF(ROW()-ROW(dbConsult)<=COUNTIF(dbListRef,RefCherchee),MATCH(RefCherchee,OFFSET(DataBase!$A$6,A53,0,ROWS(dbList)),0)+A53,0)","v":0},null,"","","","","","","","","","","","","","","","","","","","","","","_"]
[{"$f":"IF(ROW()-ROW(dbConsult)<=COUNTIF(dbListRef,RefCherchee),MATCH(RefCherchee,OFFSET(DataBase!$A$6,A54,0,ROWS(dbList)),0)+A54,0)","v":0},null,"","","","","","","","","","","","","","","","","","","","","","","_"]
[{"$f":"IF(ROW()-ROW(dbConsult)<=COUNTIF(dbListRef,RefCherchee),MATCH(RefCherchee,OFFSET(DataBase!$A$6,A55,0,ROWS(dbList)),0)+A55,0)","v":0},null,"","","","","","","","","","","","","","","","","","","","","","","_"]
[{"$f":"IF(ROW()-ROW(dbConsult)<=COUNTIF(dbListRef,RefCherchee),MATCH(RefCherchee,OFFSET(DataBase!$A$6,A56,0,ROWS(dbList)),0)+A56,0)","v":0},null,{"$f":"IF($A57,INDEX(dbList,$A57,C$6),\"\")","v":""},"","","","","","","","","",{"$f":"IF($A57,INDEX(dbList,$A57,M$6),\"\")","v":""},"","","","","","","","","","","","_"]
[{"$f":"IF(ROW()-ROW(dbConsult)<=COUNTIF(dbListRef,RefCherchee),MATCH(RefCherchee,OFFSET(DataBase!$A$6,A57,0,ROWS(dbList)),0)+A57,0)","v":0},null,"","","","","","","","","","","","","","","","","","","","","","","_"]
[{"$f":"IF(ROW()-ROW(dbConsult)<=COUNTIF(dbListRef,RefCherchee),MATCH(RefCherchee,OFFSET(DataBase!$A$6,A58,0,ROWS(dbList)),0)+A58,0)","v":0},null,"","","","","","","","","","","","","","","","","","","","","","","_"]
[{"$f":"IF(ROW()-ROW(dbConsult)<=COUNTIF(dbListRef,RefCherchee),MATCH(RefCherchee,OFFSET(DataBase!$A$6,A59,0,ROWS(dbList)),0)+A59,0)","v":0},null,"","","","","","","","","","","","","","","","","","","","","","","_"]
[{"$f":"IF(ROW()-ROW(dbConsult)<=COUNTIF(dbListRef,RefCherchee),MATCH(RefCherchee,OFFSET(DataBase!$A$6,A60,0,ROWS(dbList)),0)+A60,0)","v":0},null,"","","","","","","","","","","","","","","","","","","","","","","_"]
[{"$f":"IF(ROW()-ROW(dbConsult)<=COUNTIF(dbListRef,RefCherchee),MATCH(RefCherchee,OFFSET(DataBase!$A$6,A61,0,ROWS(dbList)),0)+A61,0)","v":0},null,"","","","","","","","","","","","","","","","","","","","","","","_"]
[{"$f":"IF(ROW()-ROW(dbConsult)<=COUNTIF(dbListRef,RefCherchee),MATCH(RefCherchee,OFFSET(DataBase!$A$6,A62,0,ROWS(dbList)),0)+A62,0)","v":0},null,"","","","","","","","","","","","","","","","","","","","","","","_"]
[{"$f":"IF(ROW()-ROW(dbConsult)<=COUNTIF(dbListRef,RefCherchee),MATCH(RefCherchee,OFFSET(DataBase!$A$6,A63,0,ROWS(dbList)),0)+A63,0)","v":0},null,"","","","","","","","","","","","","","","","","","","","","","","_"]
[{"$f":"IF(ROW()-ROW(dbConsult)<=COUNTIF(dbListRef,RefCherchee),MATCH(RefCherchee,OFFSET(DataBase!$A$6,A64,0,ROWS(dbList)),0)+A64,0)","v":0},null,"","","","","","","","","","","","","","","","","","","","","","","_"]
[{"$f":"IF(ROW()-ROW(dbConsult)<=COUNTIF(dbListRef,RefCherchee),MATCH(RefCherchee,OFFSET(DataBase!$A$6,A65,0,ROWS(dbList)),0)+A65,0)","v":0},null,"","","","","","","","","","","","","","","","","","","","","","","_"]
[{"$f":"IF(ROW()-ROW(dbConsult)<=COUNTIF(dbListRef,RefCherchee),MATCH(RefCherchee,OFFSET(DataBase!$A$6,A66,0,ROWS(dbList)),0)+A66,0)","v":0},null,{"$f":"IF($A67,INDEX(dbList,$A67,C$6),\"\")","v":""},"","","","","","","","","",{"$f":"IF($A67,INDEX(dbList,$A67,M$6),\"\")","v":""},"","","","","","","","","","","","_"]
[{"$f":"IF(ROW()-ROW(dbConsult)<=COUNTIF(dbListRef,RefCherchee),MATCH(RefCherchee,OFFSET(DataBase!$A$6,A67,0,ROWS(dbList)),0)+A67,0)","v":0},null,"","","","","","","","","","","","","","","","","","","","","","","_"]
[{"$f":"IF(ROW()-ROW(dbConsult)<=COUNTIF(dbListRef,RefCherchee),MATCH(RefCherchee,OFFSET(DataBase!$A$6,A68,0,ROWS(dbList)),0)+A68,0)","v":0},null,"","","","","","","","","","","","","","","","","","","","","","","_"]
[{"$f":"IF(ROW()-ROW(dbConsult)<=COUNTIF(dbListRef,RefCherchee),MATCH(RefCherchee,OFFSET(DataBase!$A$6,A69,0,ROWS(dbList)),0)+A69,0)","v":0},null,"","","","","","","","","","","","","","","","","","","","","","","_"]
[{"$f":"IF(ROW()-ROW(dbConsult)<=COUNTIF(dbListRef,RefCherchee),MATCH(RefCherchee,OFFSET(DataBase!$A$6,A70,0,ROWS(dbList)),0)+A70,0)","v":0},null,"","","","","","","","","","","","","","","","","","","","",{"$f":"IF($A71,INDEX(dbList,$A71,W$6+1),\"\")","v":""},"",{"$f":"IF($A71,INDEX(dbList,$A71,Y$6),\"_\")","v":"_"}]
[{"$f":"IF(ROW()-ROW(dbConsult)<=COUNTIF(dbListRef,RefCherchee),MATCH(RefCherchee,OFFSET(DataBase!$A$6,A71,0,ROWS(dbList)),0)+A71,0)","v":0},null,"","","","","","","","","","","","","","","","","","","","","","","_"]
[{"$f":"IF(ROW()-ROW(dbConsult)<=COUNTIF(dbListRef,RefCherchee),MATCH(RefCherchee,OFFSET(DataBase!$A$6,A72,0,ROWS(dbList)),0)+A72,0)","v":0},null,"","","","","","","","","","","","","","","","","","","","","","","_"]
[{"$f":"IF(ROW()-ROW(dbConsult)<=COUNTIF(dbListRef,RefCherchee),MATCH(RefCherchee,OFFSET(DataBase!$A$6,A73,0,ROWS(dbList)),0)+A73,0)","v":0},null,"","","","","","","","","","","","","","","","","","","","","","","_"]
[{"$f":"IF(ROW()-ROW(dbConsult)<=COUNTIF(dbListRef,RefCherchee),MATCH(RefCherchee,OFFSET(DataBase!$A$6,A74,0,ROWS(dbList)),0)+A74,0)","v":0},null,"","","","","","","","","","","","","","","","","","","","","","","_"]
[{"$f":"IF(ROW()-ROW(dbConsult)<=COUNTIF(dbListRef,RefCherchee),MATCH(RefCherchee,OFFSET(DataBase!$A$6,A75,0,ROWS(dbList)),0)+A75,0)","v":0},null,"","","","","","","","","","","","","","","","","","","","","","","_"]
[{"$f":"IF(ROW()-ROW(dbConsult)<=COUNTIF(dbListRef,RefCherchee),MATCH(RefCherchee,OFFSET(DataBase!$A$6,A76,0,ROWS(dbList)),0)+A76,0)","v":0},null,{"$f":"IF($A77,INDEX(dbList,$A77,C$6),\"\")","v":""},"","","","","","","","","",{"$f":"IF($A77,INDEX(dbList,$A77,M$6),\"\")","v":""},"","","","","","","","","","","","_"]
[{"$f":"IF(ROW()-ROW(dbConsult)<=COUNTIF(dbListRef,RefCherchee),MATCH(RefCherchee,OFFSET(DataBase!$A$6,A77,0,ROWS(dbList)),0)+A77,0)","v":0},null,"","","","","","","","","","","","","","","","","","","","","","","_"]
[{"$f":"IF(ROW()-ROW(dbConsult)<=COUNTIF(dbListRef,RefCherchee),MATCH(RefCherchee,OFFSET(DataBase!$A$6,A78,0,ROWS(dbList)),0)+A78,0)","v":0},null,"","","","","","","","","","","","","","","","","","","","","","","_"]
[{"$f":"IF(ROW()-ROW(dbConsult)<=COUNTIF(dbListRef,RefCherchee),MATCH(RefCherchee,OFFSET(DataBase!$A$6,A79,0,ROWS(dbList)),0)+A79,0)","v":0},null,"","","","","","","","","","","","","","","","","","","","","","","_"]
[{"$f":"IF(ROW()-ROW(dbConsult)<=COUNTIF(dbListRef,RefCherchee),MATCH(RefCherchee,OFFSET(DataBase!$A$6,A80,0,ROWS(dbList)),0)+A80,0)","v":0},null,"","","","","","","","","","","","","","","","","","","","","","","_"]
[{"$f":"IF(ROW()-ROW(dbConsult)<=COUNTIF(dbListRef,RefCherchee),MATCH(RefCherchee,OFFSET(DataBase!$A$6,A81,0,ROWS(dbList)),0)+A81,0)","v":0},null,"","","","","","","","","","","","","","","","","","","","","","","_"]
[{"$f":"IF(ROW()-ROW(dbConsult)<=COUNTIF(dbListRef,RefCherchee),MATCH(RefCherchee,OFFSET(DataBase!$A$6,A82,0,ROWS(dbList)),0)+A82,0)","v":0},null,"","","","","","","","","","","","","","","","","","","","","","","_"]
[{"$f":"IF(ROW()-ROW(dbConsult)<=COUNTIF(dbListRef,RefCherchee),MATCH(RefCherchee,OFFSET(DataBase!$A$6,A83,0,ROWS(dbList)),0)+A83,0)","v":0},null,"","","","","","","","","","","","","","","","","","","","","","","_"]
[{"$f":"IF(ROW()-ROW(dbConsult)<=COUNTIF(dbListRef,RefCherchee),MATCH(RefCherchee,OFFSET(DataBase!$A$6,A84,0,ROWS(dbList)),0)+A84,0)","v":0},null,"","","","","","","","","","","","","","","","","","","","","","","_"]
[{"$f":"IF(ROW()-ROW(dbConsult)<=COUNTIF(dbListRef,RefCherchee),MATCH(RefCherchee,OFFSET(DataBase!$A$6,A85,0,ROWS(dbList)),0)+A85,0)","v":0},null,"","","","","","","","","","","","","","","","","","","","","","","_"]
[{"$f":"IF(ROW()-ROW(dbConsult)<=COUNTIF(dbListRef,RefCherchee),MATCH(RefCherchee,OFFSET(DataBase!$A$6,A86,0,ROWS(dbList)),0)+A86,0)","v":0},null,{"$f":"IF($A87,INDEX(dbList,$A87,C$6),\"\")","v":""},"","","","","","","","","",{"$f":"IF($A87,INDEX(dbList,$A87,M$6),\"\")","v":""},"","","","","","","","","","","","_"]
[{"$f":"IF(ROW()-ROW(dbConsult)<=COUNTIF(dbListRef,RefCherchee),MATCH(RefCherchee,OFFSET(DataBase!$A$6,A87,0,ROWS(dbList)),0)+A87,0)","v":0},null,"","","","","","","","","","","","","","","","","","","","","","","_"]
[{"$f":"IF(ROW()-ROW(dbConsult)<=COUNTIF(dbListRef,RefCherchee),MATCH(RefCherchee,OFFSET(DataBase!$A$6,A88,0,ROWS(dbList)),0)+A88,0)","v":0},null,"","","","","","","","","","","","","","","","","","","","","","","_"]
[{"$f":"IF(ROW()-ROW(dbConsult)<=COUNTIF(dbListRef,RefCherchee),MATCH(RefCherchee,OFFSET(DataBase!$A$6,A89,0,ROWS(dbList)),0)+A89,0)","v":0},null,"","","","","","","","","","","","","","","","","","","","","","","_"]
[{"$f":"IF(ROW()-ROW(dbConsult)<=COUNTIF(dbListRef,RefCherchee),MATCH(RefCherchee,OFFSET(DataBase!$A$6,A90,0,ROWS(dbList)),0)+A90,0)","v":0},null,"","","","","","","","","","","","","","","","","","","","","","","_"]
[{"$f":"IF(ROW()-ROW(dbConsult)<=COUNTIF(dbListRef,RefCherchee),MATCH(RefCherchee,OFFSET(DataBase!$A$6,A91,0,ROWS(dbList)),0)+A91,0)","v":0},null,"","","","","","","","","","","","","","","","","","","","","","","_"]
[{"$f":"IF(ROW()-ROW(dbConsult)<=COUNTIF(dbListRef,RefCherchee),MATCH(RefCherchee,OFFSET(DataBase!$A$6,A92,0,ROWS(dbList)),0)+A92,0)","v":0},null,"","","","","","","","","","","","","","","","","","","","","","","_"]
[{"$f":"IF(ROW()-ROW(dbConsult)<=COUNTIF(dbListRef,RefCherchee),MATCH(RefCherchee,OFFSET(DataBase!$A$6,A93,0,ROWS(dbList)),0)+A93,0)","v":0},null,"","","","","","","","","","","","","","","","","","","","","","","_"]
[{"$f":"IF(ROW()-ROW(dbConsult)<=COUNTIF(dbListRef,RefCherchee),MATCH(RefCherchee,OFFSET(DataBase!$A$6,A94,0,ROWS(dbList)),0)+A94,0)","v":0},null,"","","","","","","","","","","","","","","","","","","","","","","_"]
[{"$f":"IF(ROW()-ROW(dbConsult)<=COUNTIF(dbListRef,RefCherchee),MATCH(RefCherchee,OFFSET(DataBase!$A$6,A95,0,ROWS(dbList)),0)+A95,0)","v":0},null,"","","","","","","","","","","","","","","","","","","","","","","_"]
[{"$f":"IF(ROW()-ROW(dbConsult)<=COUNTIF(dbListRef,RefCherchee),MATCH(RefCherchee,OFFSET(DataBase!$A$6,A96,0,ROWS(dbList)),0)+A96,0)","v":0},null,{"$f":"IF($A97,INDEX(dbList,$A97,C$6),\"\")","v":""},"","","","","","","","","",{"$f":"IF($A97,INDEX(dbList,$A97,M$6),\"\")","v":""},"","","","","","","","","","","","_"]
[{"$f":"IF(ROW()-ROW(dbConsult)<=COUNTIF(dbListRef,RefCherchee),MATCH(RefCherchee,OFFSET(DataBase!$A$6,A97,0,ROWS(dbList)),0)+A97,0)","v":0},null,"","","","","","","","","","","","","","","","","","","","","","","_"]
[{"$f":"IF(ROW()-ROW(dbConsult)<=COUNTIF(dbListRef,RefCherchee),MATCH(RefCherchee,OFFSET(DataBase!$A$6,A98,0,ROWS(dbList)),0)+A98,0)","v":0},null,"","","","","","","","","","","","","","","","","","","","","","","_"]
[{"$f":"IF(ROW()-ROW(dbConsult)<=COUNTIF(dbListRef,RefCherchee),MATCH(RefCherchee,OFFSET(DataBase!$A$6,A99,0,ROWS(dbList)),0)+A99,0)","v":0},null,"","","","","","","","","","","","","","","","","","","","","","","_"]
[{"$f":"IF(ROW()-ROW(dbConsult)<=COUNTIF(dbListRef,RefCherchee),MATCH(RefCherchee,OFFSET(DataBase!$A$6,A100,0,ROWS(dbList)),0)+A100,0)","v":0},null,"","","","","","","","","","","","","","","","","","","","","","","_"]
[{"$f":"IF(ROW()-ROW(dbConsult)<=COUNTIF(dbListRef,RefCherchee),MATCH(RefCherchee,OFFSET(DataBase!$A$6,A101,0,ROWS(dbList)),0)+A101,0)","v":0},null,"","","","","","","","","","","","","","","","","","","","","","","_"]
[{"$f":"IF(ROW()-ROW(dbConsult)<=COUNTIF(dbListRef,RefCherchee),MATCH(RefCherchee,OFFSET(DataBase!$A$6,A102,0,ROWS(dbList)),0)+A102,0)","v":0},null,"","","","","","","","","","","","","","","","","","","","","","","_"]
[{"$f":"IF(ROW()-ROW(dbConsult)<=COUNTIF(dbListRef,RefCherchee),MATCH(RefCherchee,OFFSET(DataBase!$A$6,A103,0,ROWS(dbList)),0)+A103,0)","v":0},null,"","","","","","","","","","","","","","","","","","","","","","","_"]
[{"$f":"IF(ROW()-ROW(dbConsult)<=COUNTIF(dbListRef,RefCherchee),MATCH(RefCherchee,OFFSET(DataBase!$A$6,A104,0,ROWS(dbList)),0)+A104,0)","v":0},null,"","","","","","","","","","","","","","","","","","","","","","","_"]
[{"$f":"IF(ROW()-ROW(dbConsult)<=COUNTIF(dbListRef,RefCherchee),MATCH(RefCherchee,OFFSET(DataBase!$A$6,A105,0,ROWS(dbList)),0)+A105,0)","v":0},null,"","","","","","","","","","","","","","","","","","","","","","","_"]
[{"$f":"IF(ROW()-ROW(dbConsult)<=COUNTIF(dbListRef,RefCherchee),MATCH(RefCherchee,OFFSET(DataBase!$A$6,A106,0,ROWS(dbList)),0)+A106,0)","v":0},null,{"$f":"IF($A107,INDEX(dbList,$A107,C$6),\"\")","v":""},"","","","","","","","","",{"$f":"IF($A107,INDEX(dbList,$A107,M$6),\"\")","v":""},"","","","","","","","","","","","_"]
[{"$f":"IF(ROW()-ROW(dbConsult)<=COUNTIF(dbListRef,RefCherchee),MATCH(RefCherchee,OFFSET(DataBase!$A$6,A107,0,ROWS(dbList)),0)+A107,0)","v":0},null,"","","","","","","","","","","","","","","","","","","","","","","_"]
[{"$f":"IF(ROW()-ROW(dbConsult)<=COUNTIF(dbListRef,RefCherchee),MATCH(RefCherchee,OFFSET(DataBase!$A$6,A108,0,ROWS(dbList)),0)+A108,0)","v":0},null,"","","","","","","","","","","","","","","","","","","","","","","_"]
[{"$f":"IF(ROW()-ROW(dbConsult)<=COUNTIF(dbListRef,RefCherchee),MATCH(RefCherchee,OFFSET(DataBase!$A$6,A109,0,ROWS(dbList)),0)+A109,0)","v":0},null,"","","","","","","","","","","","","","","","","","","","","","","_"]
[{"$f":"IF(ROW()-ROW(dbConsult)<=COUNTIF(dbListRef,RefCherchee),MATCH(RefCherchee,OFFSET(DataBase!$A$6,A110,0,ROWS(dbList)),0)+A110,0)","v":0},null,"","","","","","","","","","","","","","","","","","","","","","","_"]
[{"$f":"IF(ROW()-ROW(dbConsult)<=COUNTIF(dbListRef,RefCherchee),MATCH(RefCherchee,OFFSET(DataBase!$A$6,A111,0,ROWS(dbList)),0)+A111,0)","v":0},null,"","","","","","","","","","","","","","","","","","","","","","","_"]
[{"$f":"IF(ROW()-ROW(dbConsult)<=COUNTIF(dbListRef,RefCherchee),MATCH(RefCherchee,OFFSET(DataBase!$A$6,A112,0,ROWS(dbList)),0)+A112,0)","v":0},null,"","","","","","","","","","","","","","","","","","","","","","","_"]
[{"$f":"IF(ROW()-ROW(dbConsult)<=COUNTIF(dbListRef,RefCherchee),MATCH(RefCherchee,OFFSET(DataBase!$A$6,A113,0,ROWS(dbList)),0)+A113,0)","v":0},null,"","","","","","","","","","","","","","","","","","","","","","","_"]
[{"$f":"IF(ROW()-ROW(dbConsult)<=COUNTIF(dbListRef,RefCherchee),MATCH(RefCherchee,OFFSET(DataBase!$A$6,A114,0,ROWS(dbList)),0)+A114,0)","v":0},null,"","","","","","","","","","","","","","","","","","","","","","","_"]
[{"$f":"IF(ROW()-ROW(dbConsult)<=COUNTIF(dbListRef,RefCherchee),MATCH(RefCherchee,OFFSET(DataBase!$A$6,A115,0,ROWS(dbList)),0)+A115,0)","v":0},null,"","","","","","","","","","","","","","","","","","","","","","","_"]
[{"$f":"IF(ROW()-ROW(dbConsult)<=COUNTIF(dbListRef,RefCherchee),MATCH(RefCherchee,OFFSET(DataBase!$A$6,A116,0,ROWS(dbList)),0)+A116,0)","v":0},null,{"$f":"IF($A117,INDEX(dbList,$A117,C$6),\"\")","v":""},"","","","","","","","","",{"$f":"IF($A117,INDEX(dbList,$A117,M$6),\"\")","v":""},"","","","","","","","","","","","_"]
[{"$f":"IF(ROW()-ROW(dbConsult)<=COUNTIF(dbListRef,RefCherchee),MATCH(RefCherchee,OFFSET(DataBase!$A$6,A117,0,ROWS(dbList)),0)+A117,0)","v":0},null,"","","","","","","","","","","","","","","","","","","","","","","_"]
[{"$f":"IF(ROW()-ROW(dbConsult)<=COUNTIF(dbListRef,RefCherchee),MATCH(RefCherchee,OFFSET(DataBase!$A$6,A118,0,ROWS(dbList)),0)+A118,0)","v":0},null,"","","","","","","","","","","","","","","","","","","","","","","_"]
[{"$f":"IF(ROW()-ROW(dbConsult)<=COUNTIF(dbListRef,RefCherchee),MATCH(RefCherchee,OFFSET(DataBase!$A$6,A119,0,ROWS(dbList)),0)+A119,0)","v":0},null,"","","","","","","","","","","","","","","","","","","","","","","_"]
[{"$f":"IF(ROW()-ROW(dbConsult)<=COUNTIF(dbListRef,RefCherchee),MATCH(RefCherchee,OFFSET(DataBase!$A$6,A120,0,ROWS(dbList)),0)+A120,0)","v":0},null,"","","","","","","","","","","","","","","","","","","","","","","_"]
[{"$f":"IF(ROW()-ROW(dbConsult)<=COUNTIF(dbListRef,RefCherchee),MATCH(RefCherchee,OFFSET(DataBase!$A$6,A121,0,ROWS(dbList)),0)+A121,0)","v":0},null,"","","","","","","","","","","","","","","","","","","","","","","_"]
[{"$f":"IF(ROW()-ROW(dbConsult)<=COUNTIF(dbListRef,RefCherchee),MATCH(RefCherchee,OFFSET(DataBase!$A$6,A122,0,ROWS(dbList)),0)+A122,0)","v":0},null,"","","","","","","","","","","","","","","","","","","","","","","_"]
[{"$f":"IF(ROW()-ROW(dbConsult)<=COUNTIF(dbListRef,RefCherchee),MATCH(RefCherchee,OFFSET(DataBase!$A$6,A123,0,ROWS(dbList)),0)+A123,0)","v":0},null,"","","","","","","","","","","","","","","","","","","","","","","_"]
[{"$f":"IF(ROW()-ROW(dbConsult)<=COUNTIF(dbListRef,RefCherchee),MATCH(RefCherchee,OFFSET(DataBase!$A$6,A124,0,ROWS(dbList)),0)+A124,0)","v":0},null,"","","","","","","","","","","","","","","","","","","","","","","_"]
[{"$f":"IF(ROW()-ROW(dbConsult)<=COUNTIF(dbListRef,RefCherchee),MATCH(RefCherchee,OFFSET(DataBase!$A$6,A125,0,ROWS(dbList)),0)+A125,0)","v":0},null,"","","","","","","","","","","","","","","","","","","","","","","_"]
[{"$f":"IF(ROW()-ROW(dbConsult)<=COUNTIF(dbListRef,RefCherchee),MATCH(RefCherchee,OFFSET(DataBase!$A$6,A126,0,ROWS(dbList)),0)+A126,0)","v":0},null,{"$f":"IF($A127,INDEX(dbList,$A127,C$6),\"\")","v":""},"","","","","","","","","",{"$f":"IF($A127,INDEX(dbList,$A127,M$6),\"\")","v":""},"","","","","","","","","","","","_"]
[{"$f":"IF(ROW()-ROW(dbConsult)<=COUNTIF(dbListRef,RefCherchee),MATCH(RefCherchee,OFFSET(DataBase!$A$6,A127,0,ROWS(dbList)),0)+A127,0)","v":0},null,"","","","","","","","","","","","","","","","","","","","","","","_"]
[{"$f":"IF(ROW()-ROW(dbConsult)<=COUNTIF(dbListRef,RefCherchee),MATCH(RefCherchee,OFFSET(DataBase!$A$6,A128,0,ROWS(dbList)),0)+A128,0)","v":0},null,"","","","","","","","","","","","","","","","","","","","","","","_"]
[{"$f":"IF(ROW()-ROW(dbConsult)<=COUNTIF(dbListRef,RefCherchee),MATCH(RefCherchee,OFFSET(DataBase!$A$6,A129,0,ROWS(dbList)),0)+A129,0)","v":0},null,"","","","","","","","","","","","","","","","","","","","","","","_"]
[{"$f":"IF(ROW()-ROW(dbConsult)<=COUNTIF(dbListRef,RefCherchee),MATCH(RefCherchee,OFFSET(DataBase!$A$6,A130,0,ROWS(dbList)),0)+A130,0)","v":0},null,"","","","","","","","","","","","","","","","","","","","","","","_"]
[{"$f":"IF(ROW()-ROW(dbConsult)<=COUNTIF(dbListRef,RefCherchee),MATCH(RefCherchee,OFFSET(DataBase!$A$6,A131,0,ROWS(dbList)),0)+A131,0)","v":0},null,"","","","","","","","","","","","","","","","","","","","","","","_"]
[{"$f":"IF(ROW()-ROW(dbConsult)<=COUNTIF(dbListRef,RefCherchee),MATCH(RefCherchee,OFFSET(DataBase!$A$6,A132,0,ROWS(dbList)),0)+A132,0)","v":0},null,"","","","","","","","","","","","","","","","","","","","","","","_"]
[{"$f":"IF(ROW()-ROW(dbConsult)<=COUNTIF(dbListRef,RefCherchee),MATCH(RefCherchee,OFFSET(DataBase!$A$6,A133,0,ROWS(dbList)),0)+A133,0)","v":0},null,"","","","","","","","","","","","","","","","","","","","","","","_"]
[{"$f":"IF(ROW()-ROW(dbConsult)<=COUNTIF(dbListRef,RefCherchee),MATCH(RefCherchee,OFFSET(DataBase!$A$6,A134,0,ROWS(dbList)),0)+A134,0)","v":0},null,"","","","","","","","","","","","","","","","","","","","",{"$f":"IF($A135,INDEX(dbList,$A135,W$6+1),\"\")","v":""},"",{"$f":"IF($A135,INDEX(dbList,$A135,Y$6),\"_\")","v":"_"}]
[{"$f":"IF(ROW()-ROW(dbConsult)<=COUNTIF(dbListRef,RefCherchee),MATCH(RefCherchee,OFFSET(DataBase!$A$6,A135,0,ROWS(dbList)),0)+A135,0)","v":0},null,"","","","","","","","","","","","","","","","","","","","","","","_"]
[{"$f":"IF(ROW()-ROW(dbConsult)<=COUNTIF(dbListRef,RefCherchee),MATCH(RefCherchee,OFFSET(DataBase!$A$6,A136,0,ROWS(dbList)),0)+A136,0)","v":0},null,{"$f":"IF($A137,INDEX(dbList,$A137,C$6),\"\")","v":""},"","","","","","","","","",{"$f":"IF($A137,INDEX(dbList,$A137,M$6),\"\")","v":""},"","","","","","","","","","","","_"]
[{"$f":"IF(ROW()-ROW(dbConsult)<=COUNTIF(dbListRef,RefCherchee),MATCH(RefCherchee,OFFSET(DataBase!$A$6,A137,0,ROWS(dbList)),0)+A137,0)","v":0},null,"","","","","","","","","","","","","","","","","","","","","","","_"]
[{"$f":"IF(ROW()-ROW(dbConsult)<=COUNTIF(dbListRef,RefCherchee),MATCH(RefCherchee,OFFSET(DataBase!$A$6,A138,0,ROWS(dbList)),0)+A138,0)","v":0},null,"","","","","","","","","","","","","","","","","","","","","","","_"]
[{"$f":"IF(ROW()-ROW(dbConsult)<=COUNTIF(dbListRef,RefCherchee),MATCH(RefCherchee,OFFSET(DataBase!$A$6,A139,0,ROWS(dbList)),0)+A139,0)","v":0},null,"","","","","","","","","","","","","","","","","","","","","","","_"]
[{"$f":"IF(ROW()-ROW(dbConsult)<=COUNTIF(dbListRef,RefCherchee),MATCH(RefCherchee,OFFSET(DataBase!$A$6,A140,0,ROWS(dbList)),0)+A140,0)","v":0},null,"","","","","","","","","","","","","","","","","","","","","","","_"]
[{"$f":"IF(ROW()-ROW(dbConsult)<=COUNTIF(dbListRef,RefCherchee),MATCH(RefCherchee,OFFSET(DataBase!$A$6,A141,0,ROWS(dbList)),0)+A141,0)","v":0},null,"","","","","","","","","","","","","","","","","","","","","","","_"]
[{"$f":"IF(ROW()-ROW(dbConsult)<=COUNTIF(dbListRef,RefCherchee),MATCH(RefCherchee,OFFSET(DataBase!$A$6,A142,0,ROWS(dbList)),0)+A142,0)","v":0},null,"","","","","","","","","","","","","","","","","","","","","","","_"]
[{"$f":"IF(ROW()-ROW(dbConsult)<=COUNTIF(dbListRef,RefCherchee),MATCH(RefCherchee,OFFSET(DataBase!$A$6,A143,0,ROWS(dbList)),0)+A143,0)","v":0},null,"","","","","","","","","","","","","","","","","","","","","","","_"]
[{"$f":"IF(ROW()-ROW(dbConsult)<=COUNTIF(dbListRef,RefCherchee),MATCH(RefCherchee,OFFSET(DataBase!$A$6,A144,0,ROWS(dbList)),0)+A144,0)","v":0},null,"","","","","","","","","","","","","","","","","","","","","","","_"]
[{"$f":"IF(ROW()-ROW(dbConsult)<=COUNTIF(dbListRef,RefCherchee),MATCH(RefCherchee,OFFSET(DataBase!$A$6,A145,0,ROWS(dbList)),0)+A145,0)","v":0},null,"","","","","","","","","","","","","","","","","","","","","","","_"]
[{"$f":"IF(ROW()-ROW(dbConsult)<=COUNTIF(dbListRef,RefCherchee),MATCH(RefCherchee,OFFSET(DataBase!$A$6,A146,0,ROWS(dbList)),0)+A146,0)","v":0},null,{"$f":"IF($A147,INDEX(dbList,$A147,C$6),\"\")","v":""},"","","","","","","","","",{"$f":"IF($A147,INDEX(dbList,$A147,M$6),\"\")","v":""},"","","","","","","","","","","","_"]
[{"$f":"IF(ROW()-ROW(dbConsult)<=COUNTIF(dbListRef,RefCherchee),MATCH(RefCherchee,OFFSET(DataBase!$A$6,A147,0,ROWS(dbList)),0)+A147,0)","v":0},null,"","","","","","","","","","","","","","","","","","","","","","","_"]
[{"$f":"IF(ROW()-ROW(dbConsult)<=COUNTIF(dbListRef,RefCherchee),MATCH(RefCherchee,OFFSET(DataBase!$A$6,A148,0,ROWS(dbList)),0)+A148,0)","v":0},null,"","","","","","","","","","","","","","","","","","","","","","","_"]
[{"$f":"IF(ROW()-ROW(dbConsult)<=COUNTIF(dbListRef,RefCherchee),MATCH(RefCherchee,OFFSET(DataBase!$A$6,A149,0,ROWS(dbList)),0)+A149,0)","v":0},null,"","","","","","","","","","","","","","","","","","","","","","","_"]
[{"$f":"IF(ROW()-ROW(dbConsult)<=COUNTIF(dbListRef,RefCherchee),MATCH(RefCherchee,OFFSET(DataBase!$A$6,A150,0,ROWS(dbList)),0)+A150,0)","v":0},null,"","","","","","","","","","","","","","","","","","","","","","","_"]
[{"$f":"IF(ROW()-ROW(dbConsult)<=COUNTIF(dbListRef,RefCherchee),MATCH(RefCherchee,OFFSET(DataBase!$A$6,A151,0,ROWS(dbList)),0)+A151,0)","v":0},null,"","","","","","","","","","","","","","","","","","","","","","","_"]
[{"$f":"IF(ROW()-ROW(dbConsult)<=COUNTIF(dbListRef,RefCherchee),MATCH(RefCherchee,OFFSET(DataBase!$A$6,A152,0,ROWS(dbList)),0)+A152,0)","v":0},null,"","","","","","","","","","","","","","","","","","","","","","","_"]
[{"$f":"IF(ROW()-ROW(dbConsult)<=COUNTIF(dbListRef,RefCherchee),MATCH(RefCherchee,OFFSET(DataBase!$A$6,A153,0,ROWS(dbList)),0)+A153,0)","v":0},null,"","","","","","","","","","","","","","","","","","","","","","","_"]
[{"$f":"IF(ROW()-ROW(dbConsult)<=COUNTIF(dbListRef,RefCherchee),MATCH(RefCherchee,OFFSET(DataBase!$A$6,A154,0,ROWS(dbList)),0)+A154,0)","v":0},null,"","","","","","","","","","","","","","","","","","","","","","","_"]
[{"$f":"IF(ROW()-ROW(dbConsult)<=COUNTIF(dbListRef,RefCherchee),MATCH(RefCherchee,OFFSET(DataBase!$A$6,A155,0,ROWS(dbList)),0)+A155,0)","v":0},null,"","","","","","","","","","","","","","","","","","","","","","","_"]
[{"$f":"IF(ROW()-ROW(dbConsult)<=COUNTIF(dbListRef,RefCherchee),MATCH(RefCherchee,OFFSET(DataBase!$A$6,A156,0,ROWS(dbList)),0)+A156,0)","v":0},null,{"$f":"IF($A157,INDEX(dbList,$A157,C$6),\"\")","v":""},"","","","","","","","","",{"$f":"IF($A157,INDEX(dbList,$A157,M$6),\"\")","v":""},"","","","","","","","","","","","_"]
[{"$f":"IF(ROW()-ROW(dbConsult)<=COUNTIF(dbListRef,RefCherchee),MATCH(RefCherchee,OFFSET(DataBase!$A$6,A157,0,ROWS(dbList)),0)+A157,0)","v":0},null,"","","","","","","","","","","","","","","","","","","","","","","_"]
[{"$f":"IF(ROW()-ROW(dbConsult)<=COUNTIF(dbListRef,RefCherchee),MATCH(RefCherchee,OFFSET(DataBase!$A$6,A158,0,ROWS(dbList)),0)+A158,0)","v":0},null,"","","","","","","","","","","","","","","","","","","","","","","_"]
[{"$f":"IF(ROW()-ROW(dbConsult)<=COUNTIF(dbListRef,RefCherchee),MATCH(RefCherchee,OFFSET(DataBase!$A$6,A159,0,ROWS(dbList)),0)+A159,0)","v":0},null,"","","","","","","","","","","","","","","","","","","","","","","_"]
[{"$f":"IF(ROW()-ROW(dbConsult)<=COUNTIF(dbListRef,RefCherchee),MATCH(RefCherchee,OFFSET(DataBase!$A$6,A160,0,ROWS(dbList)),0)+A160,0)","v":0},null,"","","","","","","","","","","","","","","","","","","","","","","_"]
[{"$f":"IF(ROW()-ROW(dbConsult)<=COUNTIF(dbListRef,RefCherchee),MATCH(RefCherchee,OFFSET(DataBase!$A$6,A161,0,ROWS(dbList)),0)+A161,0)","v":0},null,"","","","","","","","","","","","","","","","","","","","","","","_"]
[{"$f":"IF(ROW()-ROW(dbConsult)<=COUNTIF(dbListRef,RefCherchee),MATCH(RefCherchee,OFFSET(DataBase!$A$6,A162,0,ROWS(dbList)),0)+A162,0)","v":0},null,"","","","","","","","","","","","","","","","","","","","","","","_"]
[{"$f":"IF(ROW()-ROW(dbConsult)<=COUNTIF(dbListRef,RefCherchee),MATCH(RefCherchee,OFFSET(DataBase!$A$6,A163,0,ROWS(dbList)),0)+A163,0)","v":0},null,"","","","","","","","","","","","","","","","","","","","","","","_"]
[{"$f":"IF(ROW()-ROW(dbConsult)<=COUNTIF(dbListRef,RefCherchee),MATCH(RefCherchee,OFFSET(DataBase!$A$6,A164,0,ROWS(dbList)),0)+A164,0)","v":0},null,"","","","","","","","","","","","","","","","","","","","","","","_"]
[{"$f":"IF(ROW()-ROW(dbConsult)<=COUNTIF(dbListRef,RefCherchee),MATCH(RefCherchee,OFFSET(DataBase!$A$6,A165,0,ROWS(dbList)),0)+A165,0)","v":0},null,"","","","","","","","","","","","","","","","","","","","","","","_"]
[{"$f":"IF(ROW()-ROW(dbConsult)<=COUNTIF(dbListRef,RefCherchee),MATCH(RefCherchee,OFFSET(DataBase!$A$6,A166,0,ROWS(dbList)),0)+A166,0)","v":0},null,{"$f":"IF($A167,INDEX(dbList,$A167,C$6),\"\")","v":""},"","","","","","","","","",{"$f":"IF($A167,INDEX(dbList,$A167,M$6),\"\")","v":""},"","","","","","","","","","","","_"]
[{"$f":"IF(ROW()-ROW(dbConsult)<=COUNTIF(dbListRef,RefCherchee),MATCH(RefCherchee,OFFSET(DataBase!$A$6,A167,0,ROWS(dbList)),0)+A167,0)","v":0},null,"","","","","","","","","","","","","","","","","","","","","","","_"]
[{"$f":"IF(ROW()-ROW(dbConsult)<=COUNTIF(dbListRef,RefCherchee),MATCH(RefCherchee,OFFSET(DataBase!$A$6,A168,0,ROWS(dbList)),0)+A168,0)","v":0},null,"","","","","","","","","","","","","","","","","","","","","","","_"]
[{"$f":"IF(ROW()-ROW(dbConsult)<=COUNTIF(dbListRef,RefCherchee),MATCH(RefCherchee,OFFSET(DataBase!$A$6,A169,0,ROWS(dbList)),0)+A169,0)","v":0},null,"","","","","","","","","","","","","","","","","","","","","","","_"]
[{"$f":"IF(ROW()-ROW(dbConsult)<=COUNTIF(dbListRef,RefCherchee),MATCH(RefCherchee,OFFSET(DataBase!$A$6,A170,0,ROWS(dbList)),0)+A170,0)","v":0},null,"","","","","","","","","","","","","","","","","","","","","","","_"]
[{"$f":"IF(ROW()-ROW(dbConsult)<=COUNTIF(dbListRef,RefCherchee),MATCH(RefCherchee,OFFSET(DataBase!$A$6,A171,0,ROWS(dbList)),0)+A171,0)","v":0},null,"","","","","","","","","","","","","","","","","","","","","","","_"]
[{"$f":"IF(ROW()-ROW(dbConsult)<=COUNTIF(dbListRef,RefCherchee),MATCH(RefCherchee,OFFSET(DataBase!$A$6,A172,0,ROWS(dbList)),0)+A172,0)","v":0},null,"","","","","","","","","","","","","","","","","","","","","","","_"]
[{"$f":"IF(ROW()-ROW(dbConsult)<=COUNTIF(dbListRef,RefCherchee),MATCH(RefCherchee,OFFSET(DataBase!$A$6,A173,0,ROWS(dbList)),0)+A173,0)","v":0},null,"","","","","","","","","","","","","","","","","","","","","","","_"]
[{"$f":"IF(ROW()-ROW(dbConsult)<=COUNTIF(dbListRef,RefCherchee),MATCH(RefCherchee,OFFSET(DataBase!$A$6,A174,0,ROWS(dbList)),0)+A174,0)","v":0},null,"","","","","","","","","","","","","","","","","","","","","","","_"]
[{"$f":"IF(ROW()-ROW(dbConsult)<=COUNTIF(dbListRef,RefCherchee),MATCH(RefCherchee,OFFSET(DataBase!$A$6,A175,0,ROWS(dbList)),0)+A175,0)","v":0},null,"","","","","","","","","","","","","","","","","","","","","","","_"]
[{"$f":"IF(ROW()-ROW(dbConsult)<=COUNTIF(dbListRef,RefCherchee),MATCH(RefCherchee,OFFSET(DataBase!$A$6,A176,0,ROWS(dbList)),0)+A176,0)","v":0},null,{"$f":"IF($A177,INDEX(dbList,$A177,C$6),\"\")","v":""},"","","","","","","","","",{"$f":"IF($A177,INDEX(dbList,$A177,M$6),\"\")","v":""},"","","","","","","","","","","","_"]
[{"$f":"IF(ROW()-ROW(dbConsult)<=COUNTIF(dbListRef,RefCherchee),MATCH(RefCherchee,OFFSET(DataBase!$A$6,A177,0,ROWS(dbList)),0)+A177,0)","v":0},null,"","","","","","","","","","","","","","","","","","","","","","","_"]
[{"$f":"IF(ROW()-ROW(dbConsult)<=COUNTIF(dbListRef,RefCherchee),MATCH(RefCherchee,OFFSET(DataBase!$A$6,A178,0,ROWS(dbList)),0)+A178,0)","v":0},null,"","","","","","","","","","","","","","","","","","","","","","","_"]
[{"$f":"IF(ROW()-ROW(dbConsult)<=COUNTIF(dbListRef,RefCherchee),MATCH(RefCherchee,OFFSET(DataBase!$A$6,A179,0,ROWS(dbList)),0)+A179,0)","v":0},null,"","","","","","","","","","","","","","","","","","","","","","","_"]
[{"$f":"IF(ROW()-ROW(dbConsult)<=COUNTIF(dbListRef,RefCherchee),MATCH(RefCherchee,OFFSET(DataBase!$A$6,A180,0,ROWS(dbList)),0)+A180,0)","v":0},null,"","","","","","","","","","","","","","","","","","","","","","","_"]
[{"$f":"IF(ROW()-ROW(dbConsult)<=COUNTIF(dbListRef,RefCherchee),MATCH(RefCherchee,OFFSET(DataBase!$A$6,A181,0,ROWS(dbList)),0)+A181,0)","v":0},null,"","","","","","","","","","","","","","","","","","","","","","","_"]
[{"$f":"IF(ROW()-ROW(dbConsult)<=COUNTIF(dbListRef,RefCherchee),MATCH(RefCherchee,OFFSET(DataBase!$A$6,A182,0,ROWS(dbList)),0)+A182,0)","v":0},null,"","","","","","","","","","","","","","","","","","","","","","","_"]
[{"$f":"IF(ROW()-ROW(dbConsult)<=COUNTIF(dbListRef,RefCherchee),MATCH(RefCherchee,OFFSET(DataBase!$A$6,A183,0,ROWS(dbList)),0)+A183,0)","v":0},null,"","","","","","","","","","","","","","","","","","","","","","","_"]
[{"$f":"IF(ROW()-ROW(dbConsult)<=COUNTIF(dbListRef,RefCherchee),MATCH(RefCherchee,OFFSET(DataBase!$A$6,A184,0,ROWS(dbList)),0)+A184,0)","v":0},null,"","","","","","","","","","","","","","","","","","","","","","","_"]
[{"$f":"IF(ROW()-ROW(dbConsult)<=COUNTIF(dbListRef,RefCherchee),MATCH(RefCherchee,OFFSET(DataBase!$A$6,A185,0,ROWS(dbList)),0)+A185,0)","v":0},null,"","","","","","","","","","","","","","","","","","","","","","","_"]
[{"$f":"IF(ROW()-ROW(dbConsult)<=COUNTIF(dbListRef,RefCherchee),MATCH(RefCherchee,OFFSET(DataBase!$A$6,A186,0,ROWS(dbList)),0)+A186,0)","v":0},null,{"$f":"IF($A187,INDEX(dbList,$A187,C$6),\"\")","v":""},"","","","","","","","","",{"$f":"IF($A187,INDEX(dbList,$A187,M$6),\"\")","v":""},"","","","","","","","","","","","_"]
[{"$f":"IF(ROW()-ROW(dbConsult)<=COUNTIF(dbListRef,RefCherchee),MATCH(RefCherchee,OFFSET(DataBase!$A$6,A187,0,ROWS(dbList)),0)+A187,0)","v":0},null,"","","","","","","","","","","","","","","","","","","","","","","_"]
[{"$f":"IF(ROW()-ROW(dbConsult)<=COUNTIF(dbListRef,RefCherchee),MATCH(RefCherchee,OFFSET(DataBase!$A$6,A188,0,ROWS(dbList)),0)+A188,0)","v":0},null,"","","","","","","","","","","","","","","","","","","","","","","_"]
[{"$f":"IF(ROW()-ROW(dbConsult)<=COUNTIF(dbListRef,RefCherchee),MATCH(RefCherchee,OFFSET(DataBase!$A$6,A189,0,ROWS(dbList)),0)+A189,0)","v":0},null,"","","","","","","","","","","","","","","","","","","","","","","_"]
[{"$f":"IF(ROW()-ROW(dbConsult)<=COUNTIF(dbListRef,RefCherchee),MATCH(RefCherchee,OFFSET(DataBase!$A$6,A190,0,ROWS(dbList)),0)+A190,0)","v":0},null,"","","","","","","","","","","","","","","","","","","","","","","_"]
[{"$f":"IF(ROW()-ROW(dbConsult)<=COUNTIF(dbListRef,RefCherchee),MATCH(RefCherchee,OFFSET(DataBase!$A$6,A191,0,ROWS(dbList)),0)+A191,0)","v":0},null,"","","","","","","","","","","","","","","","","","","","","","","_"]
[{"$f":"IF(ROW()-ROW(dbConsult)<=COUNTIF(dbListRef,RefCherchee),MATCH(RefCherchee,OFFSET(DataBase!$A$6,A192,0,ROWS(dbList)),0)+A192,0)","v":0},null,"","","","","","","","","","","","","","","","","","","","","","","_"]
[{"$f":"IF(ROW()-ROW(dbConsult)<=COUNTIF(dbListRef,RefCherchee),MATCH(RefCherchee,OFFSET(DataBase!$A$6,A193,0,ROWS(dbList)),0)+A193,0)","v":0},null,"","","","","","","","","","","","","","","","","","","","","","","_"]
[{"$f":"IF(ROW()-ROW(dbConsult)<=COUNTIF(dbListRef,RefCherchee),MATCH(RefCherchee,OFFSET(DataBase!$A$6,A194,0,ROWS(dbList)),0)+A194,0)","v":0},null,"","","","","","","","","","","","","","","","","","","","","","","_"]
[{"$f":"IF(ROW()-ROW(dbConsult)<=COUNTIF(dbListRef,RefCherchee),MATCH(RefCherchee,OFFSET(DataBase!$A$6,A195,0,ROWS(dbList)),0)+A195,0)","v":0},null,"","","","","","","","","","","","","","","","","","","","","","","_"]
[{"$f":"IF(ROW()-ROW(dbConsult)<=COUNTIF(dbListRef,RefCherchee),MATCH(RefCherchee,OFFSET(DataBase!$A$6,A196,0,ROWS(dbList)),0)+A196,0)","v":0},null,{"$f":"IF($A197,INDEX(dbList,$A197,C$6),\"\")","v":""},"","","","","","","","","",{"$f":"IF($A197,INDEX(dbList,$A197,M$6),\"\")","v":""},"","","","","","","","","","","","_"]
[{"$f":"IF(ROW()-ROW(dbConsult)<=COUNTIF(dbListRef,RefCherchee),MATCH(RefCherchee,OFFSET(DataBase!$A$6,A197,0,ROWS(dbList)),0)+A197,0)","v":0},null,"","","","","","","","","","","","","","","","","","","","","","","_"]
[{"$f":"IF(ROW()-ROW(dbConsult)<=COUNTIF(dbListRef,RefCherchee),MATCH(RefCherchee,OFFSET(DataBase!$A$6,A198,0,ROWS(dbList)),0)+A198,0)","v":0},null,"","","","","","","","","","","","","","","","","","","","",{"$f":"IF($A199,INDEX(dbList,$A199,W$6+1),\"\")","v":""},"",{"$f":"IF($A199,INDEX(dbList,$A199,Y$6),\"_\")","v":"_"}]
[{"$f":"IF(ROW()-ROW(dbConsult)<=COUNTIF(dbListRef,RefCherchee),MATCH(RefCherchee,OFFSET(DataBase!$A$6,A199,0,ROWS(dbList)),0)+A199,0)","v":0},null,"","","","","","","","","","","","","","","","","","","","","","","_"]
[{"$f":"IF(ROW()-ROW(dbConsult)<=COUNTIF(dbListRef,RefCherchee),MATCH(RefCherchee,OFFSET(DataBase!$A$6,A200,0,ROWS(dbList)),0)+A200,0)","v":0},null,"","","","","","","","","","","","","","","","","","","","","","","_"]
[{"$f":"IF(ROW()-ROW(dbConsult)<=COUNTIF(dbListRef,RefCherchee),MATCH(RefCherchee,OFFSET(DataBase!$A$6,A201,0,ROWS(dbList)),0)+A201,0)","v":0},null,"","","","","","","","","","","","","","","","","","","","","","","_"]
[{"$f":"IF(ROW()-ROW(dbConsult)<=COUNTIF(dbListRef,RefCherchee),MATCH(RefCherchee,OFFSET(DataBase!$A$6,A202,0,ROWS(dbList)),0)+A202,0)","v":0},null,"","","","","","","","","","","","","","","","","","","","","","","_"]
[{"$f":"IF(ROW()-ROW(dbConsult)<=COUNTIF(dbListRef,RefCherchee),MATCH(RefCherchee,OFFSET(DataBase!$A$6,A203,0,ROWS(dbList)),0)+A203,0)","v":0},null,"","","","","","","","","","","","","","","","","","","","","","","_"]
[{"$f":"IF(ROW()-ROW(dbConsult)<=COUNTIF(dbListRef,RefCherchee),MATCH(RefCherchee,OFFSET(DataBase!$A$6,A204,0,ROWS(dbList)),0)+A204,0)","v":0},null,"","","","","","","","","","","","","","","","","","","","","","","_"]
[{"$f":"IF(ROW()-ROW(dbConsult)<=COUNTIF(dbListRef,RefCherchee),MATCH(RefCherchee,OFFSET(DataBase!$A$6,A205,0,ROWS(dbList)),0)+A205,0)","v":0},null,"","","","","","","","","","","","","","","","","","","","","","","_"]
[{"$f":"IF(ROW()-ROW(dbConsult)<=COUNTIF(dbListRef,RefCherchee),MATCH(RefCherchee,OFFSET(DataBase!$A$6,A206,0,ROWS(dbList)),0)+A206,0)","v":0},null,{"$f":"IF($A207,INDEX(dbList,$A207,C$6),\"\")","v":""},"","","","","","","","","",{"$f":"IF($A207,INDEX(dbList,$A207,M$6),\"\")","v":""},"","","","","","","","","","","","_"]
[{"$f":"IF(ROW()-ROW(dbConsult)<=COUNTIF(dbListRef,RefCherchee),MATCH(RefCherchee,OFFSET(DataBase!$A$6,A207,0,ROWS(dbList)),0)+A207,0)","v":0},null,"","","","","","","","","","","","","","","","","","","","","","","_"]
[{"$f":"IF(ROW()-ROW(dbConsult)<=COUNTIF(dbListRef,RefCherchee),MATCH(RefCherchee,OFFSET(DataBase!$A$6,A208,0,ROWS(dbList)),0)+A208,0)","v":0},null,"","","","","","","","","","","","","","","","","","","","","","","_"]
[{"$f":"IF(ROW()-ROW(dbConsult)<=COUNTIF(dbListRef,RefCherchee),MATCH(RefCherchee,OFFSET(DataBase!$A$6,A209,0,ROWS(dbList)),0)+A209,0)","v":0},null,"","","","","","","","","","","","","","","","","","","","","","","_"]
[{"$f":"IF(ROW()-ROW(dbConsult)<=COUNTIF(dbListRef,RefCherchee),MATCH(RefCherchee,OFFSET(DataBase!$A$6,A210,0,ROWS(dbList)),0)+A210,0)","v":0},null,"","","","","","","","","","","","","","","","","","","","","","","_"]
[{"$f":"IF(ROW()-ROW(dbConsult)<=COUNTIF(dbListRef,RefCherchee),MATCH(RefCherchee,OFFSET(DataBase!$A$6,A211,0,ROWS(dbList)),0)+A211,0)","v":0},null,"","","","","","","","","","","","","","","","","","","","","","","_"]
[{"$f":"IF(ROW()-ROW(dbConsult)<=COUNTIF(dbListRef,RefCherchee),MATCH(RefCherchee,OFFSET(DataBase!$A$6,A212,0,ROWS(dbList)),0)+A212,0)","v":0},null,"","","","","","","","","","","","","","","","","","","","","","","_"]
[{"$f":"IF(ROW()-ROW(dbConsult)<=COUNTIF(dbListRef,RefCherchee),MATCH(RefCherchee,OFFSET(DataBase!$A$6,A213,0,ROWS(dbList)),0)+A213,0)","v":0},null,"","","","","","","","","","","","","","","","","","","","","","","_"]
[{"$f":"IF(ROW()-ROW(dbConsult)<=COUNTIF(dbListRef,RefCherchee),MATCH(RefCherchee,OFFSET(DataBase!$A$6,A214,0,ROWS(dbList)),0)+A214,0)","v":0},null,"","","","","","","","","","","","","","","","","","","","","","","_"]
[{"$f":"IF(ROW()-ROW(dbConsult)<=COUNTIF(dbListRef,RefCherchee),MATCH(RefCherchee,OFFSET(DataBase!$A$6,A215,0,ROWS(dbList)),0)+A215,0)","v":0},null,"","","","","","","","","","","","","","","","","","","","","","","_"]
[{"$f":"IF(ROW()-ROW(dbConsult)<=COUNTIF(dbListRef,RefCherchee),MATCH(RefCherchee,OFFSET(DataBase!$A$6,A216,0,ROWS(dbList)),0)+A216,0)","v":0},null,{"$f":"IF($A217,INDEX(dbList,$A217,C$6),\"\")","v":""},"","","","","","","","","",{"$f":"IF($A217,INDEX(dbList,$A217,M$6),\"\")","v":""},"","","","","","","","","","","","_"]
[{"$f":"IF(ROW()-ROW(dbConsult)<=COUNTIF(dbListRef,RefCherchee),MATCH(RefCherchee,OFFSET(DataBase!$A$6,A217,0,ROWS(dbList)),0)+A217,0)","v":0},null,"","","","","","","","","","","","","","","","","","","","","","","_"]
[{"$f":"IF(ROW()-ROW(dbConsult)<=COUNTIF(dbListRef,RefCherchee),MATCH(RefCherchee,OFFSET(DataBase!$A$6,A218,0,ROWS(dbList)),0)+A218,0)","v":0},null,"","","","","","","","","","","","","","","","","","","","","","","_"]
[{"$f":"IF(ROW()-ROW(dbConsult)<=COUNTIF(dbListRef,RefCherchee),MATCH(RefCherchee,OFFSET(DataBase!$A$6,A219,0,ROWS(dbList)),0)+A219,0)","v":0},null,"","","","","","","","","","","","","","","","","","","","","","","_"]
[{"$f":"IF(ROW()-ROW(dbConsult)<=COUNTIF(dbListRef,RefCherchee),MATCH(RefCherchee,OFFSET(DataBase!$A$6,A220,0,ROWS(dbList)),0)+A220,0)","v":0},null,"","","","","","","","","","","","","","","","","","","","","","","_"]
[{"$f":"IF(ROW()-ROW(dbConsult)<=COUNTIF(dbListRef,RefCherchee),MATCH(RefCherchee,OFFSET(DataBase!$A$6,A221,0,ROWS(dbList)),0)+A221,0)","v":0},null,"","","","","","","","","","","","","","","","","","","","","","","_"]
[{"$f":"IF(ROW()-ROW(dbConsult)<=COUNTIF(dbListRef,RefCherchee),MATCH(RefCherchee,OFFSET(DataBase!$A$6,A222,0,ROWS(dbList)),0)+A222,0)","v":0},null,"","","","","","","","","","","","","","","","","","","","","","","_"]
[{"$f":"IF(ROW()-ROW(dbConsult)<=COUNTIF(dbListRef,RefCherchee),MATCH(RefCherchee,OFFSET(DataBase!$A$6,A223,0,ROWS(dbList)),0)+A223,0)","v":0},null,"","","","","","","","","","","","","","","","","","","","","","","_"]
[{"$f":"IF(ROW()-ROW(dbConsult)<=COUNTIF(dbListRef,RefCherchee),MATCH(RefCherchee,OFFSET(DataBase!$A$6,A224,0,ROWS(dbList)),0)+A224,0)","v":0},null,"","","","","","","","","","","","","","","","","","","","","","","_"]
[{"$f":"IF(ROW()-ROW(dbConsult)<=COUNTIF(dbListRef,RefCherchee),MATCH(RefCherchee,OFFSET(DataBase!$A$6,A225,0,ROWS(dbList)),0)+A225,0)","v":0},null,"","","","","","","","","","","","","","","","","","","","","","","_"]
[{"$f":"IF(ROW()-ROW(dbConsult)<=COUNTIF(dbListRef,RefCherchee),MATCH(RefCherchee,OFFSET(DataBase!$A$6,A226,0,ROWS(dbList)),0)+A226,0)","v":0},null,{"$f":"IF($A227,INDEX(dbList,$A227,C$6),\"\")","v":""},"","","","","","","","","",{"$f":"IF($A227,INDEX(dbList,$A227,M$6),\"\")","v":""},"","","","","","","","","","","","_"]
[{"$f":"IF(ROW()-ROW(dbConsult)<=COUNTIF(dbListRef,RefCherchee),MATCH(RefCherchee,OFFSET(DataBase!$A$6,A227,0,ROWS(dbList)),0)+A227,0)","v":0},null,"","","","","","","","","","","","","","","","","","","","","","","_"]
[{"$f":"IF(ROW()-ROW(dbConsult)<=COUNTIF(dbListRef,RefCherchee),MATCH(RefCherchee,OFFSET(DataBase!$A$6,A228,0,ROWS(dbList)),0)+A228,0)","v":0},null,"","","","","","","","","","","","","","","","","","","","","","","_"]
[{"$f":"IF(ROW()-ROW(dbConsult)<=COUNTIF(dbListRef,RefCherchee),MATCH(RefCherchee,OFFSET(DataBase!$A$6,A229,0,ROWS(dbList)),0)+A229,0)","v":0},null,"","","","","","","","","","","","","","","","","","","","","","","_"]
[{"$f":"IF(ROW()-ROW(dbConsult)<=COUNTIF(dbListRef,RefCherchee),MATCH(RefCherchee,OFFSET(DataBase!$A$6,A230,0,ROWS(dbList)),0)+A230,0)","v":0},null,"","","","","","","","","","","","","","","","","","","","","","","_"]
[{"$f":"IF(ROW()-ROW(dbConsult)<=COUNTIF(dbListRef,RefCherchee),MATCH(RefCherchee,OFFSET(DataBase!$A$6,A231,0,ROWS(dbList)),0)+A231,0)","v":0},null,"","","","","","","","","","","","","","","","","","","","","","","_"]
[{"$f":"IF(ROW()-ROW(dbConsult)<=COUNTIF(dbListRef,RefCherchee),MATCH(RefCherchee,OFFSET(DataBase!$A$6,A232,0,ROWS(dbList)),0)+A232,0)","v":0},null,"","","","","","","","","","","","","","","","","","","","","","","_"]
[{"$f":"IF(ROW()-ROW(dbConsult)<=COUNTIF(dbListRef,RefCherchee),MATCH(RefCherchee,OFFSET(DataBase!$A$6,A233,0,ROWS(dbList)),0)+A233,0)","v":0},null,"","","","","","","","","","","","","","","","","","","","","","","_"]
[{"$f":"IF(ROW()-ROW(dbConsult)<=COUNTIF(dbListRef,RefCherchee),MATCH(RefCherchee,OFFSET(DataBase!$A$6,A234,0,ROWS(dbList)),0)+A234,0)","v":0},null,"","","","","","","","","","","","","","","","","","","","","","","_"]
[{"$f":"IF(ROW()-ROW(dbConsult)<=COUNTIF(dbListRef,RefCherchee),MATCH(RefCherchee,OFFSET(DataBase!$A$6,A235,0,ROWS(dbList)),0)+A235,0)","v":0},null,"","","","","","","","","","","","","","","","","","","","","","","_"]
[{"$f":"IF(ROW()-ROW(dbConsult)<=COUNTIF(dbListRef,RefCherchee),MATCH(RefCherchee,OFFSET(DataBase!$A$6,A236,0,ROWS(dbList)),0)+A236,0)","v":0},null,{"$f":"IF($A237,INDEX(dbList,$A237,C$6),\"\")","v":""},"","","","","","","","","",{"$f":"IF($A237,INDEX(dbList,$A237,M$6),\"\")","v":""},"","","","","","","","","","","","_"]
[{"$f":"IF(ROW()-ROW(dbConsult)<=COUNTIF(dbListRef,RefCherchee),MATCH(RefCherchee,OFFSET(DataBase!$A$6,A237,0,ROWS(dbList)),0)+A237,0)","v":0},null,"","","","","","","","","","","","","","","","","","","","","","","_"]
[{"$f":"IF(ROW()-ROW(dbConsult)<=COUNTIF(dbListRef,RefCherchee),MATCH(RefCherchee,OFFSET(DataBase!$A$6,A238,0,ROWS(dbList)),0)+A238,0)","v":0},null,"","","","","","","","","","","","","","","","","","","","","","","_"]
[{"$f":"IF(ROW()-ROW(dbConsult)<=COUNTIF(dbListRef,RefCherchee),MATCH(RefCherchee,OFFSET(DataBase!$A$6,A239,0,ROWS(dbList)),0)+A239,0)","v":0},null,"","","","","","","","","","","","","","","","","","","","","","","_"]
[{"$f":"IF(ROW()-ROW(dbConsult)<=COUNTIF(dbListRef,RefCherchee),MATCH(RefCherchee,OFFSET(DataBase!$A$6,A240,0,ROWS(dbList)),0)+A240,0)","v":0},null,"","","","","","","","","","","","","","","","","","","","","","","_"]
[{"$f":"IF(ROW()-ROW(dbConsult)<=COUNTIF(dbListRef,RefCherchee),MATCH(RefCherchee,OFFSET(DataBase!$A$6,A241,0,ROWS(dbList)),0)+A241,0)","v":0},null,"","","","","","","","","","","","","","","","","","","","","","","_"]
[{"$f":"IF(ROW()-ROW(dbConsult)<=COUNTIF(dbListRef,RefCherchee),MATCH(RefCherchee,OFFSET(DataBase!$A$6,A242,0,ROWS(dbList)),0)+A242,0)","v":0},null,"","","","","","","","","","","","","","","","","","","","","","","_"]
[{"$f":"IF(ROW()-ROW(dbConsult)<=COUNTIF(dbListRef,RefCherchee),MATCH(RefCherchee,OFFSET(DataBase!$A$6,A243,0,ROWS(dbList)),0)+A243,0)","v":0},null,"","","","","","","","","","","","","","","","","","","","","","","_"]
[{"$f":"IF(ROW()-ROW(dbConsult)<=COUNTIF(dbListRef,RefCherchee),MATCH(RefCherchee,OFFSET(DataBase!$A$6,A244,0,ROWS(dbList)),0)+A244,0)","v":0},null,"","","","","","","","","","","","","","","","","","","","","","","_"]
[{"$f":"IF(ROW()-ROW(dbConsult)<=COUNTIF(dbListRef,RefCherchee),MATCH(RefCherchee,OFFSET(DataBase!$A$6,A245,0,ROWS(dbList)),0)+A245,0)","v":0},null,"","","","","","","","","","","","","","","","","","","","","","","_"]
[{"$f":"IF(ROW()-ROW(dbConsult)<=COUNTIF(dbListRef,RefCherchee),MATCH(RefCherchee,OFFSET(DataBase!$A$6,A246,0,ROWS(dbList)),0)+A246,0)","v":0},null,{"$f":"IF($A247,INDEX(dbList,$A247,C$6),\"\")","v":""},"","","","","","","","","",{"$f":"IF($A247,INDEX(dbList,$A247,M$6),\"\")","v":""},"","","","","","","","","","","","_"]
[{"$f":"IF(ROW()-ROW(dbConsult)<=COUNTIF(dbListRef,RefCherchee),MATCH(RefCherchee,OFFSET(DataBase!$A$6,A247,0,ROWS(dbList)),0)+A247,0)","v":0},null,"","","","","","","","","","","","","","","","","","","","","","","_"]
[{"$f":"IF(ROW()-ROW(dbConsult)<=COUNTIF(dbListRef,RefCherchee),MATCH(RefCherchee,OFFSET(DataBase!$A$6,A248,0,ROWS(dbList)),0)+A248,0)","v":0},null,"","","","","","","","","","","","","","","","","","","","","","","_"]
[{"$f":"IF(ROW()-ROW(dbConsult)<=COUNTIF(dbListRef,RefCherchee),MATCH(RefCherchee,OFFSET(DataBase!$A$6,A249,0,ROWS(dbList)),0)+A249,0)","v":0},null,"","","","","","","","","","","","","","","","","","","","","","","_"]
[{"$f":"IF(ROW()-ROW(dbConsult)<=COUNTIF(dbListRef,RefCherchee),MATCH(RefCherchee,OFFSET(DataBase!$A$6,A250,0,ROWS(dbList)),0)+A250,0)","v":0},null,"","","","","","","","","","","","","","","","","","","","","","","_"]
[{"$f":"IF(ROW()-ROW(dbConsult)<=COUNTIF(dbListRef,RefCherchee),MATCH(RefCherchee,OFFSET(DataBase!$A$6,A251,0,ROWS(dbList)),0)+A251,0)","v":0},null,"","","","","","","","","","","","","","","","","","","","","","","_"]
[{"$f":"IF(ROW()-ROW(dbConsult)<=COUNTIF(dbListRef,RefCherchee),MATCH(RefCherchee,OFFSET(DataBase!$A$6,A252,0,ROWS(dbList)),0)+A252,0)","v":0},null,"","","","","","","","","","","","","","","","","","","","","","","_"]
[{"$f":"IF(ROW()-ROW(dbConsult)<=COUNTIF(dbListRef,RefCherchee),MATCH(RefCherchee,OFFSET(DataBase!$A$6,A253,0,ROWS(dbList)),0)+A253,0)","v":0},null,"","","","","","","","","","","","","","","","","","","","","","","_"]
[{"$f":"IF(ROW()-ROW(dbConsult)<=COUNTIF(dbListRef,RefCherchee),MATCH(RefCherchee,OFFSET(DataBase!$A$6,A254,0,ROWS(dbList)),0)+A254,0)","v":0},null,"","","","","","","","","","","","","","","","","","","","","","","_"]
[{"$f":"IF(ROW()-ROW(dbConsult)<=COUNTIF(dbListRef,RefCherchee),MATCH(RefCherchee,OFFSET(DataBase!$A$6,A255,0,ROWS(dbList)),0)+A255,0)","v":0},null,"","","","","","","","","","","","","","","","","","","","","","","_"]
[{"$f":"IF(ROW()-ROW(dbConsult)<=COUNTIF(dbListRef,RefCherchee),MATCH(RefCherchee,OFFSET(DataBase!$A$6,A256,0,ROWS(dbList)),0)+A256,0)","v":0},null,{"$f":"IF($A257,INDEX(dbList,$A257,C$6),\"\")","v":""},"","","","","","","","","",{"$f":"IF($A257,INDEX(dbList,$A257,M$6),\"\")","v":""},"","","","","","","","","","","","_"]
[{"$f":"IF(ROW()-ROW(dbConsult)<=COUNTIF(dbListRef,RefCherchee),MATCH(RefCherchee,OFFSET(DataBase!$A$6,A257,0,ROWS(dbList)),0)+A257,0)","v":0},null,"","","","","","","","","","","","","","","","","","","","","","","_"]
[{"$f":"IF(ROW()-ROW(dbConsult)<=COUNTIF(dbListRef,RefCherchee),MATCH(RefCherchee,OFFSET(DataBase!$A$6,A258,0,ROWS(dbList)),0)+A258,0)","v":0},null,"","","","","","","","","","","","","","","","","","","","","","","_"]
[{"$f":"IF(ROW()-ROW(dbConsult)<=COUNTIF(dbListRef,RefCherchee),MATCH(RefCherchee,OFFSET(DataBase!$A$6,A259,0,ROWS(dbList)),0)+A259,0)","v":0},null,"","","","","","","","","","","","","","","","","","","","","","","_"]
[{"$f":"IF(ROW()-ROW(dbConsult)<=COUNTIF(dbListRef,RefCherchee),MATCH(RefCherchee,OFFSET(DataBase!$A$6,A260,0,ROWS(dbList)),0)+A260,0)","v":0},null,"","","","","","","","","","","","","","","","","","","","","","","_"]
[{"$f":"IF(ROW()-ROW(dbConsult)<=COUNTIF(dbListRef,RefCherchee),MATCH(RefCherchee,OFFSET(DataBase!$A$6,A261,0,ROWS(dbList)),0)+A261,0)","v":0},null,"","","","","","","","","","","","","","","","","","","","","","","_"]
[{"$f":"IF(ROW()-ROW(dbConsult)<=COUNTIF(dbListRef,RefCherchee),MATCH(RefCherchee,OFFSET(DataBase!$A$6,A262,0,ROWS(dbList)),0)+A262,0)","v":0},null,"","","","","","","","","","","","","","","","","","","","",{"$f":"IF($A263,INDEX(dbList,$A263,W$6+1),\"\")","v":""},"",{"$f":"IF($A263,INDEX(dbList,$A263,Y$6),\"_\")","v":"_"}]
[{"$f":"IF(ROW()-ROW(dbConsult)<=COUNTIF(dbListRef,RefCherchee),MATCH(RefCherchee,OFFSET(DataBase!$A$6,A263,0,ROWS(dbList)),0)+A263,0)","v":0},null,"","","","","","","","","","","","","","","","","","","","","","","_"]
[{"$f":"IF(ROW()-ROW(dbConsult)<=COUNTIF(dbListRef,RefCherchee),MATCH(RefCherchee,OFFSET(DataBase!$A$6,A264,0,ROWS(dbList)),0)+A264,0)","v":0},null,"","","","","","","","","","","","","","","","","","","","","","","_"]
[{"$f":"IF(ROW()-ROW(dbConsult)<=COUNTIF(dbListRef,RefCherchee),MATCH(RefCherchee,OFFSET(DataBase!$A$6,A265,0,ROWS(dbList)),0)+A265,0)","v":0},null,"","","","","","","","","","","","","","","","","","","","","","","_"]
[{"$f":"IF(ROW()-ROW(dbConsult)<=COUNTIF(dbListRef,RefCherchee),MATCH(RefCherchee,OFFSET(DataBase!$A$6,A266,0,ROWS(dbList)),0)+A266,0)","v":0},null,{"$f":"IF($A267,INDEX(dbList,$A267,C$6),\"\")","v":""},"","","","","","","","","",{"$f":"IF($A267,INDEX(dbList,$A267,M$6),\"\")","v":""},"","","","","","","","","","","","_"]
[{"$f":"IF(ROW()-ROW(dbConsult)<=COUNTIF(dbListRef,RefCherchee),MATCH(RefCherchee,OFFSET(DataBase!$A$6,A267,0,ROWS(dbList)),0)+A267,0)","v":0},null,"","","","","","","","","","","","","","","","","","","","","","","_"]
[{"$f":"IF(ROW()-ROW(dbConsult)<=COUNTIF(dbListRef,RefCherchee),MATCH(RefCherchee,OFFSET(DataBase!$A$6,A268,0,ROWS(dbList)),0)+A268,0)","v":0},null,"","","","","","","","","","","","","","","","","","","","","","","_"]
[{"$f":"IF(ROW()-ROW(dbConsult)<=COUNTIF(dbListRef,RefCherchee),MATCH(RefCherchee,OFFSET(DataBase!$A$6,A269,0,ROWS(dbList)),0)+A269,0)","v":0},null,"","","","","","","","","","","","","","","","","","","","","","","_"]
[{"$f":"IF(ROW()-ROW(dbConsult)<=COUNTIF(dbListRef,RefCherchee),MATCH(RefCherchee,OFFSET(DataBase!$A$6,A270,0,ROWS(dbList)),0)+A270,0)","v":0},null,"","","","","","","","","","","","","","","","","","","","","","","_"]
[{"$f":"IF(ROW()-ROW(dbConsult)<=COUNTIF(dbListRef,RefCherchee),MATCH(RefCherchee,OFFSET(DataBase!$A$6,A271,0,ROWS(dbList)),0)+A271,0)","v":0},null,"","","","","","","","","","","","","","","","","","","","","","","_"]
[{"$f":"IF(ROW()-ROW(dbConsult)<=COUNTIF(dbListRef,RefCherchee),MATCH(RefCherchee,OFFSET(DataBase!$A$6,A272,0,ROWS(dbList)),0)+A272,0)","v":0},null,"","","","","","","","","","","","","","","","","","","","","","","_"]
[{"$f":"IF(ROW()-ROW(dbConsult)<=COUNTIF(dbListRef,RefCherchee),MATCH(RefCherchee,OFFSET(DataBase!$A$6,A273,0,ROWS(dbList)),0)+A273,0)","v":0},null,"","","","","","","","","","","","","","","","","","","","","","","_"]
[{"$f":"IF(ROW()-ROW(dbConsult)<=COUNTIF(dbListRef,RefCherchee),MATCH(RefCherchee,OFFSET(DataBase!$A$6,A274,0,ROWS(dbList)),0)+A274,0)","v":0},null,"","","","","","","","","","","","","","","","","","","","","","","_"]
[{"$f":"IF(ROW()-ROW(dbConsult)<=COUNTIF(dbListRef,RefCherchee),MATCH(RefCherchee,OFFSET(DataBase!$A$6,A275,0,ROWS(dbList)),0)+A275,0)","v":0},null,"","","","","","","","","","","","","","","","","","","","","","","_"]
[{"$f":"IF(ROW()-ROW(dbConsult)<=COUNTIF(dbListRef,RefCherchee),MATCH(RefCherchee,OFFSET(DataBase!$A$6,A276,0,ROWS(dbList)),0)+A276,0)","v":0},null,{"$f":"IF($A277,INDEX(dbList,$A277,C$6),\"\")","v":""},"","","","","","","","","",{"$f":"IF($A277,INDEX(dbList,$A277,M$6),\"\")","v":""},"","","","","","","","","","","","_"]
[{"$f":"IF(ROW()-ROW(dbConsult)<=COUNTIF(dbListRef,RefCherchee),MATCH(RefCherchee,OFFSET(DataBase!$A$6,A277,0,ROWS(dbList)),0)+A277,0)","v":0},null,"","","","","","","","","","","","","","","","","","","","","","","_"]
[{"$f":"IF(ROW()-ROW(dbConsult)<=COUNTIF(dbListRef,RefCherchee),MATCH(RefCherchee,OFFSET(DataBase!$A$6,A278,0,ROWS(dbList)),0)+A278,0)","v":0},null,"","","","","","","","","","","","","","","","","","","","","","","_"]
[{"$f":"IF(ROW()-ROW(dbConsult)<=COUNTIF(dbListRef,RefCherchee),MATCH(RefCherchee,OFFSET(DataBase!$A$6,A279,0,ROWS(dbList)),0)+A279,0)","v":0},null,"","","","","","","","","","","","","","","","","","","","","","","_"]
[{"$f":"IF(ROW()-ROW(dbConsult)<=COUNTIF(dbListRef,RefCherchee),MATCH(RefCherchee,OFFSET(DataBase!$A$6,A280,0,ROWS(dbList)),0)+A280,0)","v":0},null,"","","","","","","","","","","","","","","","","","","","","","","_"]
[{"$f":"IF(ROW()-ROW(dbConsult)<=COUNTIF(dbListRef,RefCherchee),MATCH(RefCherchee,OFFSET(DataBase!$A$6,A281,0,ROWS(dbList)),0)+A281,0)","v":0},null,"","","","","","","","","","","","","","","","","","","","","","","_"]
[{"$f":"IF(ROW()-ROW(dbConsult)<=COUNTIF(dbListRef,RefCherchee),MATCH(RefCherchee,OFFSET(DataBase!$A$6,A282,0,ROWS(dbList)),0)+A282,0)","v":0},null,"","","","","","","","","","","","","","","","","","","","","","","_"]
[{"$f":"IF(ROW()-ROW(dbConsult)<=COUNTIF(dbListRef,RefCherchee),MATCH(RefCherchee,OFFSET(DataBase!$A$6,A283,0,ROWS(dbList)),0)+A283,0)","v":0},null,"","","","","","","","","","","","","","","","","","","","","","","_"]
[{"$f":"IF(ROW()-ROW(dbConsult)<=COUNTIF(dbListRef,RefCherchee),MATCH(RefCherchee,OFFSET(DataBase!$A$6,A284,0,ROWS(dbList)),0)+A284,0)","v":0},null,"","","","","","","","","","","","","","","","","","","","","","","_"]
[{"$f":"IF(ROW()-ROW(dbConsult)<=COUNTIF(dbListRef,RefCherchee),MATCH(RefCherchee,OFFSET(DataBase!$A$6,A285,0,ROWS(dbList)),0)+A285,0)","v":0},null,"","","","","","","","","","","","","","","","","","","","","","","_"]
[{"$f":"IF(ROW()-ROW(dbConsult)<=COUNTIF(dbListRef,RefCherchee),MATCH(RefCherchee,OFFSET(DataBase!$A$6,A286,0,ROWS(dbList)),0)+A286,0)","v":0},null,{"$f":"IF($A287,INDEX(dbList,$A287,C$6),\"\")","v":""},"","","","","","","","","",{"$f":"IF($A287,INDEX(dbList,$A287,M$6),\"\")","v":""},"","","","","","","","","","","","_"]
[{"$f":"IF(ROW()-ROW(dbConsult)<=COUNTIF(dbListRef,RefCherchee),MATCH(RefCherchee,OFFSET(DataBase!$A$6,A287,0,ROWS(dbList)),0)+A287,0)","v":0},null,"","","","","","","","","","","","","","","","","","","","","","","_"]
[{"$f":"IF(ROW()-ROW(dbConsult)<=COUNTIF(dbListRef,RefCherchee),MATCH(RefCherchee,OFFSET(DataBase!$A$6,A288,0,ROWS(dbList)),0)+A288,0)","v":0},null,"","","","","","","","","","","","","","","","","","","","","","","_"]
[{"$f":"IF(ROW()-ROW(dbConsult)<=COUNTIF(dbListRef,RefCherchee),MATCH(RefCherchee,OFFSET(DataBase!$A$6,A289,0,ROWS(dbList)),0)+A289,0)","v":0},null,"","","","","","","","","","","","","","","","","","","","","","","_"]
[{"$f":"IF(ROW()-ROW(dbConsult)<=COUNTIF(dbListRef,RefCherchee),MATCH(RefCherchee,OFFSET(DataBase!$A$6,A290,0,ROWS(dbList)),0)+A290,0)","v":0},null,"","","","","","","","","","","","","","","","","","","","","","","_"]
[{"$f":"IF(ROW()-ROW(dbConsult)<=COUNTIF(dbListRef,RefCherchee),MATCH(RefCherchee,OFFSET(DataBase!$A$6,A291,0,ROWS(dbList)),0)+A291,0)","v":0},null,"","","","","","","","","","","","","","","","","","","","","","","_"]
[{"$f":"IF(ROW()-ROW(dbConsult)<=COUNTIF(dbListRef,RefCherchee),MATCH(RefCherchee,OFFSET(DataBase!$A$6,A292,0,ROWS(dbList)),0)+A292,0)","v":0},null,"","","","","","","","","","","","","","","","","","","","","","","_"]
[{"$f":"IF(ROW()-ROW(dbConsult)<=COUNTIF(dbListRef,RefCherchee),MATCH(RefCherchee,OFFSET(DataBase!$A$6,A293,0,ROWS(dbList)),0)+A293,0)","v":0},null,"","","","","","","","","","","","","","","","","","","","","","","_"]
[{"$f":"IF(ROW()-ROW(dbConsult)<=COUNTIF(dbListRef,RefCherchee),MATCH(RefCherchee,OFFSET(DataBase!$A$6,A294,0,ROWS(dbList)),0)+A294,0)","v":0},null,"","","","","","","","","","","","","","","","","","","","","","","_"]
[{"$f":"IF(ROW()-ROW(dbConsult)<=COUNTIF(dbListRef,RefCherchee),MATCH(RefCherchee,OFFSET(DataBase!$A$6,A295,0,ROWS(dbList)),0)+A295,0)","v":0},null,"","","","","","","","","","","","","","","","","","","","","","","_"]
[{"$f":"IF(ROW()-ROW(dbConsult)<=COUNTIF(dbListRef,RefCherchee),MATCH(RefCherchee,OFFSET(DataBase!$A$6,A296,0,ROWS(dbList)),0)+A296,0)","v":0},null,{"$f":"IF($A297,INDEX(dbList,$A297,C$6),\"\")","v":""},"","","","","","","","","",{"$f":"IF($A297,INDEX(dbList,$A297,M$6),\"\")","v":""},"","","","","","","","","","","","_"]
[{"$f":"IF(ROW()-ROW(dbConsult)<=COUNTIF(dbListRef,RefCherchee),MATCH(RefCherchee,OFFSET(DataBase!$A$6,A297,0,ROWS(dbList)),0)+A297,0)","v":0},null,"","","","","","","","","","","","","","","","","","","","","","","_"]
[{"$f":"IF(ROW()-ROW(dbConsult)<=COUNTIF(dbListRef,RefCherchee),MATCH(RefCherchee,OFFSET(DataBase!$A$6,A298,0,ROWS(dbList)),0)+A298,0)","v":0},null,"","","","","","","","","","","","","","","","","","","","","","","_"]
[{"$f":"IF(ROW()-ROW(dbConsult)<=COUNTIF(dbListRef,RefCherchee),MATCH(RefCherchee,OFFSET(DataBase!$A$6,A299,0,ROWS(dbList)),0)+A299,0)","v":0},null,"","","","","","","","","","","","","","","","","","","","","","","_"]
[{"$f":"IF(ROW()-ROW(dbConsult)<=COUNTIF(dbListRef,RefCherchee),MATCH(RefCherchee,OFFSET(DataBase!$A$6,A300,0,ROWS(dbList)),0)+A300,0)","v":0},null,"","","","","","","","","","","","","","","","","","","","","","","_"]
[{"$f":"IF(ROW()-ROW(dbConsult)<=COUNTIF(dbListRef,RefCherchee),MATCH(RefCherchee,OFFSET(DataBase!$A$6,A301,0,ROWS(dbList)),0)+A301,0)","v":0},null,"","","","","","","","","","","","","","","","","","","","","","","_"]
[{"$f":"IF(ROW()-ROW(dbConsult)<=COUNTIF(dbListRef,RefCherchee),MATCH(RefCherchee,OFFSET(DataBase!$A$6,A302,0,ROWS(dbList)),0)+A302,0)","v":0},null,"","","","","","","","","","","","","","","","","","","","","","","_"]
[{"$f":"IF(ROW()-ROW(dbConsult)<=COUNTIF(dbListRef,RefCherchee),MATCH(RefCherchee,OFFSET(DataBase!$A$6,A303,0,ROWS(dbList)),0)+A303,0)","v":0},null,"","","","","","","","","","","","","","","","","","","","","","","_"]
[{"$f":"IF(ROW()-ROW(dbConsult)<=COUNTIF(dbListRef,RefCherchee),MATCH(RefCherchee,OFFSET(DataBase!$A$6,A304,0,ROWS(dbList)),0)+A304,0)","v":0},null,"","","","","","","","","","","","","","","","","","","","","","","_"]
[{"$f":"IF(ROW()-ROW(dbConsult)<=COUNTIF(dbListRef,RefCherchee),MATCH(RefCherchee,OFFSET(DataBase!$A$6,A305,0,ROWS(dbList)),0)+A305,0)","v":0},null,"","","","","","","","","","","","","","","","","","","","","","","_"]
[{"$f":"IF(ROW()-ROW(dbConsult)<=COUNTIF(dbListRef,RefCherchee),MATCH(RefCherchee,OFFSET(DataBase!$A$6,A306,0,ROWS(dbList)),0)+A306,0)","v":0},null,{"$f":"IF($A307,INDEX(dbList,$A307,C$6),\"\")","v":""},"","","","","","","","","",{"$f":"IF($A307,INDEX(dbList,$A307,M$6),\"\")","v":""},"","","","","","","","","","","","_"]
[{"$f":"IF(ROW()-ROW(dbConsult)<=COUNTIF(dbListRef,RefCherchee),MATCH(RefCherchee,OFFSET(DataBase!$A$6,A307,0,ROWS(dbList)),0)+A307,0)","v":0},null,"","","","","","","","","","","","","","","","","","","","","","","_"]
[{"$f":"IF(ROW()-ROW(dbConsult)<=COUNTIF(dbListRef,RefCherchee),MATCH(RefCherchee,OFFSET(DataBase!$A$6,A308,0,ROWS(dbList)),0)+A308,0)","v":0},null,"","","","","","","","","","","","","","","","","","","","","","","_"]
[{"$f":"IF(ROW()-ROW(dbConsult)<=COUNTIF(dbListRef,RefCherchee),MATCH(RefCherchee,OFFSET(DataBase!$A$6,A309,0,ROWS(dbList)),0)+A309,0)","v":0},null,"","","","","","","","","","","","","","","","","","","","","","","_"]
[{"$f":"IF(ROW()-ROW(dbConsult)<=COUNTIF(dbListRef,RefCherchee),MATCH(RefCherchee,OFFSET(DataBase!$A$6,A310,0,ROWS(dbList)),0)+A310,0)","v":0},null,"","","","","","","","","","","","","","","","","","","","","","","_"]
[{"$f":"IF(ROW()-ROW(dbConsult)<=COUNTIF(dbListRef,RefCherchee),MATCH(RefCherchee,OFFSET(DataBase!$A$6,A311,0,ROWS(dbList)),0)+A311,0)","v":0},null,"","","","","","","","","","","","","","","","","","","","","","","_"]
[{"$f":"IF(ROW()-ROW(dbConsult)<=COUNTIF(dbListRef,RefCherchee),MATCH(RefCherchee,OFFSET(DataBase!$A$6,A312,0,ROWS(dbList)),0)+A312,0)","v":0},null,"","","","","","","","","","","","","","","","","","","","","","","_"]
[{"$f":"IF(ROW()-ROW(dbConsult)<=COUNTIF(dbListRef,RefCherchee),MATCH(RefCherchee,OFFSET(DataBase!$A$6,A313,0,ROWS(dbList)),0)+A313,0)","v":0},null,"","","","","","","","","","","","","","","","","","","","","","","_"]
[{"$f":"IF(ROW()-ROW(dbConsult)<=COUNTIF(dbListRef,RefCherchee),MATCH(RefCherchee,OFFSET(DataBase!$A$6,A314,0,ROWS(dbList)),0)+A314,0)","v":0},null,"","","","","","","","","","","","","","","","","","","","","","","_"]
[{"$f":"IF(ROW()-ROW(dbConsult)<=COUNTIF(dbListRef,RefCherchee),MATCH(RefCherchee,OFFSET(DataBase!$A$6,A315,0,ROWS(dbList)),0)+A315,0)","v":0},null,"","","","","","","","","","","","","","","","","","","","","","","_"]
[{"$f":"IF(ROW()-ROW(dbConsult)<=COUNTIF(dbListRef,RefCherchee),MATCH(RefCherchee,OFFSET(DataBase!$A$6,A316,0,ROWS(dbList)),0)+A316,0)","v":0},null,{"$f":"IF($A317,INDEX(dbList,$A317,C$6),\"\")","v":""},"","","","","","","","","",{"$f":"IF($A317,INDEX(dbList,$A317,M$6),\"\")","v":""},"","","","","","","","","","","","_"]
[{"$f":"IF(ROW()-ROW(dbConsult)<=COUNTIF(dbListRef,RefCherchee),MATCH(RefCherchee,OFFSET(DataBase!$A$6,A317,0,ROWS(dbList)),0)+A317,0)","v":0},null,"","","","","","","","","","","","","","","","","","","","","","","_"]
[{"$f":"IF(ROW()-ROW(dbConsult)<=COUNTIF(dbListRef,RefCherchee),MATCH(RefCherchee,OFFSET(DataBase!$A$6,A318,0,ROWS(dbList)),0)+A318,0)","v":0},null,"","","","","","","","","","","","","","","","","","","","","","","_"]
[{"$f":"IF(ROW()-ROW(dbConsult)<=COUNTIF(dbListRef,RefCherchee),MATCH(RefCherchee,OFFSET(DataBase!$A$6,A319,0,ROWS(dbList)),0)+A319,0)","v":0},null,"","","","","","","","","","","","","","","","","","","","","","","_"]
[{"$f":"IF(ROW()-ROW(dbConsult)<=COUNTIF(dbListRef,RefCherchee),MATCH(RefCherchee,OFFSET(DataBase!$A$6,A320,0,ROWS(dbList)),0)+A320,0)","v":0},null,"","","","","","","","","","","","","","","","","","","","","","","_"]
[{"$f":"IF(ROW()-ROW(dbConsult)<=COUNTIF(dbListRef,RefCherchee),MATCH(RefCherchee,OFFSET(DataBase!$A$6,A321,0,ROWS(dbList)),0)+A321,0)","v":0},null,"","","","","","","","","","","","","","","","","","","","","","","_"]
[{"$f":"IF(ROW()-ROW(dbConsult)<=COUNTIF(dbListRef,RefCherchee),MATCH(RefCherchee,OFFSET(DataBase!$A$6,A322,0,ROWS(dbList)),0)+A322,0)","v":0},null,"","","","","","","","","","","","","","","","","","","","","","","_"]
[{"$f":"IF(ROW()-ROW(dbConsult)<=COUNTIF(dbListRef,RefCherchee),MATCH(RefCherchee,OFFSET(DataBase!$A$6,A323,0,ROWS(dbList)),0)+A323,0)","v":0},null,"","","","","","","","","","","","","","","","","","","","","","","_"]
[{"$f":"IF(ROW()-ROW(dbConsult)<=COUNTIF(dbListRef,RefCherchee),MATCH(RefCherchee,OFFSET(DataBase!$A$6,A324,0,ROWS(dbList)),0)+A324,0)","v":0},null,"","","","","","","","","","","","","","","","","","","","","","","_"]
[{"$f":"IF(ROW()-ROW(dbConsult)<=COUNTIF(dbListRef,RefCherchee),MATCH(RefCherchee,OFFSET(DataBase!$A$6,A325,0,ROWS(dbList)),0)+A325,0)","v":0},null,"","","","","","","","","","","","","","","","","","","","","","","_"]
[{"$f":"IF(ROW()-ROW(dbConsult)<=COUNTIF(dbListRef,RefCherchee),MATCH(RefCherchee,OFFSET(DataBase!$A$6,A326,0,ROWS(dbList)),0)+A326,0)","v":0},null,{"$f":"IF($A327,INDEX(dbList,$A327,C$6),\"\")","v":""},"","","","","","","","","",{"$f":"IF($A327,INDEX(dbList,$A327,M$6),\"\")","v":""},"","","","","","","","","",{"$f":"IF($A327,INDEX(dbList,$A327,W$6+1),\"\")","v":""},"",{"$f":"IF($A327,INDEX(dbList,$A327,Y$6),\"_\")","v":"_"}]
[{"$f":"IF(ROW()-ROW(dbConsult)<=COUNTIF(dbListRef,RefCherchee),MATCH(RefCherchee,OFFSET(DataBase!$A$6,A327,0,ROWS(dbList)),0)+A327,0)","v":0},null,"","","","","","","","","","","","","","","","","","","","","","","_"]
[{"$f":"IF(ROW()-ROW(dbConsult)<=COUNTIF(dbListRef,RefCherchee),MATCH(RefCherchee,OFFSET(DataBase!$A$6,A328,0,ROWS(dbList)),0)+A328,0)","v":0},null,"","","","","","","","","","","","","","","","","","","","","","","_"]
[{"$f":"IF(ROW()-ROW(dbConsult)<=COUNTIF(dbListRef,RefCherchee),MATCH(RefCherchee,OFFSET(DataBase!$A$6,A329,0,ROWS(dbList)),0)+A329,0)","v":0},null,"","","","","","","","","","","","","","","","","","","","","","","_"]
[{"$f":"IF(ROW()-ROW(dbConsult)<=COUNTIF(dbListRef,RefCherchee),MATCH(RefCherchee,OFFSET(DataBase!$A$6,A330,0,ROWS(dbList)),0)+A330,0)","v":0},null,"","","","","","","","","","","","","","","","","","","","","","","_"]
[{"$f":"IF(ROW()-ROW(dbConsult)<=COUNTIF(dbListRef,RefCherchee),MATCH(RefCherchee,OFFSET(DataBase!$A$6,A331,0,ROWS(dbList)),0)+A331,0)","v":0},null,"","","","","","","","","","","","","","","","","","","","","","","_"]
[{"$f":"IF(ROW()-ROW(dbConsult)<=COUNTIF(dbListRef,RefCherchee),MATCH(RefCherchee,OFFSET(DataBase!$A$6,A332,0,ROWS(dbList)),0)+A332,0)","v":0}]

{"sheet":"Richtlijnen","index":3,"n_rows":328,"n_cols":17,"rows_kept":328,"cut":false,"hidden":false,"merged":[[84,0,85,0],[91,0,92,0],[286,12,286,16],[287,12,287,16],[171,0,172,0],[158,0,159,0],[152,0,153,0],[187,0,188,0],[221,0,222,0],[226,0,227,0],[192,0,193,0],[197,0,198,0],[202,0,203,0],[207,0,208,0],[213,0,214,0],[238,12,238,13],[286,1,286,3],[255,1,255,4],[24,0,25,0],[30,0,31,0],[176,0,177,0],[183,0,184,0],[164,0,165,0],[37,0,38,0],[41,0,42,0],[60,0,61,0],[112,0,113,0],[133,0,134,0],[143,0,144,0],[71,0,72,0],[146,0,147,0],[96,0,97,0],[102,0,103,0],[79,0,80,0],[2,12,2,16],[237,12,237,16],[57,3,57,5],[2,1,2,7],[10,4,10,5],[3,12,3,13],[237,1,237,6]]}
[]
[]
[null,"RICHTLIJNEN VOOR HET INVULLEN VAN HET REKENBLAD",null,null,null,null,null,null,null,null,null,"Link naar:","Werkingsprincipe expansievat met 3 situaties"]
[null,null,null,null,null,null,null,null,null,null,null,null,"Rekenvoorbeeld"]
[null,"Het gebruik van het rekenblad verloopt in 3 stappen:"]
[]
[null,"1. Invoer van de gegevens van de installatie"]
[null,"2. Berekening van tussenwaarden"]
[null,"3. Keuze van het expansievat en uitvoering van sommige controles om deze keuze te kunnen bevestigen"]
[]
[null,"In het rekenblad zijn enkel de ",null,null,"omlijnde velden",null," als invoergegevens door de gebruiker in te vullen;"]
[null,"alle andere velden zijn beschermd en worden automatisch berekend en ingevuld op basis van de formules die expliciet vermeld zijn."]
[]
[null,"Voor meer informatie betreffende de in dit rekenblad aanwezige parameters, kan individueel geklikt worden op elke parameter van het tabblad 'Calcul - Berekening'. "]
[null,"U wordt dan doorverwezen naar een beschrijving in dit tabblad 'Richtlijnen'."]
[]
[]
[]
[]
[]
[]
[]
[null,"INVOERGEGEVENS VOOR DE INSTALLATIE"]
[]
["terug naar rekenblad","1.","Waterinhoud van de boiler of het warmwatervoorraadvat (Vbal in liter)"]
[null,null,"Maximale waterinhoud van het warmwatervoorraadvat."]
[null,null,"In geval van boilers aangesloten op een SWW-circulatiecircuit zou de waterinhoud in de lus(sen) ook in rekening gebracht moeten worden in het volume Vbal. Sommige fabrikanten"]
[null,null,"houden hiermee rekening door de waterinhoud van het warmwatervoorraadvat met een forfaitaire waarde van 1,10 à 1,25 te vermenigvuldigen."]
[]
[]
["terug naar rekenblad","2.","Ontwerptemperatuur voor het sanitair warm water (Tmax in °C)"]
[null,null,"Maximale temperatuur dat wordt ingesteld voor de productie van het water bestemd voor het warmwatervoorraadvat."]
[null,null,"Deze instelbare ontwerptemperatuur mag achteraf niet gewijzigd worden aangezien de mogelijke negatieve impact op de installatie (tenzij de installatie in zijn geheel dit zou toelaten);"]
[null,null,"indien het expansievat bv. gedimensioneerd wordt voor Tmax = 60 °C, dan mag deze maximale watertemperatuur nadien niet zonder enige voorgaande controle verhoogd worden naar Tmax = 70 °C."]
[null,null,"De temperatuur van het sanitair warm water in de boiler zou ten minste 60 °C moeten bedragen (om legionella-ontwikkeling te voorkomen)."]
[]
[]
["terug naar rekenblad","3.","Insteldruk van het veiligheidsventiel (psv in bar)"]
[null,null,"Door de fabrikant ingestelde druk waarop het veiligheidsventiel zich opent (meestal 6, 7 of 8 bar voor residentiële toepassingen)."]
[]
[]
["terug naar rekenblad","4.","Waterdruk in de installatie ter hoogte van het sanitair expansievat (pi in bar)"]
[null,null,"De waterdruk pi wordt gemeten bij een koudwatertemperatuur (Twater = 10 °C)."]
[null,null,"Deze waterdruk hangt af van de druk aan de watermeter van de hoofdleiding (2,5 bar, bv.) en het hoogteverschil tussen deze watermeter en het sanitair expansievat (0,1 bar per meter hoogteverschil)."]
[null,null,"Indien een drukregelaar geplaatst wordt tussen de watermeter en het expansievat, dan zal de druk ter hoogte van het expansievat uiteraard beïnvloed worden door de aan dit toestel ingestelde druk en"]
[null,null,"het eventuele hoogteverschil tussen dit toestel en het expansievat (0,1 bar per meter hoogteverschil)."]
[null,null,"Opmerking:","De voormelde hoogteverschillen worden positief ingegeven indien het expansievat op een hoger niveau ligt dan de waterdrukmeter/drukregelaar en negatief in het andere geval."]
[]
[null,null,"Hieronder lichten we 3 mogelijke situaties toe:"]
[null,null,"A. Statische druk wordt gemeten ter hoogte van het expansievat --> de pi-waarde kan dan op de manometer afgelezen worden."]
[null,null,"B. Installatie zonder drukregelaar: Statische druk wordt afgeleid van de druk aan de watermeter (pmeter) --> pi = pmeter + 0,1 bar/m hoogteverschil"]
[null,null,"    ex. pmeter = 2,5 bar; hmeter = 0 m; hexpansievat = 6 m --> pi = 2,5 - 0,6 = 1,9 bar"]
[null,null,"C. Installatie met drukregelaar: Statische druk wordt afgeleid van de aan het reduceertoestel ingestelde waarde (preduceer) --> pi = preduceer + 0,1 bar/m hoogteverschil"]
[null,null,"    ex. preduceer = 3,0 bar; hreduceer = 0 m; hexpansievat = -3 m --> pi = 3,0 + 0,3 = 3,3 bar"]
[]
[null,null,"Opmerking:","Om de statische (koud)waterdruk constant onder een bepaalde waarde te houden (3 bar, bv.) kan een drukreduceertoestel voorzien worden, stroomopwaarts van het warmwatervoorraadvat."]
[null,null,null,"Een drukreduceertoestel kan ook nodig zijn om de goede werking van de veiligheidsventielen te garanderen."]
[null,null,null,{"$f":"HYPERLINK(Langage!C59,\"(zie \"&Langage!C60&\")\")","v":"(zie WTCB-FAQ nr. 166)"}]
[]
[]
["terug naar rekenblad","5.","Hoogteverschil tussen expansievat en veiligheidsventiel (Dh in meter)"]
[null,null,"Het veiligheidsventiel wordt in principe -net zoals het expansievat- zo dicht mogelijk van het warmwatervoorraadvat geplaatst."]
[null,null,"Sommige fabrikanten raden aan de veiligheidsklep hoger dan de bovenkant van het warmwatervoorraadvat te monteren. Hierdoor komt de klep in contact met water aan een minder"]
[null,null,"hoge temperatuur (wat aanleiding geeft tot geringere kalkafzettingen). Bij werkzaamheden aan de veiligheidsklep hoeft de warmwaterboiler bovendien niet te worden afgetapt."]
[]
[null,null,"Dit hoogteverschil wordt positief ingegeven indien het expansievat op een lager niveau ligt dan het veiligheidsventiel. In het andere geval wordt Dh negatief ingegeven."]
[null,null,"Indien Dh = 0, dan moet het cijfer '0' ingegeven worden in dit verplicht veld."]
[]
[]
[null,"BEREKENING VAN TUSSENWAARDEN"]
[]
["terug naar rekenblad","6.","Expansiecoëfficiënt (e in %)"]
[null,null,"De expansiecoëfficiënt karakteriseert de volumetoename van het water i.f.v. de opwarming."]
[null,null,"De coëfficiënt correspondeert met de volumetoename die optreedt bij de maximale ontwerpwatertemperatuur Tmax (bv. 60 °C) t.o.v. het volume bij de vulwatertemperatuur (10 °C)."]
[]
[null,null,"Watertemperatuur Twater (°C)",null,null,10,50,60,70,80,90]
[null,null,"Expansiecoëfficiënt (%)",null,null,0,1.18,1.68,2.25,2.89,3.57]
[]
[]
["terug naar rekenblad","7.","Expansievolume van het water (Vex in liter)"]
[null,null,"Volumetoename van het water bij opwarming van 10 °C tot de watertemperatuur Tmax."]
[null,null,"Het expansievolume van het water is berekend als het product van de waterinhoud (Vbal) en de expansiecoëfficiënt (e)."]
[]
[]
["terug naar rekenblad","8.","Maximale voordruk van het expansievat (p0,max in bar)"]
[null,null,"Maximale voordruk in het vat wanneer dit nog geen water bevat."]
[null,null,"Deze maximale druk wordt meestal zo gekozen dat deze 0,2 à 0,3 bar kleiner is dan de waterdruk pi."]
[null,null,"Met dergelijke regel garandeert men steeds een klein reservewatervolume (Vwr) in het expansievat in afgekoelde toestand."]
[null,null,"NB. In de Duitse norm DIN 4807-5 stelt men p0,max gelijk aan pi - 0,2."]
[]
[]
["terug naar rekenblad","9.","Drukverschil te wijten aan Dh (Dp in bar)"]
[null,null,"Drukverschil te wijten aan het hoogteverschil tussen het expansievat en het veiligheidsventiel."]
[null,null,"Dit drukverschil is positief indien het expansievat op een lager niveau ligt dan het veiligheidsventiel en negatief in het andere geval."]
[]
[]
["terug naar rekenblad","10.","Maximaal toelaatbare druk (pf,max in bar)"]
[null,null,"Bij een normaal opgewarmd warmwatervoorraadvat (met Twater ≤ Tmax) mag de druk ter hoogte van het expansievat de goede werking van het veiligheidsventiel (opening en sluiting van het ventiel) niet belemmeren."]
[null,null,"De maximale druk in het expansievat wordt dan meestal zo gekozen dat de druk ter hoogte van het veiligheidsventiel 15 à 20 % lager behouden wordt van de psv-waarde."]
[null,null,"NB. In de Duitse norm DIN 4807-5 stelt men pf,max gelijk aan 0,8 x psv."]
[]
[]
["terug naar rekenblad","11.","Minimaal volume van het vat (VN,min in liter)"]
[null,null,"Theoretisch minimaal volume van het expansievat, berekend op basis van de wet van Boyle (product van gasdruk en gasvolume blijft constant bij constante gastemperatuur)."]
[null,null,"De Europese norm NBN EN 806-2 voorziet voor VN,min een minimumwaarde van 4 % van het volume van het warmwatervoorraadvat Vbal."]
[]
[]
[]
[null,"KEUZE VAN HET EXPANSIEVAT"]
[]
[null,null,"Filtermogelijkheden (dit laat toe het aantal mogelijke resultaten in de databank te beperken)"]
[]
["terug naar rekenblad",null,"Vat met/zonder doorstroming"]
[null,null,"Vaten kunnen al dan niet doorstromd worden door het water dat in de leiding circuleert."]
[null,null,"Bovendien kunnen doorstroomvaten volledig of deels doorstroomd worden (zie voorbeelden hieronder van op de markt beschikbare modellen)."]
[]
[]
[]
[]
[]
[]
[]
[]
[]
[]
[]
[]
[null,null,"Balg/Membraan",null,null,"Balg",null,null,"Membraan",null,null,"Balg"]
[null,null,"Deelse/Volledige doorstroming",null,null,"Deels",null,null,"Volledig",null,null,"Volledig"]
[]
[null,null,"Om waterstagnatie in het vat te beperken (en zo het risico op legionella-ontwikkeling te reduceren), worden expansievaten met doorstroming aangeraden. Voor gebouwen in Vlaanderen die aan de"]
[null,null,"BBT-eisen wettelijk verplicht moeten voldoen, moeten de expansievaten volledig doorstroomd worden door warm water."]
[]
["terug naar rekenblad",null,"Positie"]
[null,null,"Naargelang van het model worden expansievaten verticaal of horizontaal geplaatst (zie voorbeelden hieronder van op de markt beschikbare modellen)."]
[]
[]
[]
[]
[]
[]
[]
[]
["terug naar rekenblad",null,"Verwisselbaar membraan/balg"]
[null,null,"Sommige expansievaten beschikken over een membraan/balg dat vervangen kan worden in geval van beschadiging."]
[]
["terug naar rekenblad",null,"Merk"]
[null,null,"U kan mogelijke expansievaten (die beantwoorden aan de eis VN ≥ VN,min) filteren naargelang het merk van een fabrikant."]
[null,null,"Deze verschillende merken maken deel uit van een niet beperkende lijst. Fabrikanten die hun productgegevens in onze databank willen invoeren/aanpassen, kunnen ons"]
[null,null,"via onze website contacteren."]
[]
[]
[{"$f":"IF(Langage!K81=0,HYPERLINK(\"#'\"&Langage!I81&\"'!$E$40\",\"terug naar rekenblad\"),HYPERLINK(\"#'\"&Langage!I81&\"'!$E$41\",\"terug naar rekenblad\"))","v":"terug naar rekenblad"},null,"Type"]
[null,null,"In het veld 'Type' wordt het gekozen expansievatmodel aangeduid."]
[null,null,"Dit model kan geselecteerd worden uit onze databank (via de drop-down lijst van de tab 'Choix vase - Keuze vat')"]
[null,null,"of kan manueel ingegeven worden (bv. indien het gewenste model niet in deze databank wordt vermeld)."]
[]
[]
[{"$f":"IF(Langage!G26=0,HYPERLINK(\"#'\"&Langage!I81&\"'!$I$45\",\"terug naar rekenblad\"),HYPERLINK(\"#'\"&Langage!I81&\"'!$K$45\",\"terug naar rekenblad\"))","v":"terug naar rekenblad"},"12.","Werkelijk volume van het vat (VN in liter)"]
[null,null,"Volume van het expansievat (bruto-inhoud) dat effectief geïnstalleerd zal worden (deze waarde wordt door de fabrikant vermeld)."]
[null,null,"Dit volume moet minstens even groot zijn als het berekend minimaal volume VN,min."]
[null,null,"Het werkelijk volume dient niet te groot gekozen te worden t.o.v. de VN,min-waarde (om waterstagnatie in het vat te beperken)."]
[]
[]
[{"$f":"IF(Langage!G26=0,HYPERLINK(\"#'\"&Langage!I81&\"'!$I$46\",\"terug naar rekenblad\"),HYPERLINK(\"#'\"&Langage!I81&\"'!$K$46\",\"terug naar rekenblad\"))","v":"terug naar rekenblad"},"13.","Maximaal toegelaten watertemperatuur (Tmax,adm in °C)"]
[null,null,"Dit is de maximale temperatuur van het sanitair warm water dat continu in contact mag zijn met het membraan/balg van het gekozen expansievat (deze waarde wordt door de fabrikant vermeld)."]
[null,null,"Volgens de productnorm NBN EN 13831 dient het membraan/balg van een sanitair expansievat te weerstaan aan een temperatuur van 70 °C."]
[null,null,"Bij de keuze van het expansievat dient men te controleren dat de ingestelde Tmax-waarde van het warmwatervoorraadvat de Tmax,adm van het expansievat niet overschrijdt."]
[null,null,"Opmerking:","De rest van de installatie dat in contact komt met het sanitair warm water (leidingen bv.) dient ook te weerstaan aan de Tmax-waarde."]
[]
[]
[{"$f":"IF(Langage!G26=0,HYPERLINK(\"#'\"&Langage!I81&\"'!$I$47\",\"terug naar rekenblad\"),HYPERLINK(\"#'\"&Langage!I81&\"'!$K$47\",\"terug naar rekenblad\"))","v":"terug naar rekenblad"},"14.","Door de fabrikant ingestelde voordruk (p0,fabr in bar)"]
[null,null,"Druk in het vat (aan de gaszijde) wanneer dit nog geen water bevat (af fabriek). Deze waarde wordt door de fabrikant vermeld en is meestal gelijk aan 3 of 4 bar."]
[null,null,"Indien deze p0,fabr-waarde groter is dan de p0,max-waarde (zie puntje 8 hierboven), dan dient de voordruk van het vat door de installateur aangepast te worden --> zie puntje 15 hieronder."]
[]
[]
[{"$f":"IF(Langage!G26=0,HYPERLINK(\"#'\"&Langage!I81&\"'!$I$48\",\"terug naar rekenblad\"),HYPERLINK(\"#'\"&Langage!I81&\"'!$K$48\",\"terug naar rekenblad\"))","v":"terug naar rekenblad"},"15.","Ter plaatse aangepaste voordruk (p0 in bar)"]
[null,null,"Druk in het vat (aan de gaszijde) dat, indien nodig, door de installateur wordt aangepast."]
[null,null,"Deze aangepaste p0-waarde moet kleiner dan of gelijk aan de maximale voordruk p0,max zijn."]
[null,null,"Deze p0-waarde mag echter niet te klein gekozen worden t.o.v. de p0,max-waarde. Indien een te kleine p0-waarde wordt ingesteld, dan kan het watervolume (bij Twater = Tmax ) in het vat soms te groot worden waardoor"]
[null,null,"het membraan/balg teveel belast en vroegtijdig beschadigd kan worden. Om dit te voorkomen geven sommige fabrikanten een maximaal volume water dat in het vat aanwezig mag zijn (zie puntjes 19 en 21 hieronder)."]
[]
[]
[{"$f":"IF(Langage!G26=0,HYPERLINK(\"#'\"&Langage!I81&\"'!$I$49\",\"terug naar rekenblad\"),HYPERLINK(\"#'\"&Langage!I81&\"'!$K$49\",\"terug naar rekenblad\"))","v":"terug naar rekenblad"},"16.","Reëel reservewatervolume (Vwr in liter)"]
[null,null,"Reële waterreserve die in het geïnstalleerde expansievat overblijft bij afgekoelde toestand (bij Twater = 10 °C)."]
[]
[]
[{"$f":"IF(Langage!G26=0,HYPERLINK(\"#'\"&Langage!I81&\"'!$I$50\",\"terug naar rekenblad\"),HYPERLINK(\"#'\"&Langage!I81&\"'!$K$50\",\"terug naar rekenblad\"))","v":"terug naar rekenblad"},"17.","Einddruk (pf in bar)"]
[null,null,"Werkelijke einddruk in het geïnstalleerde expansievat bij volledige opwarming van de waterinhoud van het warmwatervoorraadvat (Twater = Tmax)."]
[null,null,"Deze einddruk dient kleiner te zijn dan de maximaal toelaatbare druk pf,max (zie puntje 10 hierboven)."]
[]
[]
[{"$f":"IF(Langage!G26=0,HYPERLINK(\"#'\"&Langage!I81&\"'!$I$51\",\"terug naar rekenblad\"),HYPERLINK(\"#'\"&Langage!I81&\"'!$K$51\",\"terug naar rekenblad\"))","v":"terug naar rekenblad"},"18.","Maximale werkdruk (pmax in bar)"]
[null,null,"Maximale werkdruk van het geïnstalleerde expansievat (deze waarde wordt door de fabrikant vermeld)."]
[null,null,"Deze pmax-waarde mag niet kleiner zijn dan de psv-waarde (zie puntje 3) vermeerderd met 20 %, rekening houdend met het eventuele hoogteverschil Dh tussen het expansievat en het veiligheidsventiel (zie puntjes 5 en 9 hierboven)."]
[]
[]
[{"$f":"IF(Langage!G26=0,HYPERLINK(\"#'\"&Langage!I81&\"'!$I$52\",\"terug naar rekenblad\"),HYPERLINK(\"#'\"&Langage!I81&\"'!$K$52\",\"terug naar rekenblad\"))","v":"terug naar rekenblad"},"19.","Maximale nuttige vatinhoud (Vutile,adm in liter)"]
[null,null,"Dit is het maximale watervolume dat in het geïnstalleerde expansievat aanwezig mag zijn."]
[null,null,"Deze waarde wordt door sommige fabrikanten vermeld om de vervorming van het membraan/balg te beperken (en op deze wijze het hiermee gepaarde risico op versnelde beschadiging ervan te reduceren)."]
[]
[]
[{"$f":"IF(Langage!G26=0,HYPERLINK(\"#'\"&Langage!I81&\"'!$I$53\",\"terug naar rekenblad\"),HYPERLINK(\"#'\"&Langage!I81&\"'!$K$53\",\"terug naar rekenblad\"))","v":"terug naar rekenblad"},"20.","Maximaal watervolume in het vat (water op 60 °C) (Vwater in liter)"]
[null,null,"Dit is het reële watervolume dat in het geïnstalleerde expansievat aanwezig zal zijn bij volledige opwarming van de waterinhoud van het warmwatervoorraadvat (Twater = Tmax)."]
[null,null,"Deze Vwater-waarde mag niet groter zijn dan de voormelde Vutile,adm-waarde."]
[]
[]
[{"$f":"IF(Langage!G26=0,HYPERLINK(\"#'\"&Langage!I81&\"'!$I$54\",\"terug naar rekenblad\"),HYPERLINK(\"#'\"&Langage!I81&\"'!$K$54\",\"terug naar rekenblad\"))","v":"terug naar rekenblad"},"21.","Maximaal nuttig effect (hutile,adm)"]
[null,null,"Dit is de maximale verhouding tussen het in het expansievat aanwezige watervolume en het werkelijk volume VN van het vat."]
[null,null,"hutile,adm = Vutile,adm / VN"]
[null,null,"Dit rendement kan door de fabrikant van het expansievat beperkt worden (bv. tot 60 %) om beschadiging van het membraan of de balg te voorkomen."]
[]
[]
[{"$f":"IF(Langage!G26=0,HYPERLINK(\"#'\"&Langage!I81&\"'!$I$55\",\"terug naar rekenblad\"),HYPERLINK(\"#'\"&Langage!I81&\"'!$K$55\",\"terug naar rekenblad\"))","v":"terug naar rekenblad"},"22.","Reëel gebruiksrendement (hwater)"]
[null,null,"Verhouding tussen het watervolume, aanwezig in het vat indien het warmwatervoorraadvat volledig opgewarmd is (Twater = Tmax), en het volume van het geïnstalleerd expansievat zelf."]
[null,null,"hwater = Vwater / VN"]
[null,null,"Deze hwater-waarde mag niet groter zijn dan de voormelde hutile,adm-waarde."]
[]
[]
[null,null,"Vaten met volledige doorstroming:"]
[]
[{"$f":"IF(Langage!G26=0,HYPERLINK(\"#'\"&Langage!I81&\"'!$I$58\",\"terug naar rekenblad\"),HYPERLINK(\"#'\"&Langage!I81&\"'!$K$58\",\"terug naar rekenblad\"))","v":"terug naar rekenblad"},"23.","Maximaal toelaatbaar waterdebiet (Qmax,adm in m³/h)"]
[null,null,"Dit is het waterdebiet dat maximaal doorheen een volledig doorstroomd expansievat kan circuleren."]
[null,null,"Deze Qmax,adm-waarde zou door de fabrikant vermeld moeten worden."]
[]
[]
[{"$f":"IF(Langage!G26=0,HYPERLINK(\"#'\"&Langage!I81&\"'!$I$59\",\"terug naar rekenblad\"),HYPERLINK(\"#'\"&Langage!I81&\"'!$K$59\",\"terug naar rekenblad\"))","v":"terug naar rekenblad"},"24.","Piekdebiet doorheen het vat (Qpeak in m³/h)"]
[null,null,"Dit is het (berekende) piekdebiet dat doorheen het geïnstalleerde expansievat zou moeten kunnen doorstromen."]
[null,null,"Indien de Qpeak-waarde groter is dan de Qmax,adm-waarde, dan bestaat een optie erin een by-pass te voorzien."]
[]
[]
[]
[]
[]
[]
[]
[]
[null,"WERKINGSPRINCIPE VAN EEN EXPANSIEVAT",null,null,null,null,null,null,null,null,null,"Link naar:","Richtlijnen voor het invullen van het rekenblad"]
[null,null,null,null,null,null,null,null,null,null,null,null,"Rekenvoorbeeld"]
[]
[null,"Indien men water verwarmt, dan zet deze vloeistof uit."]
[null,"Voorbeeld: Een watervolume van 100 liter waarvan de temperatuur van 10 tot 60 °C stijgt, zal een extra (expansie)volume innemen van 1,7 liter."]
[]
[]
[]
[]
[]
[]
[]
[]
[]
[null,"Dit extra bijkomend watervolume zal de waterdruk in een gesloten installatie doen toenemen."]
[null,"Een expansievat kan ervoor zorgen om de waterdruk in de installatie zo constant mogelijk te houden door dit extra watervolume op te nemen."]
[]
[null,"Meer info:"]
[null,"WTCB-Dossier Nr. 2019/06.08"]
[]
[]
[null,"Bij de berekening van een expasievat onderscheidt men 3 stadia (zie onderstaande afbeeldingen):"]
[]
[null,"-","Voordruk (p0). Dit is de druk aan de gaszijde waarmee het vat wordt gevuld. In deze toestand bevindt er zich geen water in het vat."]
[null,null,"Deze voordruk dient, indien nodig, aangepast te worden (zie puntje 15 hierboven)."]
[null,"-","Vuldruk (pi). Dit is de druk in het vat wanneer de installatie is gevuld maar nog niet verwarmd (Twater = 10 °C; zie puntje 4)."]
[null,null,"In het vat bevindt zich de waterreserve Vwr (zie puntje 16). Dit is de hoeveelheid water die minimaal in het vat aanwezig moet zijn."]
[null,"-","Einddruk (pf). Dit is de druk in het vat bij de hoogste temperatuur van de installatie (Twater = Tmax; zie puntje 17)."]
[null,null,"In het vat bevindt zich een hoeveelheid water bestaande uit de waterreserve Vwr plus het extra expansiewatervolume Vex."]
[]
[]
[]
[]
[]
[]
[]
[]
[]
[]
[]
[]
[null,null,"Voordruk",null,null,null,"Vuldruk",null,null,null,"Einddruk"]
[]
[]
[]
[]
[]
[]
[]
[null,"REKENVOORBEELD",null,null,null,null,null,null,null,null,null,"Link naar:","Richtlijnen voor het invullen van het rekenblad"]
[null,null,null,null,null,null,null,null,null,null,null,null,"Werkingsprincipe expansievat met 3 situaties"]
[]
[]
[null,"INPUTGEGEVENS:"]
[null,"1 Waterinhoud van de boiler",null,null,null,null,null,null,null,"Vbal",100,"ℓ"]
[null,"2 Ontwerptemperatuur voor het sanitair warm water",null,null,null,null,null,null,null,"Tmax",60,"°C"]
[null,"3 Insteldruk van het veiligheidsventiel",null,null,null,null,null,null,null,"psv",7,"bar"]
[null,"4 Waterdruk in de installatie ter hoogte van het sanitair expansievat",null,null,null,null,null,null,null,"pi",3,"bar"]
[null,"5 Hoogteverschil tussen expansievat en veiligheidsventiel",null,null,null,null,null,null,null,"Dh",1,"m"]
[]
[]
[null,"TUSSENBEREKENING:"]
[null,"6 Expansiecoëfficiënt (vulling op 10°C)",null,null,null,null,null,"e",null,null,1.68,"%"]
[null,"7 Expansievolume van het water",null,null,null,null,null,"Vex",null,null,1.7,"ℓ"]
[null,"8 Maximale voordruk van het vat",null,null,null,null,null,"p0,max = pi -0,2",null,null,2.8,"bar"]
[null,"9 Drukverschil te wijten aan Dh",null,null,null,null,null,"Dp",null,null,0.1]
[null,"10 Maximaal toelaatbare druk",null,null,null,null,null,"pf,max = (psv x 0,8) + Dp",null,null,5.7]
[null,"11 Minimaal volume van het vat",null,null,null,null,null,"VN,min",null,null,4.3999999999999995,"ℓ"]
[]
[]
[null,"KEUZE VAN HET EXPANSIEVAT:"]
[]
[null,"Vat met doorstroming: JA"]
[null,"Merk: EXPANSION"]
[null,"Type: V8 (10)",null,null,null,null,null,null,null,null,null,"(Data van de fabrikant)",null,null,"CONTROLES"]
[]
[null,"12 Werkelijk volume van het vat",null,null,null,null,null,"VN",null,null,null,8,"ℓ",null,"VN ≥ VN,min",null,"OK"]
[null,"13 Maximaal toegelaten watertemperatuur",null,null,null,null,null,"Tmax,adm",null,null,null,70,"°C",null,"Tmax,adm ≥ Tmax",null,"OK"]
[null,"14 Door de fabrikant ingestelde voordruk",null,null,null,null,null,"p0,fabr",null,null,null,4,"bar"]
[null,"15 Ter plaatse aangepaste voordruk",null,null,null,null,null,"p0",null,null,null,2.5,"bar",null,"p0 ≤ p0,max",null,"OK"]
[null,"16 Reëel reservewatervolume",null,null,null,null,null,"Vwr = VN x (pi - p0) / (pi + 1)",null,null,null,1,"ℓ"]
[null,"17 Einddruk",null,null,null,null,null,"pf = ((p0+1) x VN / (VN - Vex - Vwr)) - 1",null,null,null,4.2631578947368416,"bar",null,"pf ≤ pf,max",null,"OK"]
[null,"18 Maximale werkdruk",null,null,null,null,null,"pmax",null,null,null,10,"bar",null,"pmax ≥ psv*1,2 + Dp",null,"OK"]
[null,"19 Maximale nuttige vatinhoud",null,null,null,null,null,"Vutile,adm",null,null,null,6,"ℓ"]
[null,"20 Maximaal watervolume in het vat (water op 60 °C)",null,null,null,null,null,"Vwater = Vex + Vwr",null,null,null,2.6799999999999997,"ℓ",null,"Vwater ≤ Vutile,adm",null,"OK"]
[null,"21 Maximaal nuttig effect",null,null,null,null,null,"hutile,adm",null,null,null,0.75,"-"]
[null,"22 Reëel gebruiksrendement",null,null,null,null,null,"hwater = (Vex+Vwr) / VN",null,null,null,0.33499999999999996,"-",null,"hwater ≤ hutile,adm",null,"OK"]
[]
[null,"    Vaten met volledige doorstroming:"]
[null,"23 Maximaal toelaatbaar waterdebiet",null,null,null,null,null,"Qmax,adm",null,null,null,2.5,"m³/h"]
[null,"24 Piekdebiet doorheen het vat",null,null,null,null,null,"Qpeak",null,null,null,2,"m³/h",null,"Qpeak ≤ Qmax,adm",null,"OK"]

{"sheet":"Directives","index":4,"n_rows":328,"n_cols":17,"rows_kept":328,"cut":false,"hidden":false,"merged":[[30,0,31,0],[2,12,2,17],[3,12,3,13],[10,4,10,5],[24,0,25,0],[2,1,2,8],[202,0,203,0],[143,0,144,0],[37,0,38,0],[41,0,42,0],[60,0,61,0],[71,0,72,0],[79,0,80,0],[84,0,85,0],[91,0,92,0],[96,0,97,0],[102,0,103,0],[112,0,113,0],[133,0,134,0],[238,12,238,13],[287,12,287,17],[237,1,237,7],[237,12,237,16],[286,12,286,16],[255,1,255,3],[57,3,57,5],[286,1,286,3],[213,0,214,0],[221,0,222,0],[226,0,227,0],[207,0,208,0],[146,0,147,0],[152,0,153,0],[158,0,159,0],[164,0,165,0],[171,0,172,0],[176,0,177,0],[183,0,184,0],[187,0,188,0],[192,0,193,0],[197,0,198,0]]}
[]
[]
[null,"DIRECTIVES POUR LE REMPLISSAGE DE LA FEUILLE DE CALCUL",null,null,null,null,null,null,null,null,null,"Lien vers :","Principe de fonctionnement d'un vase d'expansion (3 situations)"]
[null,null,null,null,null,null,null,null,null,null,null,null,"Exemple de calcul"]
[null,"L'utilisation de la feuille de calcul se déroule en 3 étapes :"]
[]
[null,"1. Introduction des données de l'installation"]
[null,"2. Calcul des valeurs intermédiaires"]
[null,"3. Choix du vase d'expansion et réalisation de certains contrôles destinés à confirmer ce choix"]
[]
[null,"Dans la feuille de calcul, seuls",null,null,"les champs encadrés",null," doivent être complétés par l'utilisateur;"]
[null,"tous les autres champs sont protégés et sont automatiquement calculés et complétés sur la base des formules qui sont explicitement mentionnées."]
[]
[null,"Vous pouvez cliquer sur chaque paramètre de la feuille de calcul 'Calcul - Berekening' pour obtenir davantage d'informations au sujet du paramètre en question."]
[null,"Vous serez alors redirigés vers l'onglet 'Directives' pour la description détaillée du paramètre."]
[]
[]
[]
[]
[]
[]
[]
[null,"DONNEES D'INTRODUCTION POUR L'INSTALLATION"]
[]
["retour vers la feuille de calcul","1.","Contenance en eau du boiler (Vbal en litres)"]
[null,null,"Contenance en eau maximale du boiler."]
[null,null,"Pour les boilers raccordés à une (ou plusieurs) boucle(s) de circulation d'ECS, la contenance en eau au sein de la (des) boucle(s) devrait également être prise en compte dans le volume Vbal. Certains fabricants"]
[null,null,"en tiennent compte en multipliant la contenance en eau du boiler par un facteur d'une valeur forfaitaire de 1,10 à 1,25."]
[]
[]
["retour vers la feuille de calcul","2.","Température de consigne pour l'eau chaude sanitaire (Tmax en °C)"]
[null,null,"Température maximale de l'eau, réglée pour la production de l'ECS destinée au boiler."]
[null,null,"Etant donné l'éventuel impact négatif sur l'installation, cette température de consigne réglable ne peut en principe pas être modifiée par la suite (sauf si l'installation devait le permettre);"]
[null,null,"si le vase d'expansion a été dimensionné avec Tmax = 60 °C, la température maximale de l'eau ne peut pas être augmentée à Tmax = 70 °C sans aucun contrôle préalable."]
[null,null,"La température de l'eau chaude dans le boiler devrait s'élever à 60 °C minimum (pour prévenir le développement de légionelles)."]
[]
[]
["retour vers la feuille de calcul","3.","Pression de tarage de la soupape de sûreté (psv en bar)"]
[null,null,"Pression, réglée par le fabricant, à laquelle la soupape s'ouvre (généralement 6, 7 ou 8 bar pour les installations résidentielles)."]
[]
[]
["retour vers la feuille de calcul","4.","Pression de l'eau dans l'installation au niveau du vase d'expansion (pi en bar)"]
[null,null,"La pression d'eau pi est mesurée à température d'eau froide (Twater = 10 °C)."]
[null,null,"Cette pression d'eau dépend de la pression au niveau du compteur d'eau de la conduite principale (2,5 bar, par exemple) et de la différence de hauteur entre le compteur d'eau et le vase d'expansion sanitaire (0,1 bar par mètre de différence de hauteur)."]
[null,null,"En présence d'un régulateur de pression entre le compteur d'eau et le vase d'expansion, la pression au niveau du vase est évidemment liée à la pression réglée au niveau de cet appareil et"]
[null,null,"l'éventuelle différence de hauteur entre cet appareil et le vase d'expansion (0,1 bar par mètre de différence de hauteur)."]
[null,null,"Remarque :","Les différences de hauteur dont question ci-avant doivent être encodées positivement si le vase d'expansion est situé plus haut que le compteur d'eau/régulateur de pression et négativement dans le cas contraire."]
[]
[null,null,"Ci-dessous, nous détaillons 3 situations possibles :"]
[null,null,"A. La pression statique est mesurée au niveau du vase d'expansion --> la valeur pi peut être lue au niveau du manomètre."]
[null,null,"B. Installation sans régulateur de pression : La pression statique est déduite de la pression au niveau du compteur d'eau (pcompteur) --> pi = pcompteur + 0,1 bar/m de différence de hauteur"]
[null,null,"    vb. pcompteur = 2,5 bar; hcompteur = 0 m; hvase_expansion = 6 m --> pi = 2,5 - 0,6 = 1,9 bar"]
[null,null,"C. Installation avec régulateur de pression : La pression statique est déduite de la pression réglée au niveau du réducteur de pression (préduction) --> pi = préduction + 0,1 bar/m de différence de hauteur"]
[null,null,"    vb. préduction = 3,0 bar; hréduction = 0 m; hvase_expansion = -3 m --> pi = 3,0 + 0,3 = 3,3 bar"]
[]
[null,null,"Remarque :","Pour maintenir la pression d'eau (froide) sous une certaine valeur (3 bar, par exemple), un réducteur de pression peut être prévu en amont du boiler."]
[null,null,null,"Un réducteur de pression peut également être nécessaire pour garantir le bon fonctionnement des soupapes de sûreté."]
[null,null,null,{"$f":"HYPERLINK(Langage!B59,\"(voir \"&Langage!B60&\")\")","v":"(voir CSTC-FAQ n° 166)"}]
[]
[]
["retour vers la feuille de calcul","5.","Différence de hauteur entre le vase d'expansion et la soupape de sûreté (Dh en mètres)"]
[null,null,"La soupape de sûreté est en principe placée le plus près possible du boiler et ce, tout comme le vase d'expansion."]
[null,null,"Certains fabricants conseillent de monter la soupape de sûreté au-dessus du bord supérieur du boiler. Ainsi, la soupape est au contact d'une eau moins"]
[null,null,"chaude (ce qui réduit les dépôts de tartre). Pour effectuer des travaux sur la soupape de sûreté, il n'est par ailleurs pas nécessaire de vidanger le boiler."]
[]
[null,null,"Cette différence de hauteur doit être encodée positivement si le vase d'expansion est situé plus bas que la soupape de sûreté et négativement dans le cas contraire."]
[null,null,"Si Dh = 0, le chiffre '0' doit être encodé dans ce champ obligatoire."]
[]
[]
[null,"CALCULS INTERMEDIAIRES"]
[]
["retour vers la feuille de calcul","6.","Coefficient d'expansion (e en %)"]
[null,null,"Le coefficient d'expansion caractérise l'augmentation de volume de l'eau en fonction du réchauffement."]
[null,null,"Ce coefficient correspond à l'augmentation de volume qui apparaît à la température maximale annoncée (par exemple 60°C) par rapport au volume à la température de l’eau de remplissage (10 °C)."]
[]
[null,null,"Température de l'eau Twater (°C)",null,null,10,50,60,70,80,90]
[null,null,"Coefficient d'expansion (%)",null,null,0,1.18,1.68,2.25,2.89,3.57]
[]
[]
["retour vers la feuille de calcul","7.","Volume d'expansion de l'eau (Vex en litres)"]
[null,null,"Augmentation de volume de l'eau lors de son réchauffement (de 10 °C jusqu'à la valeur Tmax)."]
[null,null,"Le volume d'expansion de l'eau est égal au produit de la contenance en eau du boiler (Vbal) et du coefficient d'expansion (e)."]
[]
[]
["retour vers la feuille de calcul","8.","Pression maximale de gonflage du vase (p0,max en bar)"]
[null,null,"Pression maximale de gonflage du vase lorsque ce dernier ne contient pas encore d'eau."]
[null,null,"Cette pression maximale est souvent choisie de façon telle qu'elle soit inférieure de 0,2 à 0,3 bar par rapport à la pression d'eau pi."]
[null,null,"De la sorte, on garantit toujours une petite réserve d'eau (Vwr) dans le vase d'expansion lorsque l'installation est refroidie."]
[null,null,"NB. Dans la norme allemande DIN 4807-5, la valeur p0,max est égale à pi - 0,2."]
[]
[]
["retour vers la feuille de calcul","9.","Différence de pression consécutive à Dh (Dp en bar)"]
[null,null,"Différence de pression liée à la différence de hauteur entre le vase d'expansion et la soupape de sûreté."]
[null,null,"Cette différence de pression est positive si le vase d'expansion est plus bas que la soupape de sûreté et négative dans le cas contraire."]
[]
[]
["retour vers la feuille de calcul","10.","Pression maximale admissible (pf,max en bar)"]
[null,null,"Avec un boiler contenant de l'eau normalement réchauffée (Twater ≤ Tmax), la pression au niveau du vase d'expansion ne peut pas entraver le fonctionnement correct de la soupape de sûreté (ouverture et fermeture de la soupape)."]
[null,null,"La pression maximale au sein du vase d'expansion est dès lors généralement choisie de façon telle que la pression au niveau de la soupape de sûreté soit 15 à 20 % inférieure à la valeur psv."]
[null,null,"NB. Dans la norme allemande DIN 4807-5, la valeur pf,max est prise égale à 0,8 x psv."]
[]
[]
["retour vers la feuille de calcul","11.","Volume minimal du vase (VN,min en litres)"]
[null,null,"Volume minimal théorique du vase d'expansion, calculé sur la base de la loi de Boyle (le produit de la pression de gaz et du volume de gaz reste constant)."]
[null,null,"Pour VN,min, la norme européenne NBN EN 806-2 prévoit une valeur minimale de 4 % du volume du boiler Vbal."]
[]
[]
[]
[null,"CHOIX DU VASE D'EXPANSION"]
[]
[null,null,"Filtres (ceci permet de réduire le nombre de résultats issus de la base de données)"]
[]
["retour vers la feuille de calcul",null,"Vase avec/sans circulation forcée"]
[null,null,"Les vases peuvent être traversés (ou non) par l'eau qui circule dans la conduite à laquelle ils sont raccordés."]
[null,null,"Les vases à circulation forcée peuvent par ailleurs être traversés partiellement ou complètement par l'eau qui circule dans la conduite (voir exemples ci-dessous de modèles disponibles sur le marché)."]
[]
[]
[]
[]
[]
[]
[]
[]
[]
[]
[]
[]
[null,null,"Vessie/Membrane",null,null,"Vessie",null,null,"Membrane",null,null,"Vessie"]
[null,null,"Circulation partielle/totale",null,null,"Partielle",null,null,"Totale",null,null,"Totale"]
[]
[null,null,"Pour limiter les stagnations d'eau dans le vase (et réduire ainsi le risque de développement de légionelles), les vases d'expansion à circulation forcée sont à privilégier. Pour les bâtiments en Flandre"]
[null,null,"qui doivent légalement répondre aux exigences \"BBT\", les vases d'expansion doivent être traversés par la totalité du débit d'eau chaude."]
[]
["retour vers la feuille de calcul",null,"Position"]
[null,null,"Selon le modèle, les vases d'expansion peuvent être installés verticalement ou horizontalement (voir exemples ci-dessous de modèles disponibles sur le marché)."]
[]
[]
[]
[]
[]
[]
[]
[]
["retour vers la feuille de calcul",null,"Membrane/Vessie interchangeable"]
[null,null,"Certains vases d'expansion disposent d'une membrane/vessie qui peut être remplacée en cas de dégradation de celle-ci."]
[]
["retour vers la feuille de calcul",null,"Marque"]
[null,null,"Vous pouvez filtrer les vases d'expansion qui répondent au critère VN ≥ VN,min selon la marque du fabricant."]
[null,null,"Ces différentes marques sont reprises dans une liste non exhaustive. Les fabricants qui souhaitent faire introduire/modifier les données relatives à leurs produits dans notre base de données peuvent nous"]
[null,null,"contacter via notre site web."]
[]
[]
[{"$f":"IF(Langage!K81=0,HYPERLINK(\"#'\"&Langage!I81&\"'!$E$40\",\"retour vers la feuille de calcul\"),HYPERLINK(\"#'\"&Langage!I81&\"'!$E$41\",\"retour vers la feuille de calcul\"))","v":"retour vers la feuille de calcul"},null,"Type"]
[null,null,"Dans le champ 'Type', le modèle de vase choisi est indiqué."]
[null,null,"Ce modèle peut être sélectionné dans la base de données (via le menu déroulant en partie supérieure de l'onglet 'Choix vase - Keuze vat')"]
[null,null,"ou peut être encodé manuellement (par exemple si le modèle souhaité n'est pas contenu dans la base de données)."]
[]
[]
[{"$f":"IF(Langage!G26=0,HYPERLINK(\"#'\"&Langage!I81&\"'!$I$45\",\"retour vers la feuille de calcul\"),HYPERLINK(\"#'\"&Langage!I81&\"'!$K$45\",\"retour vers la feuille de calcul\"))","v":"retour vers la feuille de calcul"},"12.","Volume nominal du vase (VN en litres)"]
[null,null,"Volume (capacité brute) du vase d'expansion qui est effectivement installé (cette valeur est mentionnée par le fabricant)."]
[null,null,"Ce volume doit au moins être égal au volume calculé VN,min."]
[null,null,"Le volume du vase VN ne doit pas être pris trop grand par rapport au volume VN,min (pour limiter le risque de stagnation d'eau dans le vase)."]
[]
[]
[{"$f":"IF(Langage!G26=0,HYPERLINK(\"#'\"&Langage!I81&\"'!$I$46\",\"retour vers la feuille de calcul\"),HYPERLINK(\"#'\"&Langage!I81&\"'!$K$46\",\"retour vers la feuille de calcul\"))","v":"retour vers la feuille de calcul"},"13.","Température de service admissible (Tmax,adm en °C)"]
[null,null,"Il s'agit de la température maximale de l'eau chaude sanitaire qui peut être en contact continu avec la membrane/vessie du modèle de vase choisi (cette valeur est mentionnée par le fabricant)."]
[null,null,"Selon la norme produit NBN EN 13831, la membrane/vessie d'un vase d'expansion sanitaire doit pouvoir résister à une température de 70 °C."]
[null,null,"Lors du choix du vase d'expansion, il faut contrôler que la valeur Tmax (réglée pour l'eau chaude dans le boiler) ne dépasse pas la valeur Tmax,adm du vase d'expansion."]
[null,null,"Remarque :","Les autres parties de l'installation qui entrent en contact avec l'eau chaude sanitaire (les conduites, par exemple) doivent également résister à la température Tmax."]
[]
[]
[{"$f":"IF(Langage!G26=0,HYPERLINK(\"#'\"&Langage!I81&\"'!$I$47\",\"retour vers la feuille de calcul\"),HYPERLINK(\"#'\"&Langage!I81&\"'!$K$47\",\"retour vers la feuille de calcul\"))","v":"retour vers la feuille de calcul"},"14.","Pression de gonflage ajustée en usine (p0,fabr en bar)"]
[null,null,"Pression dans le vase (du côté gaz) lorsque celui-ci ne contient pas encore d'eau (pression ajustée en usine). Cette valeur est mentionnée par le fabricant et est généralement égale à 3 ou 4 bar."]
[null,null,"Si cette valeur p0,fabr est plus grande que la valeur p0,max (voir point n° 8 ci-dessus), la pression de gonflage du vase doit être adaptée par l'installateur --> voir point n° 15 ci-dessous."]
[]
[]
[{"$f":"IF(Langage!G26=0,HYPERLINK(\"#'\"&Langage!I81&\"'!$I$48\",\"retour vers la feuille de calcul\"),HYPERLINK(\"#'\"&Langage!I81&\"'!$K$48\",\"retour vers la feuille de calcul\"))","v":"retour vers la feuille de calcul"},"15.","Pression de gonflage ajustée sur site (p0 en bar)"]
[null,null,"Pression dans le vase (du côté gaz) qui est, si nécessaire, adaptée sur site par l'installateur."]
[null,null,"Cette valeur adaptée p0 doit être plus petite ou égale à la valeur maximale p0,max."]
[null,null,"Cette pression p0 ne peut toutefois pas être choisie trop petite par rapport à la pression p0,max. Si cette valeur p0 est en effet choisie trop petite, le volume d'eau dans le vase (pour Twater = Tmax ) peut parfois être trop élevé ce qui sollicite"]
[null,null,"alors davantage la membrane/vessie avec à la clé une possible usure prématurée de cette dernière. Pour éviter cela, certains fabricants mentionnent un volume d'eau maximal que peut contenir le vase (voir points n° 19 et 21 ci-après)."]
[]
[]
[{"$f":"IF(Langage!G26=0,HYPERLINK(\"#'\"&Langage!I81&\"'!$I$49\",\"retour vers la feuille de calcul\"),HYPERLINK(\"#'\"&Langage!I81&\"'!$K$49\",\"retour vers la feuille de calcul\"))","v":"retour vers la feuille de calcul"},"16.","Volume de réserve d'eau réel (Vwr en litres)"]
[null,null,"Réserve d'eau réelle qui reste dans le vase d'expansion lorsque l'installation est refroidie (Twater = 10 °C)."]
[]
[]
[{"$f":"IF(Langage!G26=0,HYPERLINK(\"#'\"&Langage!I81&\"'!$I$50\",\"retour vers la feuille de calcul\"),HYPERLINK(\"#'\"&Langage!I81&\"'!$K$50\",\"retour vers la feuille de calcul\"))","v":"retour vers la feuille de calcul"},"17.","Pression finale (pf en bar)"]
[null,null,"Pression finale réelle au sein du vase d'expansion installé lorsque l'eau dans le boiler est à température maximale (Twater = Tmax)."]
[null,null,"Cette pression finale doit être inférieure à la pression maximale admissible pf,max (voir point n° 10 ci-avant)."]
[]
[]
[{"$f":"IF(Langage!G26=0,HYPERLINK(\"#'\"&Langage!I81&\"'!$I$51\",\"retour vers la feuille de calcul\"),HYPERLINK(\"#'\"&Langage!I81&\"'!$K$51\",\"retour vers la feuille de calcul\"))","v":"retour vers la feuille de calcul"},"18.","Pression nominale de service admissible (pmax en bar)"]
[null,null,"Pression nominale de service du vase d'expansion installé (cette valeur est mentionnée par le fabricant)."]
[null,null,"Cette valeur pmax ne peut pas être inférieure à la valeur psv (voir point n° 3) augmentée de 20 %, en tenant également compte de l'éventuelle différence de hauteur Dh entre le vase d'expansion et la soupape de sûreté (voir points n° 5 et 9 ci-dessus)."]
[]
[]
[{"$f":"IF(Langage!G26=0,HYPERLINK(\"#'\"&Langage!I81&\"'!$I$52\",\"retour vers la feuille de calcul\"),HYPERLINK(\"#'\"&Langage!I81&\"'!$K$52\",\"retour vers la feuille de calcul\"))","v":"retour vers la feuille de calcul"},"19.","Volume utile admissible (Vutile,adm en litres)"]
[null,null,"Il s'agit du volume d'eau maximal que peut contenir le modèle de vase choisi."]
[null,null,"Cette valeur est mentionnée par certains fabricants et ce, afin de limiter les déformations de la membrane/vessie (et ainsi de réduire le risque de dégradation prématurée de cette dernière)."]
[]
[]
[{"$f":"IF(Langage!G26=0,HYPERLINK(\"#'\"&Langage!I81&\"'!$I$53\",\"retour vers la feuille de calcul\"),HYPERLINK(\"#'\"&Langage!I81&\"'!$K$53\",\"retour vers la feuille de calcul\"))","v":"retour vers la feuille de calcul"},"20.","Volume d'eau maximal dans le vase (eau à 60 °C) (Vwater en litres)"]
[null,null,"Il s'agit du volume d'eau réel au sein du vase d'expansion installé lorsque l'eau dans le boiler est à température maximale (Twater = Tmax)."]
[null,null,"Cette valeur Vwater ne peut pas être plus grande que la valeur Vutile,adm dont question ci-dessus."]
[]
[]
[{"$f":"IF(Langage!G26=0,HYPERLINK(\"#'\"&Langage!I81&\"'!$I$54\",\"retour vers la feuille de calcul\"),HYPERLINK(\"#'\"&Langage!I81&\"'!$K$54\",\"retour vers la feuille de calcul\"))","v":"retour vers la feuille de calcul"},"21.","Effet utile admissible (hutile,adm)"]
[null,null,"Il s'agit du rapport maximal entre le volume d'eau présent dans un vase d'expansion et son volume nominal VN."]
[null,null,"hutile,adm = Vutile,adm / VN"]
[null,null,"Ce rendement peut être limité par le fabricant à une certaine valeur (60 %, par exemple) pour limiter le risque de dégradation prématurée de la membrane/vessie."]
[]
[]
[{"$f":"IF(Langage!G26=0,HYPERLINK(\"#'\"&Langage!I81&\"'!$I$55\",\"retour vers la feuille de calcul\"),HYPERLINK(\"#'\"&Langage!I81&\"'!$K$55\",\"retour vers la feuille de calcul\"))","v":"retour vers la feuille de calcul"},"22.","Rendement d'utilisation réel (hwater)"]
[null,null,"Il s'agit du rapport entre le volume d'eau, présent dans le boiler lorsque celui-ci est à température maximale (Twater = Tmax), et le volume nominal du vase d'expansion installé."]
[null,null,"hwater = Vwater / VN"]
[null,null,"Cette valeur hwater ne peut pas être supérieure à la valeur hutile,adm dont question ci-dessus."]
[]
[]
[null,null,"Vases à ciculation forcée avec passage intégral de l'eau :"]
[]
[{"$f":"IF(Langage!G26=0,HYPERLINK(\"#'\"&Langage!I81&\"'!$I$58\",\"retour vers la feuille de calcul\"),HYPERLINK(\"#'\"&Langage!I81&\"'!$K$58\",\"retour vers la feuille de calcul\"))","v":"retour vers la feuille de calcul"},"23.","Débit d'eau maximal admissible (Qmax,adm en m³/h)"]
[null,null,"Il s'agit du débit d'eau maximal qui peut traverser le vase d'expansion à circulation forcée (pour un vase avec passage intégral du débit d'eau circulant dans la conduite à laquelle est branchée ce vase)."]
[null,null,"Cette valeur Qmax,adm devrait être mentionnée par le fabricant."]
[]
[]
[{"$f":"IF(Langage!G26=0,HYPERLINK(\"#'\"&Langage!I81&\"'!$I$59\",\"retour vers la feuille de calcul\"),HYPERLINK(\"#'\"&Langage!I81&\"'!$K$59\",\"retour vers la feuille de calcul\"))","v":"retour vers la feuille de calcul"},"24.","Débit de pointe traversant le vase (Qpeak en m³/h)"]
[null,null,"Il s'agit du débit de pointe (calculé) qui devrait pouvoir passer au travers du vase d'expansion installé."]
[null,null,"Si la valeur Qpeak est plus grande que la valeur Qmax,adm, une option consiste à prévoir un by-pass du vase d'expansion."]
[]
[]
[]
[]
[]
[]
[]
[]
[null,"PRINCIPE DE FONCTIONNEMENT D'UN VASE D'EXPANSION",null,null,null,null,null,null,null,null,null,"Lien vers :","Directives pour le remplissage de la feuille de calcul"]
[null,null,null,null,null,null,null,null,null,null,null,null,"Exemple de calcul"]
[]
[null,"Lorsqu'on chauffe de l'eau, le volume occupé par ce liquide augmente."]
[null,"Exemple : Un volume d'eau de 100 litres dont la température (Twater) monte de 10 à 60 °C, va occuper un volume (d'expansion) supplémentaire de 1,7 litres."]
[]
[]
[]
[]
[]
[]
[]
[]
[]
[null,"Ce volume d'eau supplémentaire fait augmenter la pression d'eau dans une installation fermée."]
[null,"Un vase d'expansion peut faire en sorte de maintenir la pression d'eau dans l'installation à une valeur la plus constante possible et ce, en absorbant ce volume d'eau supplémentaire."]
[]
[null,"Plus d'info :"]
[null,"CSTC-Dossier Nr. 2019/06.08"]
[]
[]
[null,"Lors du calcul d'un vase d'expansion, on distingue 3 stades (voir les schémas ci-dessous):"]
[]
[null,"-","Pression de gonflage (p0). Il s'agit de la pression (côté gaz) avec laquelle le vase est rempli. A ce stade, le vase ne contient pas d'eau."]
[null,null,"Cette pression de gonflage doit, si nécessaire, être adaptée (voir point n° 15 ci-dessus)."]
[null,"-","Pression de remplissage (pi). Il s'agit de la pression dans le vase lorsque l'installation est remplie avec de l'eau froide (Twater = 10 °C; voir point n° 4 ci-dessus)."]
[null,null,"A ce stade, le vase est rempli d'un volume d'eau correspondant au 'volume de réserve' Vwr (voir point n° 16 ci-dessus). Il s'agit du volume d'eau qui doit au moins être présent dans le vase."]
[null,"-","Pression finale (pf). Il s'agit de la pression dans le vase lorsque la température dans l'installation est maximale (Twater = Tmax; voir point n° 17 ci-dessus)."]
[null,null,"A ce stade, le vase est rempli d'un volume d'eau qui correspond au 'volume de réserve' Vwr augmenté du 'volume d'expansion' Vex."]
[]
[]
[]
[]
[]
[]
[]
[]
[]
[]
[]
[]
[null,null,"Pression de gonflage",null,null,null,"Pression de remplissage",null,null,null,"Pression finale"]
[]
[]
[]
[]
[]
[]
[]
[null,"EXEMPLE DE CALCUL",null,null,null,null,null,null,null,null,null,"Lien vers :","Directives pour le remplissage de la feuille de calcul"]
[null,null,null,null,null,null,null,null,null,null,null,null,"Principe de fonctionnement d'un vase d'expansion (3 situations)"]
[]
[]
[null,"DONNEES A INTRODUIRE :"]
[null,"1 Contenance en eau du boiler",null,null,null,null,null,null,null,"Vbal",100,"ℓ"]
[null,"2 Température de consigne pour l'eau chaude sanitaire",null,null,null,null,null,null,null,"Tmax",60,"°C"]
[null,"3 Pression de tarage de la soupape de sûreté",null,null,null,null,null,null,null,"psv",7,"bar"]
[null,"4 Pression de l'eau dans l'installation au niveau du vase d'expansion",null,null,null,null,null,null,null,"pi",3,"bar"]
[null,"5 Différence de hauteur (Dh) entre le vase d'expansion et la soupape de sûreté",null,null,null,null,null,null,null,"Dh",1,"m"]
[]
[]
[null,"CALCULS INTERMEDIAIRES :"]
[null,"6 Coefficient d'expansion (remplissage à 10°C)",null,null,null,null,null,"e",null,null,1.68,"%"]
[null,"7 Volume d'expansion de l'eau",null,null,null,null,null,"Vex",null,null,1.7,"ℓ"]
[null,"8 Pression maximale de gonflage du vase",null,null,null,null,null,"p0,max = pi -0,2",null,null,2.8,"bar"]
[null,"9 Différerence de pression consécutive à Dh",null,null,null,null,null,"Dp",null,null,0.1]
[null,"10 Pression maximale admissible",null,null,null,null,null,"pf,max = (psv x 0,8) + Dp",null,null,5.7]
[null,"11 Volume minimal du vase",null,null,null,null,null,"VN,min",null,null,4.3999999999999995,"ℓ"]
[]
[]
[null,"CHOIX DU VASE D'EXPANSION :"]
[]
[null,"Vase à circulation forcée : OUI"]
[null,"Marque : EXPANSION"]
[null,"Type : V8 (10)",null,null,null,null,null,null,null,null,null,"(Données du fabricant)",null,null,"CONTROLES"]
[]
[null,"12 Volume nominal du vase",null,null,null,null,null,"VN",null,null,null,8,"ℓ",null,"VN ≥ VN,min",null,"OK"]
[null,"13 Température de service admissible",null,null,null,null,null,"Tmax,adm",null,null,null,70,"°C",null,"Tmax,adm ≥ Tmax",null,"OK"]
[null,"14 Pression de gonflage ajustée en usine",null,null,null,null,null,"p0,fabr",null,null,null,4,"bar"]
[null,"15 Pression de gonflage ajustée sur site",null,null,null,null,null,"p0",null,null,null,2.5,"bar",null,"p0 ≤ p0,max",null,"OK"]
[null,"16 Volume de réserve d'eau réel",null,null,null,null,null,"Vwr = VN x (pi - p0) / (pi + 1)",null,null,null,1,"ℓ"]
[null,"17 Pression finale",null,null,null,null,null,"pf = ((p0+1) x VN / (VN - Vex - Vwr)) - 1",null,null,null,4.2631578947368416,"bar",null,"pf ≤ pf,max",null,"OK"]
[null,"18 Pression nominale de service admissible",null,null,null,null,null,"pmax",null,null,null,10,"bar",null,"pmax ≥ psv*1,2 + Dp",null,"OK"]
[null,"19 Volume utile admissible",null,null,null,null,null,"Vutile,adm",null,null,null,6,"ℓ"]
[null,"20 Volume d'eau maximal dans le vase (eau à 60 °C)",null,null,null,null,null,"Vwater = Vex + Vwr",null,null,null,2.6799999999999997,"ℓ",null,"Vwater ≤ Vutile,adm",null,"OK"]
[null,"21 Effet utile admissible",null,null,null,null,null,"hutile,adm",null,null,null,0.75,"-"]
[null,"22 Rendement d'utilisation réel",null,null,null,null,null,"hwater = (Vex+Vwr) / VN",null,null,null,0.33499999999999996,"-",null,"hwater ≤ hutile,adm",null,"OK"]
[]
[null,"    Vases à circulation inégrale du débit :"]
[null,"23 Débit d'eau maximal admissible",null,null,null,null,null,"Qmax,adm",null,null,null,2.5,"m³/h"]
[null,"24 Débit de pointe traversant le vase",null,null,null,null,null,"Qpeak",null,null,null,2,"m³/h",null,"Qpeak ≤ Qmax,adm",null,"OK"]

{"sheet":"Langage","index":5,"n_rows":136,"n_cols":17,"rows_kept":136,"cut":false,"hidden":true,"merged":[]}
["Choix"]
[null,1,2]
[{"$f":"'Calcul - Berekening'!D2","v":"Français"},"Français","Nederlands",null,null,"FR","NL"]
[]
[{"$f":"IF(A$3=B$3,B5,C5)","v":"Feuille de calcul destinée au dimensionnement du volume d'un vase d'expansion sanitaire"},"Feuille de calcul destinée au dimensionnement du volume d'un vase d'expansion sanitaire","Rekenblad voor de bepaling van het volume van een sanitair expansievat"]
[{"$f":"IF(A$3=B$3,B6,C6)","v":"Références"},"Références","Referentie"]
[{"$f":"IF(A$3=B$3,B7,C7)","v":"Données relatives à l'installation"},"Données relatives à l'installation","Invoergegevens voor de installatie"]
[{"$f":"IF(A$3=B$3,B8,C8)","v":"Calculs"},"Calculs","Berekening"]
["Choix du vase d'expansion","Choix du vase d'expansion","Keuze van het expansievat"]
[0]
[{"$f":"IF(A$3=B$3,B11,C11)","v":"1 Contenance en eau du boiler"},"1 Contenance en eau du boiler","1 Waterinhoud van de boiler of het warmwatervoorraadvat",null,null,{"$f":"HYPERLINK(CELL(\"address\",Directives!B25))","v":"[Vase_d_expansion_sanitaire_Sanitair_expansievat_v1.1.FR.xlsm]Directives!$B$25"},{"$f":"HYPERLINK(CELL(\"address\",Richtlijnen!B25))","v":"[Vase_d_expansion_sanitaire_Sanitair_expansievat_v1.1.FR.xlsm]Richtlijnen!$B$25"}]
["2 Température de consigne pour l'eau chaude sanitaire","2 Température de consigne pour l'eau chaude sanitaire","2 Ontwerptemperatuur voor het sanitair warm water",null,null,{"$f":"HYPERLINK(CELL(\"address\",Directives!B31))","v":"[Vase_d_expansion_sanitaire_Sanitair_expansievat_v1.1.FR.xlsm]Directives!$B$31"},{"$f":"HYPERLINK(CELL(\"address\",Richtlijnen!B31))","v":"[Vase_d_expansion_sanitaire_Sanitair_expansievat_v1.1.FR.xlsm]Richtlijnen!$B$31"}]
[{"$f":"IF(A$3=B$3,B13,C13)","v":"3 Pression de tarage de la soupape de sûreté"},"3 Pression de tarage de la soupape de sûreté","3 Insteldruk van het veiligheidsventiel",null,null,{"$f":"HYPERLINK(CELL(\"address\",Directives!B38))","v":"[Vase_d_expansion_sanitaire_Sanitair_expansievat_v1.1.FR.xlsm]Directives!$B$38"},{"$f":"HYPERLINK(CELL(\"address\",Richtlijnen!B38))","v":"[Vase_d_expansion_sanitaire_Sanitair_expansievat_v1.1.FR.xlsm]Richtlijnen!$B$38"}]
[{"$f":"IF(A$3=B$3,B14,C14)","v":"4 Pression de l'eau dans l'installation au niveau du vase d'expansion"},"4 Pression de l'eau dans l'installation au niveau du vase d'expansion","4 Waterdruk in de installatie ter hoogte van het sanitair expansievat",null,null,{"$f":"HYPERLINK(CELL(\"address\",Directives!B42))","v":"[Vase_d_expansion_sanitaire_Sanitair_expansievat_v1.1.FR.xlsm]Directives!$B$42"},{"$f":"HYPERLINK(CELL(\"address\",Richtlijnen!B42))","v":"[Vase_d_expansion_sanitaire_Sanitair_expansievat_v1.1.FR.xlsm]Richtlijnen!$B$42"}]
[{"$f":"IF(A$3=B$3,B15,C15)","v":"5 Différence de hauteur (delta h) entre le vase d'expansion et la soupape de sûreté"},"5 Différence de hauteur (delta h) entre le vase d'expansion et la soupape de sûreté","5 Hoogteverschil (delta h) tussen expansievat en veiligheidsventiel",null,null,{"$f":"HYPERLINK(CELL(\"address\",Directives!B61))","v":"[Vase_d_expansion_sanitaire_Sanitair_expansievat_v1.1.FR.xlsm]Directives!$B$61"},{"$f":"HYPERLINK(CELL(\"address\",Richtlijnen!B61))","v":"[Vase_d_expansion_sanitaire_Sanitair_expansievat_v1.1.FR.xlsm]Richtlijnen!$B$61"}]
[]
["6 Coefficient d'expansion (remplissage à 10°C)","6 Coefficient d'expansion (remplissage à 10°C)","6 Expansiecoëfficiënt (vulling op 10°C)",null,null,{"$f":"HYPERLINK(CELL(\"address\",Directives!B72))","v":"[Vase_d_expansion_sanitaire_Sanitair_expansievat_v1.1.FR.xlsm]Directives!$B$72"},{"$f":"HYPERLINK(CELL(\"address\",Richtlijnen!B72))","v":"[Vase_d_expansion_sanitaire_Sanitair_expansievat_v1.1.FR.xlsm]Richtlijnen!$B$72"}]
[{"$f":"IF(A$3=B$3,B18,C18)","v":"7 Volume d'expansion de l'eau"},"7 Volume d'expansion de l'eau","7 Expansievolume van het water",null,null,{"$f":"HYPERLINK(CELL(\"address\",Directives!B80))","v":"[Vase_d_expansion_sanitaire_Sanitair_expansievat_v1.1.FR.xlsm]Directives!$B$80"},{"$f":"HYPERLINK(CELL(\"address\",Richtlijnen!B80))","v":"[Vase_d_expansion_sanitaire_Sanitair_expansievat_v1.1.FR.xlsm]Richtlijnen!$B$80"}]
[{"$f":"IF(A$3=B$3,B19,C19)","v":"8 Pression maximale de gonflage du vase"},"8 Pression maximale de gonflage du vase","8 Maximale voordruk van het vat",null,null,{"$f":"HYPERLINK(CELL(\"address\",Directives!B85))","v":"[Vase_d_expansion_sanitaire_Sanitair_expansievat_v1.1.FR.xlsm]Directives!$B$85"},{"$f":"HYPERLINK(CELL(\"address\",Richtlijnen!B85))","v":"[Vase_d_expansion_sanitaire_Sanitair_expansievat_v1.1.FR.xlsm]Richtlijnen!$B$85"}]
[{"$f":"IF(A$3=B$3,B20,C20)","v":"valeur par défaut :"},"valeur par défaut :","default value :"]
[{"$f":"IF(A$3=B$3,B21,C21)","v":"9 Différerence de pression consécutive à 'delta h'"},"9 Différerence de pression consécutive à 'delta h'","9 Drukverschil te wijten aan 'delta h'",null,null,{"$f":"HYPERLINK(CELL(\"address\",Directives!B92))","v":"[Vase_d_expansion_sanitaire_Sanitair_expansievat_v1.1.FR.xlsm]Directives!$B$92"},{"$f":"HYPERLINK(CELL(\"address\",Richtlijnen!B92))","v":"[Vase_d_expansion_sanitaire_Sanitair_expansievat_v1.1.FR.xlsm]Richtlijnen!$B$92"}]
["10 Pression maximale admissible","10 Pression maximale admissible","10 Maximaal toelaatbare druk",null,null,{"$f":"HYPERLINK(CELL(\"address\",Directives!B97))","v":"[Vase_d_expansion_sanitaire_Sanitair_expansievat_v1.1.FR.xlsm]Directives!$B$97"},{"$f":"HYPERLINK(CELL(\"address\",Richtlijnen!B97))","v":"[Vase_d_expansion_sanitaire_Sanitair_expansievat_v1.1.FR.xlsm]Richtlijnen!$B$97"}]
["valeur par défaut :","valeur par défaut :","default value :"]
[{"$f":"IF(A$3=B$3,B24,C24)","v":"11 Volume minimal du vase"},"11 Volume minimal du vase","11 Minimaal volume van het vat",null,null,{"$f":"HYPERLINK(CELL(\"address\",Directives!B103))","v":"[Vase_d_expansion_sanitaire_Sanitair_expansievat_v1.1.FR.xlsm]Directives!$B$103"},{"$f":"HYPERLINK(CELL(\"address\",Richtlijnen!B103))","v":"[Vase_d_expansion_sanitaire_Sanitair_expansievat_v1.1.FR.xlsm]Richtlijnen!$B$103"}]
[]
[{"$f":"IF(A$3=B$3,B26,C26)","v":"(Données du fabricant)"},"(Données du fabricant)","(Data van de fabrikant)",null,null,null,{"$f":"IF(OR('Calcul - Berekening'!$K$36=0,'Calcul - Berekening'!$K$36=\"\",'Calcul - Berekening'!$E$40=\"NOT IN DATABASE\"),1,0)","v":1},null,null,null,null,null,null,null,null,"FR","NL"]
[]
[{"$f":"IF(A$3=B$3,B28,C28)","v":"12 Volume nominal du vase"},"12 Volume nominal du vase","12 Werkelijk volume van het vat",null,{"$f":"IF(A$3=B$3,F28,G28)","v":"V(N,min) =  litres --> il faut donc choisir un modèle caractérisé par un volume nominal plus élevé!"},{"$f":"\"V(N,min) = \"&'Calcul - Berekening'!N31&\" litres --> il faut donc choisir un modèle caractérisé par un volume nominal plus élevé!\"","v":"V(N,min) =  litres --> il faut donc choisir un modèle caractérisé par un volume nominal plus élevé!"},{"$f":"\"V(N,min) = \"&'Calcul - Berekening'!N31&\" liter --> u moet dus kiezen voor een expansievat met een groter volume!\"","v":"V(N,min) =  liter --> u moet dus kiezen voor een expansievat met een groter volume!"},null,{"$f":"IF(A$3=B$3,J28,K28)","v":"Ce vase n'est-il pas surdimensionné? Le volume du modèle choisi est au moins 2 fois supérieur au volume minimal V(N,min) calculé. "},"Ce vase n'est-il pas surdimensionné? Le volume du modèle choisi est au moins 2 fois supérieur au volume minimal V(N,min) calculé. ","Is dit expansievat niet overgedimensioneerd? Het volume van dit vattype is minstens 2 keer groter dan het berekende minimaal volume V(N,min).",null,null,null,null,{"$f":"HYPERLINK(CELL(\"address\",Directives!B159))","v":"[Vase_d_expansion_sanitaire_Sanitair_expansievat_v1.1.FR.xlsm]Directives!$B$159"},{"$f":"HYPERLINK(CELL(\"address\",Richtlijnen!B159))","v":"[Vase_d_expansion_sanitaire_Sanitair_expansievat_v1.1.FR.xlsm]Richtlijnen!$B$159"}]
["13 Température de service admissible","13 Température de service admissible","13 Maximaal toegelaten watertemperatuur",null,{"$f":"IF(A$3=B$3,F29,G29)","v":"T(max) =  °C --> il faut donc choisir un modèle caractérisé par une température de service admissible plus élevée ou réduire la température de consigne pour l'ECS!"},{"$f":"\"T(max) = \"&'Calcul - Berekening'!N17&\" °C --> il faut donc choisir un modèle caractérisé par une température de service admissible plus élevée ou réduire la température de consigne pour l'ECS!\"","v":"T(max) =  °C --> il faut donc choisir un modèle caractérisé par une température de service admissible plus élevée ou réduire la température de consigne pour l'ECS!"},{"$f":"\"T(max) = \"&'Calcul - Berekening'!N17&\" °C --> u moet dus kiezen voor een expansievat met een grotere maximaal toegelaten watertemperatuur of de ontwerptemperatuur voor het SWW aanpassen!\"","v":"T(max) =  °C --> u moet dus kiezen voor een expansievat met een grotere maximaal toegelaten watertemperatuur of de ontwerptemperatuur voor het SWW aanpassen!"},null,null,null,null,null,null,null,null,{"$f":"HYPERLINK(CELL(\"address\",Directives!B165))","v":"[Vase_d_expansion_sanitaire_Sanitair_expansievat_v1.1.FR.xlsm]Directives!$B$165"},{"$f":"HYPERLINK(CELL(\"address\",Richtlijnen!B165))","v":"[Vase_d_expansion_sanitaire_Sanitair_expansievat_v1.1.FR.xlsm]Richtlijnen!$B$165"}]
["14 Pression de gonflage ajustée en usine","14 Pression de gonflage ajustée en usine","14 Door de fabrikant ingestelde voordruk",null,{"$f":"IF(A$3=B$3,F30,G30)","v":"p(0,max) =  bar --> il faut donc adapter la pression de gonflage du vase d'expansion! (--> 15 Pression de gonflage ajustée sur site)"},{"$f":"\"p(0,max) = \"&'Calcul - Berekening'!N26&\" bar --> il faut donc adapter la pression de gonflage du vase d'expansion! (--> 15 Pression de gonflage ajustée sur site)\"","v":"p(0,max) =  bar --> il faut donc adapter la pression de gonflage du vase d'expansion! (--> 15 Pression de gonflage ajustée sur site)"},{"$f":"\"p(0,max) = \"&'Calcul - Berekening'!N26&\" bar --> de voordruk van het expansievat dient dus aangepast te worden! (--> 15 Ter plaatse aangepaste voordruk)\"","v":"p(0,max) =  bar --> de voordruk van het expansievat dient dus aangepast te worden! (--> 15 Ter plaatse aangepaste voordruk)"},null,null,null,null,null,null,null,null,{"$f":"HYPERLINK(CELL(\"address\",Directives!B172))","v":"[Vase_d_expansion_sanitaire_Sanitair_expansievat_v1.1.FR.xlsm]Directives!$B$172"},{"$f":"HYPERLINK(CELL(\"address\",Richtlijnen!B172))","v":"[Vase_d_expansion_sanitaire_Sanitair_expansievat_v1.1.FR.xlsm]Richtlijnen!$B$172"}]
["15 Pression de gonflage ajustée sur site","15 Pression de gonflage ajustée sur site","15 Ter plaatse aangepaste voordruk",null,{"$f":"IF(A$3=B$3,F31,G31)","v":"p(0,max) =  bar --> il faut donc adapter (réduire) la pression de gonflage (p0) du vase d'expansion!"},{"$f":"\"p(0,max) = \"&'Calcul - Berekening'!N26&\" bar --> il faut donc adapter (réduire) la pression de gonflage (p0) du vase d'expansion!\"","v":"p(0,max) =  bar --> il faut donc adapter (réduire) la pression de gonflage (p0) du vase d'expansion!"},{"$f":"\"p(0,max) = \"&'Calcul - Berekening'!N26&\" bar --> de voordruk van het expansievat (p0) dient dus aangepast (verminderd) te worden!\"","v":"p(0,max) =  bar --> de voordruk van het expansievat (p0) dient dus aangepast (verminderd) te worden!"},null,null,null,null,null,null,null,null,{"$f":"HYPERLINK(CELL(\"address\",Directives!B177))","v":"[Vase_d_expansion_sanitaire_Sanitair_expansievat_v1.1.FR.xlsm]Directives!$B$177"},{"$f":"HYPERLINK(CELL(\"address\",Richtlijnen!B177))","v":"[Vase_d_expansion_sanitaire_Sanitair_expansievat_v1.1.FR.xlsm]Richtlijnen!$B$177"}]
["16 Volume de réserve d'eau réel","16 Volume de réserve d'eau réel","16 Reëel reservewatervolume",null,null,null,null,null,null,null,null,null,null,null,null,{"$f":"HYPERLINK(CELL(\"address\",Directives!B184))","v":"[Vase_d_expansion_sanitaire_Sanitair_expansievat_v1.1.FR.xlsm]Directives!$B$184"},{"$f":"HYPERLINK(CELL(\"address\",Richtlijnen!B184))","v":"[Vase_d_expansion_sanitaire_Sanitair_expansievat_v1.1.FR.xlsm]Richtlijnen!$B$184"}]
["17 Pression finale","17 Pression finale","17 Einddruk",null,{"$f":"IF(A$3=B$3,F33,G33)","v":"p(f,max) =  bar --> il faut adapter (augmenter) la pression de gonflage p0."},{"$f":"\"p(f,max) = \"&'Calcul - Berekening'!N29&\" bar --> il faut adapter (augmenter) la pression de gonflage p0.\"","v":"p(f,max) =  bar --> il faut adapter (augmenter) la pression de gonflage p0."},{"$f":"\"p(f,max) = \"&'Calcul - Berekening'!N29&\" bar --> de voordruk (p0) van het expansievat dient aangepast (verhoogd) te worden.\"","v":"p(f,max) =  bar --> de voordruk (p0) van het expansievat dient aangepast (verhoogd) te worden."},null,null,null,null,null,null,null,null,{"$f":"HYPERLINK(CELL(\"address\",Directives!B188))","v":"[Vase_d_expansion_sanitaire_Sanitair_expansievat_v1.1.FR.xlsm]Directives!$B$188"},{"$f":"HYPERLINK(CELL(\"address\",Richtlijnen!B188))","v":"[Vase_d_expansion_sanitaire_Sanitair_expansievat_v1.1.FR.xlsm]Richtlijnen!$B$188"}]
[{"$f":"IF(A$3=B$3,B34,C34)","v":"18 Pression nominale de service admissible"},"18 Pression nominale de service admissible","18 Maximale werkdruk",null,{"$f":"IF(A$3=B$3,F34,G34)","v":"p(sv) * 1,2 + delta p =  bar --> il faut donc choisir un modèle caractérisé par une pression de service admissible plus élevée ou éventuellement opter -si possible- pour une soupape de sûreté avec une pression de tarage moins élevée."},{"$f":"\"p(sv) * 1,2 + delta p = \"&'Calcul - Berekening'!T18&\" bar --> il faut donc choisir un modèle caractérisé par une pression de service admissible plus élevée ou éventuellement opter -si possible- pour une soupape de sûreté avec une pression de tarage moins élevée.\"","v":"p(sv) * 1,2 + delta p =  bar --> il faut donc choisir un modèle caractérisé par une pression de service admissible plus élevée ou éventuellement opter -si possible- pour une soupape de sûreté avec une pression de tarage moins élevée."},{"$f":"\"p(sv) * 1,2 + delta p = \"&'Calcul - Berekening'!T18&\" bar --> u moet dus kiezen voor een expansievat met een grotere maximale werkdruk of -indien mogelijk- opteren voor een veiligheidsventiel met een kleinere insteldruk.\"","v":"p(sv) * 1,2 + delta p =  bar --> u moet dus kiezen voor een expansievat met een grotere maximale werkdruk of -indien mogelijk- opteren voor een veiligheidsventiel met een kleinere insteldruk."},null,null,null,null,null,null,null,null,{"$f":"HYPERLINK(CELL(\"address\",Directives!B193))","v":"[Vase_d_expansion_sanitaire_Sanitair_expansievat_v1.1.FR.xlsm]Directives!$B$193"},{"$f":"HYPERLINK(CELL(\"address\",Richtlijnen!B193))","v":"[Vase_d_expansion_sanitaire_Sanitair_expansievat_v1.1.FR.xlsm]Richtlijnen!$B$193"}]
["19 Volume utile admissible","19 Volume utile admissible","19 Maximale nuttige vatinhoud",null,null,null,null,null,null,null,null,null,null,null,null,{"$f":"HYPERLINK(CELL(\"address\",Directives!B198))","v":"[Vase_d_expansion_sanitaire_Sanitair_expansievat_v1.1.FR.xlsm]Directives!$B$198"},{"$f":"HYPERLINK(CELL(\"address\",Richtlijnen!B198))","v":"[Vase_d_expansion_sanitaire_Sanitair_expansievat_v1.1.FR.xlsm]Richtlijnen!$B$198"}]
["20 Volume d'eau maximal dans le vase (eau à  °C)",{"$f":"\"20 Volume d'eau maximal dans le vase (eau à \"&'Calcul - Berekening'!N17&\" °C)\"","v":"20 Volume d'eau maximal dans le vase (eau à  °C)"},{"$f":"\"20 Maximaal watervolume in het vat (water op \"&'Calcul - Berekening'!N17&\" °C)\"","v":"20 Maximaal watervolume in het vat (water op  °C)"},null,"V(utile,adm) =  litres --> il faut adapter (augmenter) la pression de gonflage du vase d'expansion, voire opter pour un autre vase.",{"$f":"IF('Calcul - Berekening'!E41=\"\",\"V(utile,adm) = \"&'Calcul - Berekening'!I52&\" litres --> il faut adapter (augmenter) la pression de gonflage du vase d'expansion, voire opter pour un autre vase.\",\"V(utile,adm) = \"&'Calcul - Berekening'!K52&\" litres --> il faut adapter (augmenter) la pression de gonflage du vase d'expansion, voire opter pour un autre vase.\")","v":"V(utile,adm) =  litres --> il faut adapter (augmenter) la pression de gonflage du vase d'expansion, voire opter pour un autre vase."},{"$f":"IF('Calcul - Berekening'!E41=\"\",\"V(utile,adm) = \"&'Calcul - Berekening'!I52&\" liter --> de voordruk van het expansievat dient aangepast (verhoogd) te worden; indien nodig dient men te kiezen voor een ander expansievat.\",\"V(utile,adm) = \"&'Calcul - Berekening'!K52&\" liter --> de voordruk van het expansievat dient aangepast (verhoogd) te worden; indien nodig dient men te kiezen voor een ander expansievat.\")","v":"V(utile,adm) =  liter --> de voordruk van het expansievat dient aangepast (verhoogd) te worden; indien nodig dient men te kiezen voor een ander expansievat."},null,{"$f":"IF(A$3=B$3,J36,K36)","v":"Le fabricant du vase renseigne-t-il un volume utile admissible afin de limiter les contraintes liées à la déformation de la membrane/vessie?"},"Le fabricant du vase renseigne-t-il un volume utile admissible afin de limiter les contraintes liées à la déformation de la membrane/vessie?","Vermeld de fabrikant een maximale nuttige vatinhoud om de vervorming van het membraan/balg te beperken?",null,null,null,null,{"$f":"HYPERLINK(CELL(\"address\",Directives!B203))","v":"[Vase_d_expansion_sanitaire_Sanitair_expansievat_v1.1.FR.xlsm]Directives!$B$203"},{"$f":"HYPERLINK(CELL(\"address\",Richtlijnen!B203))","v":"[Vase_d_expansion_sanitaire_Sanitair_expansievat_v1.1.FR.xlsm]Richtlijnen!$B$203"}]
["21 Effet utile admissible","21 Effet utile admissible","21 Maximaal nuttig effect",null,null,null,null,null,null,null,null,null,null,null,null,{"$f":"HYPERLINK(CELL(\"address\",Directives!B208))","v":"[Vase_d_expansion_sanitaire_Sanitair_expansievat_v1.1.FR.xlsm]Directives!$B$208"},{"$f":"HYPERLINK(CELL(\"address\",Richtlijnen!B208))","v":"[Vase_d_expansion_sanitaire_Sanitair_expansievat_v1.1.FR.xlsm]Richtlijnen!$B$208"}]
["22 Rendement d'utilisation réel","22 Rendement d'utilisation réel","22 Reëel gebruiksrendement",null,{"$f":"IF(A$3=B$3,F38,G38)","v":"Effet_utile,adm =   --> il faut adapter (augmenter) la pression de gonflage du vase d'expansion, voire opter pour un autre vase."},{"$f":"IF('Calcul - Berekening'!E41=\"\",\"Effet_utile,adm = \"&'Calcul - Berekening'!I54&\"  --> il faut adapter (augmenter) la pression de gonflage du vase d'expansion, voire opter pour un autre vase.\",\"Effet_utile,adm = \"&'Calcul - Berekening'!K54&\"  --> il faut adapter (augmenter) la pression de gonflage du vase d'expansion, voire opter pour un autre vase.\")","v":"Effet_utile,adm =   --> il faut adapter (augmenter) la pression de gonflage du vase d'expansion, voire opter pour un autre vase."},{"$f":"IF('Calcul - Berekening'!E41=\"\",\"Max. nuttig effect = \"&'Calcul - Berekening'!I54&\" --> de voordruk van het expansievat dient aangepast (verhoogd) te worden; indien nodig dient men te kiezen voor een ander expansievat.\",\"Max. nuttig effect = \"&'Calcul - Berekening'!K54&\" --> de voordruk van het expansievat dient aangepast (verhoogd) te worden; indien nodig dient men te kiezen voor een ander expansievat.\")","v":"Max. nuttig effect =  --> de voordruk van het expansievat dient aangepast (verhoogd) te worden; indien nodig dient men te kiezen voor een ander expansievat."},null,{"$f":"IF(A$3=B$3,J38,K38)","v":"Le fabricant du vase renseigne-t-il un effet utile admissible afin de limiter les contraintes liées à la déformation de la membrane/vessie?"},"Le fabricant du vase renseigne-t-il un effet utile admissible afin de limiter les contraintes liées à la déformation de la membrane/vessie?","Vermeld de fabrikant een maximaal nuttig effect om de vervorming van het membraan/balg te beperken?",null,null,null,null,{"$f":"HYPERLINK(CELL(\"address\",Directives!B214))","v":"[Vase_d_expansion_sanitaire_Sanitair_expansievat_v1.1.FR.xlsm]Directives!$B$214"},{"$f":"HYPERLINK(CELL(\"address\",Richtlijnen!B214))","v":"[Vase_d_expansion_sanitaire_Sanitair_expansievat_v1.1.FR.xlsm]Richtlijnen!$B$214"}]
["   Contrôle supplémentaire pour vases à circulation intégrale du débit d'eau :","   Contrôle supplémentaire pour vases à circulation intégrale du débit d'eau :","    Extra controle voor vaten met volledige doorstroming:"]
["23 Débit d'eau maximal admissible","23 Débit d'eau maximal admissible","23 Maximaal toelaatbaar waterdebiet",null,null,null,null,null,null,null,null,null,null,null,null,{"$f":"HYPERLINK(CELL(\"address\",Directives!B222))","v":"[Vase_d_expansion_sanitaire_Sanitair_expansievat_v1.1.FR.xlsm]Directives!$B$222"},{"$f":"HYPERLINK(CELL(\"address\",Richtlijnen!B222))","v":"[Vase_d_expansion_sanitaire_Sanitair_expansievat_v1.1.FR.xlsm]Richtlijnen!$B$222"}]
["24 Débit de pointe traversant le vase","24 Débit de pointe traversant le vase","24 Piekdebiet doorheen het vat",null,"Le débit de pointe peut-il traverser dans sa totalité le modèle de vase à passage intégral choisi? Si la réponse est non, il faut prévoir une possibilité de by-pass ou opter pour un modèle de vase/raccord différent.","Le débit de pointe peut-il traverser dans sa totalité le modèle de vase à passage intégral choisi? Si la réponse est non, il faut prévoir une possibilité de by-pass ou opter pour un modèle de vase/raccord différent.","Kan het totale piekdebiet stromen doorheen het gekozen vat met volledige doostroming? Indien neen, dan dient men een by-pass mogelijkheid te voorzien of dient men te opteren voor een ander expansievatmodel/aansluiting. ",null,{"$f":"IF(A$3=B$3,J41,K41)","v":"Q(max,adm) =  m³/h --> il faut prévoir une possibilité de by-pass du vase ou opter pour un autre modèle de vase/raccord caractérisé par un Q(max,adm) plus élevé."},{"$f":"IF('Calcul - Berekening'!E41=\"\",\"Q(max,adm) = \"&'Calcul - Berekening'!I58&\" m³/h --> il faut prévoir une possibilité de by-pass du vase ou opter pour un autre modèle de vase/raccord caractérisé par un Q(max,adm) plus élevé.\",\"Q(max,adm) = \"&'Calcul - Berekening'!K58&\" m³/h --> il faut prévoir une possibilité de by-pass du vase ou opter pour un autre modèle de vase/raccord caractérisé par un Q(max,adm) plus élevé.\")","v":"Q(max,adm) =  m³/h --> il faut prévoir une possibilité de by-pass du vase ou opter pour un autre modèle de vase/raccord caractérisé par un Q(max,adm) plus élevé."},{"$f":"IF('Calcul - Berekening'!E41=\"\",\"Q(max,adm) = \"&'Calcul - Berekening'!I58&\" m³/h --> er moet een mogelijkheid voorzien worden om het vat te by-passen; een alternatief bestaat erin om te opteren voor een ander expansievatmodel/aansluiting met een hogere Q(max,adm)-waarde.\",\"Q(max,adm) = \"&'Calcul - Berekening'!K58&\" m³/h --> er moet een mogelijkheid voorzien worden om het vat te by-passen; een alternatief bestaat erin om te opteren voor een ander expansievatmodel/aansluiting met een hogere Q(max,adm)-waarde.\")","v":"Q(max,adm) =  m³/h --> er moet een mogelijkheid voorzien worden om het vat te by-passen; een alternatief bestaat erin om te opteren voor een ander expansievatmodel/aansluiting met een hogere Q(max,adm)-waarde."},null,null,null,null,{"$f":"HYPERLINK(CELL(\"address\",Directives!B227))","v":"[Vase_d_expansion_sanitaire_Sanitair_expansievat_v1.1.FR.xlsm]Directives!$B$227"},{"$f":"HYPERLINK(CELL(\"address\",Richtlijnen!B227))","v":"[Vase_d_expansion_sanitaire_Sanitair_expansievat_v1.1.FR.xlsm]Richtlijnen!$B$227"}]
[]
[]
[]
[]
[{"$f":"IF(A$3=B$3,B46,C46)","v":"(2) La température de l'eau chaude dans le boiler devrait idéalement s'élever à 60 °C minimum (pour garantir l'absence de légionelles)."},"(2) La température de l'eau chaude dans le boiler devrait idéalement s'élever à 60 °C minimum (pour garantir l'absence de légionelles).","(2) De temperatuur van het warm water in de boiler zou ten minste 60 °C moeten bedragen (om legionella-vorming te voorkomen)."]
["(4) Pression mesurée lorsque l'eau est froide (10 °C). NOTE : Cette pression devrait être inférieure à un certain seuil (voir FAQ 166)","(4) Pression mesurée lorsque l'eau est froide (10 °C). NOTE : Cette pression devrait être inférieure à un certain seuil (voir FAQ 166)","(4) Druk gemeten bij een koudwatertemperatuur (10 °C). OPMERKING: Deze druk zou in principe kleiner moeten zijn dan een zekere grenswaarde (zie FAQ 166)."]
[{"$f":"IF(A$3=B$3,B48,C48)","v":"(5) delta h > 0 si le vase d'expansion est plus bas que la soupape; delta h < 0 dans le cas contraire."},"(5) delta h > 0 si le vase d'expansion est plus bas que la soupape; delta h < 0 dans le cas contraire.","(5) delta h > 0 indien expansievat lager gelegen dan veiligheidsventiel; delta h < 0 in het andere geval."]
["(8) Valeur issue de la norme allemande DIN 4807-5 : 0,2.","(8) Valeur issue de la norme allemande DIN 4807-5 : 0,2.","(8) Waarde onttrokken uit de Duitse norm DIN 4807-5: 0,2."]
["(10) Valeur issue de la norme allemande DIN 4807-5 : 0,8.","(10) Valeur issue de la norme allemande DIN 4807-5 : 0,8.","(10) Waarde onttrokken uit de Duitse norm DIN 4807-5: 0,8."]
[]
[]
[]
[]
[]
[{"$f":"IF(A$3=B$3,B56,C56)","v":"Plus d'info :"},"Plus d'info :","Meer info:"]
[null,"https://www.cstc.be/homepage/index.cfm?cat=publications&sub=search&id=REF00009729","https://www.wtcb.be/homepage/index.cfm?cat=publications&sub=search&id=REF00009753"]
[null,"Dossier CSTC n° 2017/02.12","WTCB-Dossier nr. 2017/02.12"]
[null,"https://www.cstc.be/homepage/index.cfm?cat=tools&sub=faq&pag=search&faq_id=166","https://www.wtcb.be/homepage/index.cfm?cat=tools&sub=faq&pag=search&faq_id=166"]
[null,"CSTC-FAQ n° 166","WTCB-FAQ nr. 166"]
[]
[]
[]
[{"$f":"IF(A$3=B$3,B64,C64)","v":"Dossier"},"Dossier","Dossier"]
["Nom","Nom","Naam"]
["Adresse","Adresse","Adres"]
["Commune","Commune","Gemeente"]
["Commentaire","Commentaire","Commentaar"]
["Date  ","Date  ","Datum  "]
[]
[]
[]
["Pression de gonflage du vase (valeur usine)"]
[3]
[4]
["…",null,null,null,null,null,null,null,null,null,null,null,"FR","NL"]
[]
[{"$f":"IF(A$3=B$3,B78,C78)","v":"Marque"},"Marque","Merk",null,null,null,null,null,null,null,null,null,{"$f":"HYPERLINK(CELL(\"address\",Directives!B147))","v":"[Vase_d_expansion_sanitaire_Sanitair_expansievat_v1.1.FR.xlsm]Directives!$B$147"},{"$f":"HYPERLINK(CELL(\"address\",Richtlijnen!B147))","v":"[Vase_d_expansion_sanitaire_Sanitair_expansievat_v1.1.FR.xlsm]Richtlijnen!$B$147"}]
["Flamco"]
["Pneumatex"]
["Reflex",null,null,null,null,null,null,null,"Calcul - Berekening",null,{"$f":"IF(OR('Calcul - Berekening'!$K$36=0,'Calcul - Berekening'!$K$36=\"\",'Calcul - Berekening'!$E$40=\"NOT IN DATABASE\"),1,0)","v":1}]
["Watts",null,null,null,null,null,null,null,{"$f":"HYPERLINK(\"#'\"&I81&\"'!$E$40\",\"terug naar rekenblad\")","v":"terug naar rekenblad"}]
[]
[{"$f":"IF(A$3=B$3,B84,C84)","v":"Type"},"Type","Type",null,{"$f":"IF(A$3=B$3,F84,G84)","v":"terug naar rekenblad"},"terug naar rekenblad","retour à la feuille de calcul",null,null,null,null,null,{"$f":"HYPERLINK(CELL(\"address\",Directives!B153))","v":"[Vase_d_expansion_sanitaire_Sanitair_expansievat_v1.1.FR.xlsm]Directives!$B$153"},{"$f":"HYPERLINK(CELL(\"address\",Richtlijnen!B153))","v":"[Vase_d_expansion_sanitaire_Sanitair_expansievat_v1.1.FR.xlsm]Richtlijnen!$B$153"}]
[]
[{"$f":"IF(A$3=B$3,B86,C86)","v":"Vase à circulation forcée"},"Vase à circulation forcée","Vat met doorstroming",null,{"$f":"IF(A$3=B$3,F86,G86)","v":"Nombre de résultats (voir onglet 'Choix vase - Keuze vat')"},"Nombre de résultats (voir onglet 'Choix vase - Keuze vat')","Aantal resultaten (zie tab 'Choix vase - Keuze vat')",null,null,null,null,null,{"$f":"HYPERLINK(CELL(\"address\",Directives!B113))","v":"[Vase_d_expansion_sanitaire_Sanitair_expansievat_v1.1.FR.xlsm]Directives!$B$113"},{"$f":"HYPERLINK(CELL(\"address\",Richtlijnen!B113))","v":"[Vase_d_expansion_sanitaire_Sanitair_expansievat_v1.1.FR.xlsm]Richtlijnen!$B$113"}]
["oui","oui","ja"]
["non","non","nee",null,{"$f":"IF(A$3=B$3,F88,G88)","v":"(notre base de données ne contient pas de produit répondant à vos critères)"},"(notre base de données ne contient pas de produit répondant à vos critères)","(onze database bevat geen producten die aan uw criteria beantwoorden)"]
[]
[]
["Position","Position","Plaatsing",null,{"$f":"IF(A$3=B$3,F91,G91)","v":"(Veuillez sélectionner un vase dans l'onglet 'Choix vase - Keuze vat')"},"(Veuillez sélectionner un vase dans l'onglet 'Choix vase - Keuze vat')","(Gelieve een model te selecteren in de tab 'Choix vase - Keuze vat')",null,null,null,null,null,{"$f":"HYPERLINK(CELL(\"address\",Directives!B134))","v":"[Vase_d_expansion_sanitaire_Sanitair_expansievat_v1.1.FR.xlsm]Directives!$B$134"},{"$f":"HYPERLINK(CELL(\"address\",Richtlijnen!B134))","v":"[Vase_d_expansion_sanitaire_Sanitair_expansievat_v1.1.FR.xlsm]Richtlijnen!$B$134"}]
["verticale","verticale","verticaal",null,{"$f":"IF(A$3=B$3,F92,G92)","v":"(vous pouvez spécifier un modèle non contenu dans notre base de données)"},"(vous pouvez spécifier un modèle non contenu dans notre base de données)","(u kan hier een ander model aanduiden dat niet beschikbaar is in onze databank)"]
["horizontale","horizontale","horizontaal"]
[]
[]
["Membrane/Vessie interchangeable","Membrane/Vessie interchangeable","Verwisselbaar membraan/balg",null,null,null,null,null,null,null,null,null,{"$f":"HYPERLINK(CELL(\"address\",Directives!B144))","v":"[Vase_d_expansion_sanitaire_Sanitair_expansievat_v1.1.FR.xlsm]Directives!$B$144"},{"$f":"HYPERLINK(CELL(\"address\",Richtlijnen!B144))","v":"[Vase_d_expansion_sanitaire_Sanitair_expansievat_v1.1.FR.xlsm]Richtlijnen!$B$144"}]
["oui","oui","ja"]
["non","non","nee"]
[]
[]
["Pression de service maximale","Pression de service maximale","Maximale werkdruk"]
[8]
[10]
[16]
[25]
[]
[]
["Température de service admissible","Température de service admissible","Maximale werktemperatuur"]
[70]
[100]
[]
[]
[{"$f":"IF(A$3=B$3,B113,C113)","v":"Si le modèle souhaité ne figure pas dans notre base de données, veuillez sélectionner \"NOT IN DATABASE\"."},"Si le modèle souhaité ne figure pas dans notre base de données, veuillez sélectionner \"NOT IN DATABASE\".","Indien het gewenste model in onze databank niet is opgenomen, gelieve dan \"NOT IN DATABASE\" te selecteren."]
[]
[]
[]
[{"$f":"IF(A$3=B$3,B117,C117)","v":"RETOUR A LA FEUILLE DE CALCUL "},"RETOUR A LA FEUILLE DE CALCUL ","TERUG NAAR REKENBLAD"]
[]
["Sélectionnez votre modèle via ce menu déroulant.","Sélectionnez votre modèle via ce menu déroulant.","Selecteer via deze drop-down lijst uw model."]
["Donnée non disponible]","Donnée non disponible]","Niet beschikbaar gegeven]"]
["Marque","Marque","Merk"]
[{"$f":"IF(A$3=B$3,B122,C122)","v":"circulation forcée?"},"circulation forcée?","met doorstroming?"]
["(dimensions)","(dimensions)","(afmetingen)"]
["diamètre","diamètre","diameter"]
["hauteur","hauteur","hoogte"]
["raccord","raccord","aansluiting"]
["brides","brides","flenzen"]
["poids","poids","gewicht"]
["position","position","plaatsing"]
["avec support mural fixe","avec support mural fixe","met vaste wandsteun"]
["avec jambes","avec jambes","met poten"]
["membrane/vessie","membrane/vessie","membraan/balg"]
["interchangeable","interchangeable","verwisselbaar"]
["couleur","couleur","kleur"]
["référence fabricant","référence fabricant","referentie fabrikant"]
["type","type","type"]

{"sheet":"DataBase","index":6,"n_rows":333,"n_cols":36,"rows_kept":333,"cut":false,"hidden":true,"merged":[]}
[null,"calculs","VN,min","Tmax","psv",null,null,null,null,null,null,"Choix vase",null,"circulation",null,null,"vert/horiz",null,null,"membrane inter",null,"marque"]
[null,null,{"$f":"'Calcul - Berekening'!N31","v":""},{"$f":"'Calcul - Berekening'!N17","v":0},{"$f":"'Calcul - Berekening'!N18","v":0},null,null,null,null,null,null,null,null,{"$f":"'Calcul - Berekening'!E35","v":0},{"$f":"IF(OR($N$2=\"oui\",$N$2=\"ja\"),\"yes\",IF(OR($N$2=\"non\",$N$2=\"nee\"),\"no\",\"\"))","v":""},null,{"$f":"'Calcul - Berekening'!E36","v":0},{"$f":"IF(OR($Q$2=\"verticale\",$Q$2=\"verticaal\"),\"vertical\",IF(OR($Q$2=\"horizontale\",$Q$2=\"horizontaal\"),\"horizontal\",\"\"))","v":""},null,{"$f":"'Calcul - Berekening'!E37","v":0},{"$f":"IF(OR($T$2=\"oui\",$T$2=\"ja\"),\"yes\",IF(OR($T$2=\"non\",$T$2=\"nee\"),\"no\",\"\"))","v":""},{"$f":"'Calcul - Berekening'!E38","v":0},{"$f":"IF(V2=\"Flamco\",\"Flamco\",IF(V2=\"Pneumatex\",\"Pneumatex\",IF(V2=\"Reflex\",\"Reflex\",IF(V2=\"Watts\",\"Watts\",IF(V2=0,\"\",V2)))))","v":""}]
[null,null,null,null,null,null,null,null,"Dimensions"]
[null,"Marque","Type","capacité","volume utile max","rendement max","Tmax admissible","p0 standard","pression de service max","circulation forcée","débit max","diamètre","H","raccord","brides","poids","position","avec support mural fixe","avec jambes","membrane","membrane interchangeable","remplissage","couleur","référence fabricant","famille",null,null,"VN >= VN,min","Tmax,fabr >= Tmax,réelle","pmax,fabr > psv * 1,2","circulation forcée","choix","vert/horiz","membrane inter","marque","score"]
[null,null,null,"l","l","-","°C","bar","bar",null,"m³/h","mm","mm",null,null,"kg","vert./horiz.",null,"oui/non","butyl/EPDM"]
[{"$f":"AJ6","v":1},null," ",null,null,null,null,null,null,null,null,null,null,null,null,null,null,null,null,null,null,null,null,null,"_",null,null,null,null,null,null,null,null,null,null,1]
[{"$f":"AJ7","v":1},null,"NOT IN DATABASE",null,null,null,null,null,null,null,null,null,null,null,null,null,null,null,null,null,null,null,null,null,"_",null,null,null,null,null,null,null,null,null,null,1]
[{"$f":"AJ8","v":0},"Flamco","Airfix D 8",8,{"$f":"ROUNDDOWN(F8*D8,1)","v":5},0.63,70,4,10,"full flow","n.c.",245,301,"R 3/4\"","-",3.2,"vertical","no","no","butyl","no","azote/stikstof","blanc/wit",14259,"Airfix D 8 - 35",null,null,{"$f":"IF(AND($C$2>0,$C$2<=D8),1,0)","v":0},{"$f":"IF(G8>=$D$2>0,1,0)","v":1},{"$f":"IF(I8>=$E$2*1.2>0,1,0)","v":1},{"$f":"IF(J8=\"no\",\"no\",\"yes\")","v":"yes"},{"$f":"IF(OR(($O$2=AE8),($O$2=\"\")),1,0)","v":1},{"$f":"IF(OR(($R$2=Q8),($R$2=\"\")),1,0)","v":1},{"$f":"IF(OR(($U$2=U8),($U$2=\"\")),1,0)","v":1},{"$f":"IF(OR(($W$2=B8),($W$2=\"\")),1,0)","v":1},{"$f":"AB8*AC8*AD8*AF8*AG8*AH8*AI8","v":0}]
[{"$f":"AJ9","v":0},"Flamco","Airfix D 12",12,{"$f":"ROUNDDOWN(F9*D9,1)","v":7.5},0.63,70,4,10,"full flow","n.c.",286,334,"R 3/4\"","-",4.3,"vertical","no","no","butyl","no","azote/stikstof","blanc/wit",14349,"Airfix D 8 - 35",null,null,{"$f":"IF(AND($C$2>D8,$C$2<=D9),1,0)","v":0},{"$f":"IF(G9>=$D$2>0,1,0)","v":1},{"$f":"IF(I9>=$E$2*1.2>0,1,0)","v":1},{"$f":"IF(J9=\"no\",\"no\",\"yes\")","v":"yes"},{"$f":"IF(OR(($O$2=AE9),($O$2=\"\")),1,0)","v":1},{"$f":"IF(OR(($R$2=Q9),($R$2=\"\")),1,0)","v":1},{"$f":"IF(OR(($U$2=U9),($U$2=\"\")),1,0)","v":1},{"$f":"IF(OR(($W$2=B9),($W$2=\"\")),1,0)","v":1},{"$f":"AB9*AC9*AD9*AF9*AG9*AH9*AI9","v":0}]
[0,"Flamco","Airfix D 18",18,{"$f":"ROUNDDOWN(F10*D10,1)","v":11.3},0.63,70,4,10,"full flow","n.c.",328,325,"R 3/4\"","-",4.9000000000000004,"vertical","no","no","butyl","no","azote/stikstof","blanc/wit",14459,"Airfix D 8 - 35",null,null,{"$f":"IF(AND($C$2>D9,$C$2<=D10),1,0)","v":0},1,1,"yes",1,1,1,1,0]
[0,"Flamco","Airfix D 25",25,15.7,0.63,70,4,10,"full flow","n.c.",358,378,"R 3/4\"","-",6.6,"vertical","no","no","butyl","no","azote/stikstof","blanc/wit",14559,"Airfix D 8 - 35",null,null,{"$f":"IF(AND($C$2>D10,$C$2<=D11),1,0)","v":0},1,1,"yes",1,1,1,1,0]
[0,"Flamco","Airfix D 35",35,22,0.63,70,4,8,"full flow","n.c.",396,437,"R 3/4\"","-",8.1,"vertical","no","no","butyl","no","azote/stikstof","blanc/wit",14659,"Airfix D 8 - 35",null,null,{"$f":"IF(AND($C$2>D11,$C$2<=D12),1,0)","v":0},1,1,"yes",1,1,1,1,0]
[0,"Flamco","Airfix A 8",8,5,0.63,70,4,10,"partial flow","/",245,301,"R 3/4\"","-",3.2,"vertical","no","no","butyl","no","azote/stikstof","blanc/wit",24259,"Airfix A 8 - 80",null,null,{"$f":"IF(AND($C$2>0,$C$2<=D13),1,0)","v":0},1,1,"yes",1,1,1,1,0]
[0,"Flamco","Airfix A 12",12,7.5,0.63,70,3,10,"partial flow","/",286,334,"R 3/4\"","-",4.3,"vertical","no","no","butyl","no","azote/stikstof","blanc/wit",24348,"Airfix A 8 - 80",null,null,{"$f":"IF(AND($C$2>D13,$C$2<=D14),1,0)","v":0},1,1,"yes",1,1,1,1,0]
[0,"Flamco","Airfix A 12",12,7.5,0.63,70,4,10,"partial flow","/",286,334,"R 3/4\"","-",4.3,"vertical","no","no","butyl","no","azote/stikstof","blanc/wit",24349,"Airfix A 8 - 80",null,null,0,1,1,"yes",1,1,1,1,0]
[0,"Flamco","Airfix A 18",18,11.3,0.63,70,3,10,"partial flow","/",328,325,"R 3/4\"","-",4.9000000000000004,"vertical","no","no","butyl","no","azote/stikstof","blanc/wit",24458,"Airfix A 8 - 80",null,null,0,1,1,"yes",1,1,1,1,0]
[0,"Flamco","Airfix A 18",18,11.3,0.63,70,4,10,"partial flow","/",328,325,"R 3/4\"","-",4.9000000000000004,"vertical","no","no","butyl","no","azote/stikstof","blanc/wit",24459,"Airfix A 8 - 80",null,null,0,1,1,"yes",1,1,1,1,0]
[0,"Flamco","Airfix A 25",25,15.7,0.63,70,3,10,"partial flow","/",358,378,"R 3/4\"","-",6.6,"vertical","no","no","butyl","no","azote/stikstof","blanc/wit",24558,"Airfix A 8 - 80",null,null,0,1,1,"yes",1,1,1,1,0]
[0,"Flamco","Airfix A 25",25,15.7,0.63,70,4,10,"partial flow","/",358,378,"R 3/4\"","-",6.6,"vertical","no","no","butyl","no","azote/stikstof","blanc/wit",24559,"Airfix A 8 - 80",null,null,0,1,1,"yes",1,1,1,1,0]
[0,"Flamco","Airfix A 35",35,22,0.63,70,4,8,"partial flow","/",396,437,"R 3/4\"","-",8.1,"vertical","no","no","butyl","no","azote/stikstof","blanc/wit",24659,"Airfix A 8 - 80",null,null,0,1,1,"yes",1,1,1,1,0]
[0,"Flamco","Airfix A 50",50,31.5,0.63,70,4,8,"partial flow","/",437,473,"R 3/4\"","-",11.2,"vertical","no","no","butyl","no","azote/stikstof","blanc/wit",24749,"Airfix A 8 - 80",null,null,0,1,1,"yes",1,1,1,1,0]
[0,"Flamco","Airfix A 80",80,50.4,0.63,70,4,8,"partial flow","/",519,540,"R 3/4\"","-",15,"vertical","no","no","butyl","no","azote/stikstof","blanc/wit",24809,"Airfix A 8 - 80",null,null,0,1,1,"yes",1,1,1,1,0]
[0,"Flamco","Airfix D-E 100 (10)",100,60,0.6,70,6,10,"full flow","n.c.",484,897,"G 1 1/2\" M","-",38,"vertical","no","yes","butyl","yes","azote/stikstof","blanc/wit",14750,"Airfix D-E 100 - 3000",null,null,{"$f":"IF(AND($C$2>35,$C$2<=D23),1,0)","v":0},1,1,"yes",1,1,1,1,0]
[0,"Flamco","Airfix D-E 200 (10)",200,120,0.6,70,6,10,"full flow","n.c.",600,1075,"G 1 1/2\" M","-",51,"vertical","no","yes","butyl","yes","azote/stikstof","blanc/wit",14751,"Airfix D-E 100 - 3000",null,null,{"$f":"IF(AND($C$2>D23,$C$2<=D24),1,0)","v":0},1,1,"yes",1,1,1,1,0]
[0,"Flamco","Airfix D-E 300 (10)",300,180,0.6,70,6,10,"full flow","n.c.",600,1444,"G 1 1/2\" M","-",65,"vertical","no","yes","butyl","yes","azote/stikstof","blanc/wit",14752,"Airfix D-E 100 - 3000",null,null,0,1,1,"yes",1,1,1,1,0]
[0,"Flamco","Airfix D-E 400 (10)",400,240,0.6,70,6,10,"full flow","n.c.",790,1287,"G 2\" M","-",89,"vertical","no","yes","butyl","yes","azote/stikstof","blanc/wit",14753,"Airfix D-E 100 - 3000",null,null,0,1,1,"yes",1,1,1,1,0]
[0,"Flamco","Airfix D-E 600 (10)",600,360,0.6,70,6,10,"full flow","n.c.",790,1647,"G 2\" M","-",110,"vertical","no","yes","butyl","yes","azote/stikstof","blanc/wit",14754,"Airfix D-E 100 - 3000",null,null,0,1,1,"yes",1,1,1,1,0]
[0,"Flamco","Airfix D-E 800 (10)",800,480,0.6,70,6,10,"full flow","n.c.",790,1994,"G 2\" M","-",148,"vertical","no","yes","butyl","yes","azote/stikstof","blanc/wit",14755,"Airfix D-E 100 - 3000",null,null,0,1,1,"yes",1,1,1,1,0]
[0,"Flamco","Airfix D-E 1000 (10)",1000,600,0.6,70,6,10,"full flow","n.c.",790,2345,"G 2\" M","-",170,"vertical","no","yes","butyl","yes","azote/stikstof","blanc/wit",14756,"Airfix D-E 100 - 3000",null,null,0,1,1,"yes",1,1,1,1,0]
[0,"Flamco","Airfix D-E 1600 (10)",1600,960,0.6,70,6,10,"full flow","n.c.",1000,2663,"-","DN 80",550,"vertical","no","yes","butyl","yes","azote/stikstof","blanc/wit",14916,"Airfix D-E 100 - 3000",null,null,0,1,1,"yes",1,1,1,1,0]
[0,"Flamco","Airfix D-E 2000 (10)",2000,1200,0.6,70,6,10,"full flow","n.c.",1200,2412,"-","DN 80",620,"vertical","no","yes","butyl","yes","azote/stikstof","blanc/wit",14920,"Airfix D-E 100 - 3000",null,null,0,1,1,"yes",1,1,1,1,0]
[0,"Flamco","Airfix D-E 3000 (10)",3000,1800,0.6,70,6,10,"full flow","n.c.",1200,3312,"-","DN 80",805,"vertical","no","yes","butyl","yes","azote/stikstof","blanc/wit",14930,"Airfix D-E 100 - 3000",null,null,0,1,1,"yes",1,1,1,1,0]
[0,"Flamco","Airfix D-E 50 (16)",50,30,0.6,70,6,16,"full flow","n.c.",450,839,"-","DN 40",70,"vertical","no","yes","butyl","yes","azote/stikstof","blanc/wit",14701,"Airfix D-E 50 - 3000",null,null,{"$f":"IF(AND($C$2>0,$C$2<=D33),1,0)","v":0},1,1,"yes",1,1,1,1,0]
[0,"Flamco","Airfix D-E 80 (16)",80,48,0.6,70,6,16,"full flow","n.c.",450,1019,"-","DN 40",80,"vertical","no","yes","butyl","yes","azote/stikstof","blanc/wit",14801,"Airfix D-E 50 - 3000",null,null,{"$f":"IF(AND($C$2>D33,$C$2<=D34),1,0)","v":0},1,1,"yes",1,1,1,1,0]
[0,"Flamco","Airfix D-E 120 (16)",120,72,0.6,70,6,16,"full flow","n.c.",450,1274,"-","DN 40",95,"vertical","no","yes","butyl","yes","azote/stikstof","blanc/wit",14813,"Airfix D-E 50 - 3000",null,null,0,1,1,"yes",1,1,1,1,0]
[0,"Flamco","Airfix D-E 180 (16)",180,108,0.6,70,6,16,"full flow","n.c.",550,1238,"-","DN 40",135,"vertical","no","yes","butyl","yes","azote/stikstof","blanc/wit",14819,"Airfix D-E 50 - 3000",null,null,0,1,1,"yes",1,1,1,1,0]
[0,"Flamco","Airfix D-E 240 (16)",240,144,0.6,70,6,16,"full flow","n.c.",550,1498,"-","DN 40",160,"vertical","no","yes","butyl","yes","azote/stikstof","blanc/wit",14825,"Airfix D-E 50 - 3000",null,null,0,1,1,"yes",1,1,1,1,0]
[0,"Flamco","Airfix D-E 300 (16)",300,180,0.6,70,6,16,"full flow","n.c.",550,1838,"-","DN 40",190,"vertical","no","yes","butyl","yes","azote/stikstof","blanc/wit",14831,"Airfix D-E 50 - 3000",null,null,0,1,1,"yes",1,1,1,1,0]
[0,"Flamco","Airfix D-E 600 (16)",600,360,0.6,70,6,16,"full flow","n.c.",750,1843,"-","DN 50",300,"vertical","no","yes","butyl","yes","azote/stikstof","blanc/wit",14861,"Airfix D-E 50 - 3000",null,null,0,1,1,"yes",1,1,1,1,0]
[0,"Flamco","Airfix D-E 800 (16)",800,480,0.6,70,6,16,"full flow","n.c.",750,2233,"-","DN 50",350,"vertical","no","yes","butyl","yes","azote/stikstof","blanc/wit",14881,"Airfix D-E 50 - 3000",null,null,0,1,1,"yes",1,1,1,1,0]
[0,"Flamco","Airfix D-E 1000 (16)",1000,600,0.6,70,6,16,"full flow","n.c.",750,2733,"-","DN 50",415,"vertical","no","yes","butyl","yes","azote/stikstof","blanc/wit",14911,"Airfix D-E 50 - 3000",null,null,0,1,1,"yes",1,1,1,1,0]
[0,"Flamco","Airfix D-E 1600 (16)",1600,960,0.6,70,6,16,"full flow","n.c.",1000,2682,"-","DN 80",610,"vertical","no","yes","butyl","yes","azote/stikstof","blanc/wit",14917,"Airfix D-E 50 - 3000",null,null,0,1,1,"yes",1,1,1,1,0]
[0,"Flamco","Airfix D-E 2000 (16)",2000,1200,0.6,70,6,16,"full flow","n.c.",1200,2425,"-","DN 80",680,"vertical","no","yes","butyl","yes","azote/stikstof","blanc/wit",14921,"Airfix D-E 50 - 3000",null,null,0,1,1,"yes",1,1,1,1,0]
[0,"Flamco","Airfix D-E 3000 (16)",3000,1800,0.6,70,6,16,"full flow","n.c.",1200,3335,"-","DN 80",890,"vertical","no","yes","butyl","yes","azote/stikstof","blanc/wit",14931,"Airfix D-E 50 - 3000",null,null,0,1,1,"yes",1,1,1,1,0]
[0,"Flamco","Airfix P 2",2,"n.c.","n.c.",70,3.5,10,"no","/",120,235,"G 1/2\" M","-",1.2,"vertical","no","no","butyl","no","azote/stikstof","gris/grijs",24850,"Airfix P 2 - 300",null,null,{"$f":"IF(AND($C$2>0,$C$2<=D45),1,0)","v":0},1,1,"no",1,1,1,1,0]
[0,"Flamco","Airfix P 3",3,"n.c.","n.c.",70,3.5,10,"no","/",170,240,"G 3/4\" M","-",1.5,"vertical","no","no","butyl","no","azote/stikstof","gris/grijs",24851,"Airfix P 2 - 300",null,null,{"$f":"IF(AND($C$2>D45,$C$2<=D46),1,0)","v":0},1,1,"no",1,1,1,1,0]
[0,"Flamco","Airfix P 5",5,"n.c.","n.c.",70,3.5,10,"no","/",170,275,"G 3/4\" M","-",1.7,"vertical","no","no","butyl","no","azote/stikstof","gris/grijs",24852,"Airfix P 2 - 300",null,null,0,1,1,"no",1,1,1,1,0]
[0,"Flamco","Airfix P 8",8,"n.c.","n.c.",70,3.5,10,"no","/",220,305,"G 3/4\" M","-",2.2000000000000002,"vertical","no","no","butyl","no","azote/stikstof","gris/grijs",24853,"Airfix P 2 - 300",null,null,0,1,1,"no",1,1,1,1,0]
[0,"Flamco","Airfix P 12",12,"n.c.","n.c.",70,3.5,10,"no","/",260,310,"G 3/4\" M","-",2.9,"vertical","no","no","butyl","no","azote/stikstof","gris/grijs",24854,"Airfix P 2 - 300",null,null,0,1,1,"no",1,1,1,1,0]
[0,"Flamco","Airfix P 16",16,"n.c.","n.c.",70,3.5,10,"no","/",260,345,"G 3/4\" M","-",3.4,"vertical","no","no","EPDM","no","azote/stikstof","gris/grijs",24855,"Airfix P 2 - 300",null,null,0,1,1,"no",1,1,1,1,0]
[0,"Flamco","Airfix P 18",18,"n.c.","n.c.",70,3.5,10,"no","/",260,375,"G 3/4\" M","-",3.5,"vertical","no","no","EPDM","no","azote/stikstof","gris/grijs",24856,"Airfix P 2 - 300",null,null,0,1,1,"no",1,1,1,1,0]
[0,"Flamco","Airfix P 24",24,"n.c.","n.c.",70,3.5,10,"no","/",260,485,"G 3/4\" M","-",4.3,"vertical","no","no","EPDM","no","azote/stikstof","gris/grijs",24857,"Airfix P 2 - 300",null,null,0,1,1,"no",1,1,1,1,0]
[0,"Flamco","Airfix P 35",35,"n.c.","n.c.",70,3.5,10,"no","/",380,470,"G 1\" M","-",8,"vertical","no","no","EPDM","no","azote/stikstof","gris/grijs",24858,"Airfix P 2 - 300",null,null,0,1,1,"no",1,1,1,1,0]
[0,"Flamco","Airfix P 50",50,"n.c.","n.c.",100,3.5,10,"no","/",380,720,"G 1\" M","-",9.9,"vertical","no","yes","EPDM","no","azote/stikstof","gris/grijs",24859,"Airfix P 2 - 300",null,null,0,1,1,"no",1,1,1,1,0]
[0,"Flamco","Airfix P 60",60,"n.c.","n.c.",100,3.5,10,"no","/",380,830,"G 1\" M","-",12.1,"vertical","no","yes","EPDM","no","azote/stikstof","gris/grijs",24860,"Airfix P 2 - 300",null,null,0,1,1,"no",1,1,1,1,0]
[0,"Flamco","Airfix P 80",80,"n.c.","n.c.",100,3.5,10,"no","/",460,760,"G 1\" M","-",14,"vertical","no","yes","EPDM","no","azote/stikstof","gris/grijs",24861,"Airfix P 2 - 300",null,null,0,1,1,"no",1,1,1,1,0]
[0,"Flamco","Airfix P 100",100,"n.c.","n.c.",100,3.5,10,"no","/",460,880,"G 1\" M","-",16,"vertical","no","yes","EPDM","no","azote/stikstof","gris/grijs",24862,"Airfix P 2 - 300",null,null,0,1,1,"no",1,1,1,1,0]
[0,"Flamco","Airfix P 150",150,"n.c.","n.c.",100,3.5,10,"no","/",510,1030,"G 1\" M","-",25.5,"vertical","no","yes","EPDM","no","azote/stikstof","gris/grijs",24863,"Airfix P 2 - 300",null,null,0,1,1,"no",1,1,1,1,0]
[0,"Flamco","Airfix P 200",200,"n.c.","n.c.",100,3.5,10,"no","/",590,1070,"G 1 1/4\" M","-",37.5,"vertical","no","yes","EPDM","no","azote/stikstof","gris/grijs",24864,"Airfix P 2 - 300",null,null,0,1,1,"no",1,1,1,1,0]
[0,"Flamco","Airfix P 300",300,"n.c.","n.c.",100,3.5,10,"no","/",650,1250,"G 1 1/4\" M","-",50.5,"vertical","no","yes","EPDM","no","azote/stikstof","gris/grijs",24865,"Airfix P 2 - 300",null,null,0,1,1,"no",1,1,1,1,0]
[0,"Flamco","Airfix P 400",400,"n.c.","n.c.",70,3.5,10,"no","/",790,1287,"G 1 1/4\" M","-",84,"vertical","no","yes","EPDM","yes","azote/stikstof","blanc/wit",24933,"Airfix P 400 - 5000",null,null,0,1,1,"no",1,1,1,1,0]
[0,"Flamco","Airfix P 600",600,"n.c.","n.c.",70,3.5,10,"no","/",790,1647,"G 1 1/4\" M","-",106,"vertical","no","yes","EPDM","yes","azote/stikstof","blanc/wit",24934,"Airfix P 400 - 5000",null,null,0,1,1,"no",1,1,1,1,0]
[0,"Flamco","Airfix P 800",800,"n.c.","n.c.",70,3.5,10,"no","/",790,1994,"G 1 1/4\" M","-",145,"vertical","no","yes","EPDM","yes","azote/stikstof","blanc/wit",24935,"Airfix P 400 - 5000",null,null,0,1,1,"no",1,1,1,1,0]
[0,"Flamco","Airfix P 1000",1000,"n.c.","n.c.",70,3.5,10,"no","/",790,2345,"G 1 1/4\" M","-",167,"vertical","no","yes","EPDM","yes","azote/stikstof","blanc/wit",24936,"Airfix P 400 - 5000",null,null,0,1,1,"no",1,1,1,1,0]
[0,"Flamco","Airfix P 1500",1500,"n.c.","n.c.",70,3.5,10,"no","/",1000,2510,"Rp 2 1/2\"","-",423,"vertical","no","yes","butyl","yes","azote/stikstof","blanc/wit",24869,"Airfix P 400 - 5000",null,null,0,1,1,"no",1,1,1,1,0]
[0,"Flamco","Airfix P 2000",2000,"n.c.","n.c.",70,3.5,10,"no","/",1100,2745,"Rp 2 1/2\"","-",483,"vertical","no","yes","butyl","yes","azote/stikstof","blanc/wit",24870,"Airfix P 400 - 5000",null,null,0,1,1,"no",1,1,1,1,0]
[0,"Flamco","Airfix P 2500",2500,"n.c.","n.c.",70,3.5,10,"no","/",1200,3295,"Rp 2 1/2\"","-",537,"vertical","no","yes","butyl","yes","azote/stikstof","blanc/wit",24871,"Airfix P 400 - 5000",null,null,0,1,1,"no",1,1,1,1,0]
[0,"Flamco","Airfix P 3000",3000,"n.c.","n.c.",70,3.5,10,"no","/",1200,3425,"Rp 2 1/2\"","-",766,"vertical","no","yes","butyl","yes","azote/stikstof","blanc/wit",24872,"Airfix P 400 - 5000",null,null,0,1,1,"no",1,1,1,1,0]
[0,"Flamco","Airfix P 5000",5000,"n.c.","n.c.",70,3.5,10,"no","/",1500,3615,"Rp 2 1/2\"","-",1620,"vertical","no","yes","butyl","yes","azote/stikstof","blanc/wit",24873,"Airfix P 400 - 5000",null,null,0,1,1,"no",1,1,1,1,0]
[0,"Flamco","Airfix P 24-H",24,"n.c.","n.c.",100,3.5,10,"no","/",260,485,"G 3/4\" M","-",4.7,"horizontal","no","yes","EPDM","yes","azote/stikstof","gris/grijs",24880,"Airfix P 24-H - 300-H",null,null,{"$f":"IF(AND($C$2>0,$C$2<=D70),1,0)","v":0},1,1,"no",1,1,1,1,0]
[0,"Flamco","Airfix P 50-H",50,"n.c.","n.c.",100,3.5,10,"no","/",380,595,"G 1\" M","-",8.1,"horizontal","no","yes","EPDM","yes","azote/stikstof","gris/grijs",24890,"Airfix P 24-H - 300-H",null,null,{"$f":"IF(AND($C$2>D70,$C$2<=D71),1,0)","v":0},1,1,"no",1,1,1,1,0]
[0,"Flamco","Airfix P 60-H",60,"n.c.","n.c.",100,3.5,10,"no","/",380,720,"G 1\" M","-",10.4,"horizontal","no","yes","EPDM","yes","azote/stikstof","gris/grijs",24881,"Airfix P 24-H - 300-H",null,null,0,{"$f":"IF(G72>=$D$2>0,1,0)","v":1},{"$f":"IF(I72>=$E$2*1.2>0,1,0)","v":1},{"$f":"IF(J72=\"no\",\"no\",\"yes\")","v":"no"},1,{"$f":"IF(OR(($R$2=Q72),($R$2=\"\")),1,0)","v":1},{"$f":"IF(OR(($U$2=U72),($U$2=\"\")),1,0)","v":1},{"$f":"IF(OR(($W$2=B72),($W$2=\"\")),1,0)","v":1},0]
[{"$f":"AJ73","v":0},"Flamco","Airfix P 80-H",80,"n.c.","n.c.",100,3.5,10,"no","/",460,660,"G 1\" M","-",12.3,"horizontal","no","yes","EPDM","yes","azote/stikstof","gris/grijs",24882,"Airfix P 24-H - 300-H",null,null,0,1,1,"no",{"$f":"IF(OR(($O$2=AE73),($O$2=\"\")),1,0)","v":1},1,1,1,{"$f":"AB73*AC73*AD73*AF73*AG73*AH73*AI73","v":0}]
[0,"Flamco","Airfix P 100-H",100,"n.c.","n.c.",100,3.5,10,"no","/",460,780,"G 1\" M","-",14,"horizontal","no","yes","EPDM","yes","azote/stikstof","gris/grijs",24883,"Airfix P 24-H - 300-H",null,null,0,1,1,"no",1,1,1,1,0]
[0,"Flamco","Airfix P 150-H",150,"n.c.","n.c.",100,3.5,10,"no","/",510,950,"G 1\" M","-",23.5,"horizontal","no","yes","EPDM","yes","azote/stikstof","gris/grijs",24884,"Airfix P 24-H - 300-H",null,null,0,1,1,"no",1,1,1,1,0]
[0,"Flamco","Airfix P 200-H",200,"n.c.","n.c.",100,3.5,10,"no","/",590,940,"G 1 1/4\" M","-",34.200000000000003,"horizontal","no","yes","EPDM","yes","azote/stikstof","gris/grijs",24885,"Airfix P 24-H - 300-H",null,null,0,1,1,"no",1,1,1,1,0]
[0,"Flamco","Airfix P 300-H",300,"n.c.","n.c.",100,3.5,10,"no","/",650,1150,"G 1 1/4\" M","-",44,"horizontal","no","yes","EPDM","yes","azote/stikstof","gris/grijs",24886,"Airfix P 24-H - 300-H",null,null,0,1,1,"no",1,1,1,1,0]
[0,"Flamco","Airfix D-E-B 1600 (10)",1600,{"$f":"ROUNDDOWN(F78*D78,1)","v":1008},0.63,70,6,10,"no","/",1000,2680,"Rp 2 1/2\"","-",529,"vertical","no","yes","butyl","yes","azote/stikstof","blanc/wit",14918,"Airfix D-E-B 1600 - 3000",null,null,{"$f":"IF(AND($C$2>1000,$C$2<=D78),1,0)","v":0},1,1,"no",1,1,1,1,0]
[0,"Flamco","Airfix D-E-B 2000 (10)",2000,{"$f":"ROUNDDOWN(F79*D79,1)","v":1260},0.63,70,6,10,"no","/",1200,2400,"Rp 2 1/2\"","-",593,"vertical","no","yes","butyl","yes","azote/stikstof","blanc/wit",14922,"Airfix D-E-B 1600 - 3000",null,null,{"$f":"IF(AND($C$2>D78,$C$2<=D79),1,0)","v":0},1,1,"no",1,1,1,1,0]
[0,"Flamco","Airfix D-E-B 3000 (10)",3000,1890,0.63,70,6,10,"no","/",1200,3300,"Rp 2 1/2\"","-",782,"vertical","no","yes","butyl","yes","azote/stikstof","blanc/wit",14932,"Airfix D-E-B 1600 - 3000",null,null,{"$f":"IF(AND($C$2>D79,$C$2<=D80),1,0)","v":0},1,1,"no",1,1,1,1,0]
[0,"Flamco","Airfix D-E-B 50 (16)",50,31.5,0.63,70,6,16,"no","/",450,830,"Rp 2 1/2\"","-",58,"vertical","no","yes","butyl","yes","azote/stikstof","blanc/wit",14703,"Airfix D-E-B 50 - 3000",null,null,{"$f":"IF(AND($C$2>0,$C$2<=D81),1,0)","v":0},1,1,"no",1,1,1,1,0]
[0,"Flamco","Airfix D-E-B 80 (16)",80,50.4,0.63,70,6,16,"no","/",450,1010,"Rp 2 1/2\"","-",69,"vertical","no","yes","butyl","yes","azote/stikstof","blanc/wit",14803,"Airfix D-E-B 50 - 3000",null,null,{"$f":"IF(AND($C$2>D81,$C$2<=D82),1,0)","v":0},1,1,"no",1,1,1,1,0]
[0,"Flamco","Airfix D-E-B 120 (16)",120,75.599999999999994,0.63,70,6,16,"no","/",450,1265,"Rp 2 1/2\"","-",83,"vertical","no","yes","butyl","yes","azote/stikstof","blanc/wit",14815,"Airfix D-E-B 50 - 3000",null,null,0,1,1,"no",1,1,1,1,0]
[0,"Flamco","Airfix D-E-B 180 (16)",180,113.4,0.63,70,6,16,"no","/",550,1255,"Rp 2 1/2\"","-",124,"vertical","no","yes","butyl","yes","azote/stikstof","blanc/wit",14821,"Airfix D-E-B 50 - 3000",null,null,0,1,1,"no",1,1,1,1,0]
[0,"Flamco","Airfix D-E-B 240 (16)",240,151.19999999999999,0.63,70,6,16,"no","/",550,1515,"Rp 2 1/2\"","-",147,"vertical","no","yes","butyl","yes","azote/stikstof","blanc/wit",14827,"Airfix D-E-B 50 - 3000",null,null,0,1,1,"no",1,1,1,1,0]
[0,"Flamco","Airfix D-E-B 300 (16)",300,189,0.63,70,6,16,"no","/",550,1855,"Rp 2 1/2\"","-",178,"vertical","no","yes","butyl","yes","azote/stikstof","blanc/wit",14833,"Airfix D-E-B 50 - 3000",null,null,0,1,1,"no",1,1,1,1,0]
[0,"Flamco","Airfix D-E-B 600 (16)",600,378,0.63,70,6,16,"no","/",750,1840,"Rp 2\"","-",282,"vertical","no","yes","butyl","yes","azote/stikstof","blanc/wit",14863,"Airfix D-E-B 50 - 3000",null,null,0,1,1,"no",1,1,1,1,0]
[0,"Flamco","Airfix D-E-B 800 (16)",800,504,0.63,70,6,16,"no","/",750,2230,"Rp 2\"","-",333,"vertical","no","yes","butyl","yes","azote/stikstof","blanc/wit",14883,"Airfix D-E-B 50 - 3000",null,null,0,1,1,"no",1,1,1,1,0]
[0,"Flamco","Airfix D-E-B 1000 (16)",1000,630,0.63,70,6,16,"no","/",750,2730,"Rp 2\"","-",398,"vertical","no","yes","butyl","yes","azote/stikstof","blanc/wit",14913,"Airfix D-E-B 50 - 3000",null,null,0,1,1,"no",1,1,1,1,0]
[0,"Flamco","Airfix D-E-B 1600 (16)",1600,1008,0.63,70,6,16,"no","/",1000,2680,"Rp 2 1/2\"","-",587,"vertical","no","yes","butyl","yes","azote/stikstof","blanc/wit",14919,"Airfix D-E-B 50 - 3000",null,null,0,1,1,"no",1,1,1,1,0]
[0,"Flamco","Airfix D-E-B 2000 (16)",2000,1260,0.63,70,6,16,"no","/",1200,2400,"Rp 2 1/2\"","-",657,"vertical","no","yes","butyl","yes","azote/stikstof","blanc/wit",14923,"Airfix D-E-B 50 - 3000",null,null,0,1,1,"no",1,1,1,1,0]
[0,"Flamco","Airfix D-E-B 3000 (16)",3000,1890,0.63,70,6,16,"no","/",1200,3300,"Rp 2 1/2\"","-",864,"vertical","no","yes","butyl","yes","azote/stikstof","blanc/wit",14933,"Airfix D-E-B 50 - 3000",null,null,0,1,1,"no",1,1,1,1,0]
[0,"Pneumatex","Aquapresso AD 8.10",8,"n.c.","n.c.",70,4,10,"no","/",314,166,"R 1/2\"","-",3.8,"vertical","yes","no","butyl","no","azote/stikstof","bleu/blauw","711 1000","Aquapresso AD 8 - 80",null,null,{"$f":"IF(AND($C$2>0,$C$2<=D93),1,0)","v":0},1,1,"no",1,1,1,1,0]
[0,"Pneumatex","Aquapresso AD 12.10",12,"n.c.","n.c.",70,4,10,"no","/",352,201,"R 1/2\"","-",5.0999999999999996,"vertical","yes","no","butyl","no","azote/stikstof","bleu/blauw","711 1001","Aquapresso AD 8 - 80",null,null,{"$f":"IF(AND($C$2>D93,$C$2<=D94),1,0)","v":0},1,1,"no",1,1,1,1,0]
[0,"Pneumatex","Aquapresso AD 18.10",18,"n.c.","n.c.",70,4,10,"no","/",393,224,"R 3/4\"","-",6.5,"vertical","yes","no","butyl","no","azote/stikstof","bleu/blauw","711 1002","Aquapresso AD 8 - 80",null,null,0,1,1,"no",1,1,1,1,0]
[0,"Pneumatex","Aquapresso AD 25.10",25,"n.c.","n.c.",70,4,10,"no","/",436,251,"R 3/4\"","-",8.1999999999999993,"vertical","yes","no","butyl","no","azote/stikstof","bleu/blauw","711 1003","Aquapresso AD 8 - 80",null,null,0,1,1,"no",1,1,1,1,0]
[0,"Pneumatex","Aquapresso AD 35.10",35,"n.c.","n.c.",70,4,10,"no","/",485,280,"R 3/4\"","-",10.1,"vertical","yes","no","butyl","no","azote/stikstof","bleu/blauw","711 1004","Aquapresso AD 8 - 80",null,null,0,1,1,"no",1,1,1,1,0]
[0,"Pneumatex","Aquapresso AD 50.10",50,"n.c.","n.c.",70,4,10,"no","/",536,317,"R 1\"","-",12.6,"vertical","yes","no","butyl","no","azote/stikstof","bleu/blauw","711 1005","Aquapresso AD 8 - 80",null,null,0,1,1,"no",1,1,1,1,0]
[0,"Pneumatex","Aquapresso AD 80.10",80,"n.c.","n.c.",70,4,10,"no","/",636,347,"R 1\"","-",16.899999999999999,"vertical","yes","no","butyl","no","azote/stikstof","bleu/blauw","711 1006","Aquapresso AD 8 - 80",null,null,0,1,1,"no",1,1,1,1,0]
[0,"Pneumatex","Aquapresso ADF 8.10",8,"n.c.","n.c.",70,4,10,"full flow",0.6,345,166,"2 x R 1/2\"","-",4,"vertical","yes","no","butyl","no","azote/stikstof","bleu/blauw","711 2000","Aquapresso ADF 8 - 80",null,null,{"$f":"IF(AND($C$2>0,$C$2<=D100),1,0)","v":0},1,1,"yes",1,1,1,1,0]
[0,"Pneumatex","Aquapresso ADF 12.10",12,"n.c.","n.c.",70,4,10,"full flow",0.6,386,201,"2 x R 1/2\"","-",5.3,"vertical","yes","no","butyl","no","azote/stikstof","bleu/blauw","711 2001","Aquapresso ADF 8 - 80",null,null,{"$f":"IF(AND($C$2>D100,$C$2<=D101),1,0)","v":0},1,1,"yes",1,1,1,1,0]
[0,"Pneumatex","Aquapresso ADF 18.10",18,"n.c.","n.c.",70,4,10,"full flow",1,430,224,"2 x R 3/4\"","-",6.6,"vertical","yes","no","butyl","no","azote/stikstof","bleu/blauw","711 2002","Aquapresso ADF 8 - 80",null,null,0,1,1,"yes",1,1,1,1,0]
[0,"Pneumatex","Aquapresso ADF 25.10",25,"n.c.","n.c.",70,4,10,"full flow",1,472,251,"2 x R 3/4\"","-",8.5,"vertical","yes","no","butyl","no","azote/stikstof","bleu/blauw","711 2003","Aquapresso ADF 8 - 80",null,null,0,1,1,"yes",1,1,1,1,0]
[0,"Pneumatex","Aquapresso ADF 35.10",35,"n.c.","n.c.",70,4,10,"full flow",1,521,280,"2 x R 3/4\"","-",10.4,"vertical","yes","no","butyl","no","azote/stikstof","bleu/blauw","711 2004","Aquapresso ADF 8 - 80",null,null,0,1,1,"yes",1,1,1,1,0]
[0,"Pneumatex","Aquapresso ADF 50.10",50,"n.c.","n.c.",70,4,10,"full flow",1.7,587,317,"2 x R 1\"","-",13,"vertical","yes","no","butyl","no","azote/stikstof","bleu/blauw","711 2005","Aquapresso ADF 8 - 80",null,null,0,1,1,"yes",1,1,1,1,0]
[0,"Pneumatex","Aquapresso ADF 80.10",80,"n.c.","n.c.",70,4,10,"full flow",1.7,687,347,"2 x R 1\"","-",17.399999999999999,"vertical","yes","no","butyl","no","azote/stikstof","bleu/blauw","711 2006","Aquapresso ADF 8 - 80",null,null,0,1,1,"yes",1,1,1,1,0]
[0,"Pneumatex","Aquapresso AU 140.10",140,"n.c.","n.c.",70,4,10,"no","/",420,1274,"R 1 1/4\"","-",33,"vertical","no","yes","butyl","no","azote/stikstof","bleu/blauw","711 1007","Aquapresso AU 140 - 600",null,null,{"$f":"IF(AND($C$2>80,$C$2<=D107),1,0)","v":0},1,1,"no",1,1,1,1,0]
[0,"Pneumatex","Aquapresso AU 200.10",200,"n.c.","n.c.",70,4,10,"no","/",500,1330,"R 1 1/4\"","-",41,"vertical","no","yes","butyl","no","azote/stikstof","bleu/blauw","711 1008","Aquapresso AU 140 - 600",null,null,{"$f":"IF(AND($C$2>D107,$C$2<=D108),1,0)","v":0},1,1,"no",1,1,1,1,0]
[0,"Pneumatex","Aquapresso AU 300.10",300,"n.c.","n.c.",70,4,10,"no","/",560,1451,"R 1 1/4\"","-",60,"vertical","no","yes","butyl","no","azote/stikstof","bleu/blauw","711 1009","Aquapresso AU 140 - 600",null,null,{"$f":"IF(AND($C$2>D108,$C$2<=D109),1,0)","v":0},1,1,"no",1,1,1,1,0]
[0,"Pneumatex","Aquapresso AU 400.10",400,"n.c.","n.c.",70,4,10,"no","/",620,1499,"R 1 1/4\"","-",70,"vertical","no","yes","butyl","no","azote/stikstof","bleu/blauw","711 1010","Aquapresso AU 140 - 600",null,null,{"$f":"IF(AND($C$2>D109,$C$2<=D110),1,0)","v":0},1,1,"no",1,1,1,1,0]
[0,"Pneumatex","Aquapresso AU 500.10",500,"n.c.","n.c.",70,4,10,"no","/",680,1588,"R 1 1/4\"","-",90,"vertical","no","yes","butyl","no","azote/stikstof","bleu/blauw","711 1011","Aquapresso AU 140 - 600",null,null,{"$f":"IF(AND($C$2>D110,$C$2<=D111),1,0)","v":0},1,1,"no",1,1,1,1,0]
[0,"Pneumatex","Aquapresso AU 600.10",600,"n.c.","n.c.",70,4,10,"no","/",740,1596,"R 1 1/4\"","-",108,"vertical","no","yes","butyl","no","azote/stikstof","bleu/blauw","711 1012","Aquapresso AUF 140 - 600",null,null,{"$f":"IF(AND($C$2>D111,$C$2<=D112),1,0)","v":0},1,1,"no",1,1,1,1,0]
[0,"Pneumatex","Aquapresso AUF 140.10",140,"n.c.","n.c.",70,4,10,"full flow",7.3,420,1274,"2 x R 1 1/4\"","-",34,"vertical","no","yes","butyl","no","azote/stikstof","bleu/blauw","711 2007","Aquapresso AUF 140 - 500",null,null,{"$f":"IF(AND($C$2>80,$C$2<=D113),1,0)","v":0},1,1,"yes",1,1,1,1,0]
[0,"Pneumatex","Aquapresso AUF 200.10",200,"n.c.","n.c.",70,4,10,"full flow",7.3,500,1330,"2 x R 1 1/4\"","-",42,"vertical","no","yes","butyl","no","azote/stikstof","bleu/blauw","711 2008","Aquapresso AUF 140 - 500",null,null,{"$f":"IF(AND($C$2>D113,$C$2<=D114),1,0)","v":0},1,1,"yes",1,1,1,1,0]
[0,"Pneumatex","Aquapresso AUF 300.10",300,"n.c.","n.c.",70,4,10,"full flow",7.3,560,1451,"2 x R 1 1/4\"","-",61,"vertical","no","yes","butyl","no","azote/stikstof","bleu/blauw","711 2009","Aquapresso AUF 140 - 500",null,null,{"$f":"IF(AND($C$2>D114,$C$2<=D115),1,0)","v":0},1,1,"yes",1,1,1,1,0]
[0,"Pneumatex","Aquapresso AUF 400.10",400,"n.c.","n.c.",70,4,10,"full flow",7.3,620,1499,"2 x R 1 1/4\"","-",71,"vertical","no","yes","butyl","no","azote/stikstof","bleu/blauw","711 2010","Aquapresso AUF 140 - 500",null,null,{"$f":"IF(AND($C$2>D115,$C$2<=D116),1,0)","v":0},1,1,"yes",1,1,1,1,0]
[0,"Pneumatex","Aquapresso AUF 500.10",500,"n.c.","n.c.",70,4,10,"full flow",7.3,680,1588,"2 x R 1 1/4\"","-",91,"vertical","no","yes","butyl","no","azote/stikstof","bleu/blauw","711 2011","Aquapresso AUF 140 - 500",null,null,{"$f":"IF(AND($C$2>D116,$C$2<=D117),1,0)","v":0},1,1,"yes",1,1,1,1,0]
[0,"Pneumatex","Aquapresso AG 700.10",700,"n.c.","n.c.",70,4,10,"no","/",750,1901,"-","DN 50",250,"vertical","no","yes","butyl","yes","azote/stikstof","bleu/blauw","711 1013","Aquapresso AG 700 - 5000",null,null,{"$f":"IF(AND($C$2>600,$C$2<=D118),1,0)","v":0},1,1,"no",1,1,1,1,0]
[0,"Pneumatex","Aquapresso AG 1000.10",1000,"n.c.","n.c.",70,4,10,"no","/",850,2070,"-","DN 65",340,"vertical","no","yes","butyl","yes","azote/stikstof","bleu/blauw","711 1014","Aquapresso AG 700 - 5000",null,null,{"$f":"IF(AND($C$2>D118,$C$2<=D119),1,0)","v":0},1,1,"no",1,1,1,1,0]
[0,"Pneumatex","Aquapresso AG 1500.10",1500,"n.c.","n.c.",70,4,10,"no","/",1016,2253,"-","DN 65",460,"vertical","no","yes","butyl","yes","azote/stikstof","bleu/blauw","711 1015","Aquapresso AG 700 - 5000",null,null,0,1,1,"no",1,1,1,1,0]
[0,"Pneumatex","Aquapresso AG 2000.10",2000,"n.c.","n.c.",70,4,10,"no","/",1016,2773,"-","DN 80",760,"vertical","no","yes","butyl","yes","azote/stikstof","bleu/blauw","711 1020","Aquapresso AG 700 - 5000",null,null,0,1,1,"no",1,1,1,1,0]
[0,"Pneumatex","Aquapresso AG 3000.10",3000,"n.c.","n.c.",70,4,10,"no","/",1300,2871,"-","DN 80",920,"vertical","no","yes","butyl","yes","azote/stikstof","bleu/blauw","711 1017","Aquapresso AG 700 - 5000",null,null,0,1,1,"no",1,1,1,1,0]
[0,"Pneumatex","Aquapresso AG 4000.10",4000,"n.c.","n.c.",70,4,10,"no","/",1300,3518,"-","DN 80",1060,"vertical","no","yes","butyl","yes","azote/stikstof","bleu/blauw","711 1018","Aquapresso AG 700 - 5000",null,null,0,1,1,"no",1,1,1,1,0]
[0,"Pneumatex","Aquapresso AG 5000.10",5000,"n.c.","n.c.",70,4,10,"no","/",1300,4161,"-","DN 80",1180,"vertical","no","yes","butyl","yes","azote/stikstof","bleu/blauw","711 1019","Aquapresso AG 700 - 5000",null,null,0,1,1,"no",1,1,1,1,0]
[0,"Pneumatex","Aquapresso AG 300.16",300,"n.c.","n.c.",70,4,16,"no","/",500,1824,"-","DN 50",180,"vertical","no","yes","butyl","yes","azote/stikstof","bleu/blauw","711 3000","Aquapresso AG 300 - 5000",null,null,{"$f":"IF(AND($C$2>0,$C$2<=D125),1,0)","v":0},1,1,"no",1,1,1,1,0]
[0,"Pneumatex","Aquapresso AG 500.16",500,"n.c.","n.c.",70,4,16,"no","/",650,1879,"-","DN 50",250,"vertical","no","yes","butyl","yes","azote/stikstof","bleu/blauw","711 3001","Aquapresso AG 300 - 5000",null,null,{"$f":"IF(AND($C$2>D125,$C$2<=D126),1,0)","v":0},1,1,"no",1,1,1,1,0]
[0,"Pneumatex","Aquapresso AG 700.16",700,"n.c.","n.c.",70,4,16,"no","/",750,1954,"-","DN 50",290,"vertical","no","yes","butyl","yes","azote/stikstof","bleu/blauw","711 3002","Aquapresso AG 300 - 5000",null,null,0,1,1,"no",1,1,1,1,0]
[0,"Pneumatex","Aquapresso AG 1000.16",1000,"n.c.","n.c.",70,4,16,"no","/",850,2103,"-","DN 65",390,"vertical","no","yes","butyl","yes","azote/stikstof","bleu/blauw","711 3003","Aquapresso AG 300 - 5000",null,null,0,1,1,"no",1,1,1,1,0]
[0,"Pneumatex","Aquapresso AG 1500.16",1500,"n.c.","n.c.",70,4,16,"no","/",1016,2256,"-","DN 65",520,"vertical","no","yes","butyl","yes","azote/stikstof","bleu/blauw","711 3004","Aquapresso AG 300 - 5000",null,null,0,1,1,"no",1,1,1,1,0]
[0,"Pneumatex","Aquapresso AG 2000.16",2000,"n.c.","n.c.",70,4,16,"no","/",1016,2792,"-","DN 80",840,"vertical","no","yes","butyl","yes","azote/stikstof","bleu/blauw","711 3009","Aquapresso AG 300 - 5000",null,null,0,1,1,"no",1,1,1,1,0]
[0,"Pneumatex","Aquapresso AG 3000.16",3000,"n.c.","n.c.",70,4,16,"no","/",1300,2898,"-","DN 80",1000,"vertical","no","yes","butyl","yes","azote/stikstof","bleu/blauw","711 3006","Aquapresso AG 300 - 5000",null,null,0,1,1,"no",1,1,1,1,0]
[0,"Pneumatex","Aquapresso AG 4000.16",4000,"n.c.","n.c.",70,4,16,"no","/",1300,3543,"-","DN 80",1170,"vertical","no","yes","butyl","yes","azote/stikstof","bleu/blauw","711 3007","Aquapresso AG 300 - 5000",null,null,0,1,1,"no",1,1,1,1,0]
[0,"Pneumatex","Aquapresso AG 5000.16",5000,"n.c.","n.c.",70,4,16,"no","/",1300,4188,"-","DN 80",1310,"vertical","no","yes","butyl","yes","azote/stikstof","bleu/blauw","711 3008","Aquapresso AG 300 - 5000",null,null,0,1,1,"no",1,1,1,1,0]
[0,"Pneumatex","Aquapresso AGF 700.10",700,"n.c.","n.c.",70,4,10,"full flow",11.5,750,1970,"-","2 x DN 50",260,"vertical","no","yes","butyl","yes","azote/stikstof","bleu/blauw","711 2013","Aquapresso AGF 700 - 5000",null,null,{"$f":"IF(AND($C$2>500,$C$2<=D134),1,0)","v":0},1,1,"yes",1,1,1,1,0]
[0,"Pneumatex","Aquapresso AGF 1000.10",1000,"n.c.","n.c.",70,4,10,"full flow",19.5,850,2171,"-","2 x DN 65",355,"vertical","no","yes","butyl","yes","azote/stikstof","bleu/blauw","711 2014","Aquapresso AGF 700 - 5000",null,null,{"$f":"IF(AND($C$2>D134,$C$2<=D135),1,0)","v":0},1,1,"yes",1,1,1,1,0]
[0,"Pneumatex","Aquapresso AGF 1500.10",1500,"n.c.","n.c.",70,4,10,"full flow",19.5,1016,2354,"-","2 x DN 65",475,"vertical","no","yes","butyl","yes","azote/stikstof","bleu/blauw","711 2015","Aquapresso AGF 700 - 5000",null,null,0,{"$f":"IF(G136>=$D$2>0,1,0)","v":1},{"$f":"IF(I136>=$E$2*1.2>0,1,0)","v":1},{"$f":"IF(J136=\"no\",\"no\",\"yes\")","v":"yes"},1,{"$f":"IF(OR(($R$2=Q136),($R$2=\"\")),1,0)","v":1},{"$f":"IF(OR(($U$2=U136),($U$2=\"\")),1,0)","v":1},{"$f":"IF(OR(($W$2=B136),($W$2=\"\")),1,0)","v":1},0]
[{"$f":"AJ137","v":0},"Pneumatex","Aquapresso AGF 2000.10",2000,"n.c.","n.c.",70,4,10,"full flow",31,1016,2925,"-","2 x DN 80",775,"vertical","no","yes","butyl","yes","azote/stikstof","bleu/blauw","711 2020","Aquapresso AGF 700 - 5000",null,null,0,1,1,"yes",{"$f":"IF(OR(($O$2=AE137),($O$2=\"\")),1,0)","v":1},1,1,1,{"$f":"AB137*AC137*AD137*AF137*AG137*AH137*AI137","v":0}]
[0,"Pneumatex","Aquapresso AGF 3000.10",3000,"n.c.","n.c.",70,4,10,"full flow",31,1300,3022,"-","2 x DN 80",935,"vertical","no","yes","butyl","yes","azote/stikstof","bleu/blauw","711 2017","Aquapresso AGF 700 - 5000",null,null,0,1,1,"yes",1,1,1,1,0]
[0,"Pneumatex","Aquapresso AGF 4000.10",4000,"n.c.","n.c.",70,4,10,"full flow",31,1300,3668,"-","2 x DN 80",1080,"vertical","no","yes","butyl","yes","azote/stikstof","bleu/blauw","711 2018","Aquapresso AGF 700 - 5000",null,null,0,1,1,"yes",1,1,1,1,0]
[0,"Pneumatex","Aquapresso AGF 5000.10",5000,"n.c.","n.c.",70,4,10,"full flow",31,1300,4313,"-","2 x DN 80",1200,"vertical","no","yes","butyl","yes","azote/stikstof","bleu/blauw","711 2019","Aquapresso AGF 700 - 5000",null,null,0,1,1,"yes",1,1,1,1,0]
[0,"Pneumatex","Aquapresso AGF 300.16",300,"n.c.","n.c.",70,4,16,"full flow",11.5,500,1891,"-","2 x DN 50",200,"vertical","no","yes","butyl","yes","azote/stikstof","bleu/blauw","711 4000","Aquapresso AGF 300 - 5000",null,null,{"$f":"IF(AND($C$2>0,$C$2<=D141),1,0)","v":0},1,1,"yes",1,1,1,1,0]
[0,"Pneumatex","Aquapresso AGF 500.16",500,"n.c.","n.c.",70,4,16,"full flow",11.5,650,1946,"-","2 x DN 50",270,"vertical","no","yes","butyl","yes","azote/stikstof","bleu/blauw","711 4001","Aquapresso AGF 300 - 5000",null,null,{"$f":"IF(AND($C$2>D141,$C$2<=D142),1,0)","v":0},1,1,"yes",1,1,1,1,0]
[0,"Pneumatex","Aquapresso AGF 700.16",700,"n.c.","n.c.",70,4,16,"full flow",11.5,750,1970,"-","2 x DN 50",300,"vertical","no","yes","butyl","yes","azote/stikstof","bleu/blauw","711 4002","Aquapresso AGF 300 - 5000",null,null,0,1,1,"yes",1,1,1,1,0]
[0,"Pneumatex","Aquapresso AGF 1000.16",1000,"n.c.","n.c.",70,4,16,"full flow",19.5,850,2218,"-","2 x DN 65",410,"vertical","no","yes","butyl","yes","azote/stikstof","bleu/blauw","711 4003","Aquapresso AGF 300 - 5000",null,null,0,1,1,"yes",1,1,1,1,0]
[0,"Pneumatex","Aquapresso AGF 1500.16",1500,"n.c.","n.c.",70,4,16,"full flow",19.5,1016,2371,"-","2 x DN 65",540,"vertical","no","yes","butyl","yes","azote/stikstof","bleu/blauw","711 4004","Aquapresso AGF 300 - 5000",null,null,0,1,1,"yes",1,1,1,1,0]
[0,"Pneumatex","Aquapresso AGF 2000.16",2000,"n.c.","n.c.",70,4,16,"full flow",31,1016,2941,"-","2 x DN 80",860,"vertical","no","yes","butyl","yes","azote/stikstof","bleu/blauw","711 4009","Aquapresso AGF 300 - 5000",null,null,0,1,1,"yes",1,1,1,1,0]
[0,"Pneumatex","Aquapresso AGF 3000.16",3000,"n.c.","n.c.",70,4,16,"full flow",31,1300,3046,"-","2 x DN 80",1040,"vertical","no","yes","butyl","yes","azote/stikstof","bleu/blauw","711 4006","Aquapresso AGF 300 - 5000",null,null,0,1,1,"yes",1,1,1,1,0]
[0,"Pneumatex","Aquapresso AGF 4000.16",4000,"n.c.","n.c.",70,4,16,"full flow",31,1300,3691,"-","2 x DN 80",1195,"vertical","no","yes","butyl","yes","azote/stikstof","bleu/blauw","711 4007","Aquapresso AGF 300 - 5000",null,null,0,1,1,"yes",1,1,1,1,0]
[0,"Pneumatex","Aquapresso AGF 5000.16",5000,"n.c.","n.c.",70,4,16,"full flow",31,1300,4336,"-","2 x DN 80",1335,"vertical","no","yes","butyl","yes","azote/stikstof","bleu/blauw","711 4008","Aquapresso AGF 300 - 5000",null,null,0,1,1,"yes",1,1,1,1,0]
[0,"Reflex","Refix DD 2 (green)",2,1.8,{"$f":"ROUND(E150/D150,2)","v":0.9},70,4,10,"no","/",132,269,"G 3/4\" M","-",1,"vertical","no","no","butyl","no","azote/stikstof","vert/groen",7381500,"Refix DD 2 - 33 (green)",null,null,{"$f":"IF(AND($C$2>0,$C$2<=D150),1,0)","v":0},1,1,"no",1,1,1,1,0]
[0,"Reflex","Refix DD 8 (white)",8,6,{"$f":"ROUND(E151/D151,2)","v":0.75},70,4,10,"partial flow",2.5,206,345,"G 3/4\" M","-",1.7,"vertical","no","no","butyl","no","azote/stikstof","blanc/wit",7307700,"Refix DD 8 - 33 (white)",null,null,{"$f":"IF(AND($C$2>0,$C$2<=D151),1,0)","v":0},1,1,"yes",1,1,1,1,0]
[0,"Reflex","Refix DD 8 (green)",8,6,0.75,70,4,10,"partial flow",2.5,206,345,"G 3/4\" M","-",1.7,"vertical","no","no","butyl","no","azote/stikstof","vert/groen",7308000,"Refix DD 2 - 33 (green)",null,null,{"$f":"IF(AND($C$2>D150,$C$2<=D152),1,0)","v":0},1,1,"yes",1,1,1,1,0]
[0,"Reflex","Refix DD 12 (white)",12,9,0.75,70,4,10,"partial flow",2.5,280,318,"G 3/4\" M","-",2,"vertical","no","no","butyl","no","azote/stikstof","blanc ou vert/wit of groen",7307800,"Refix DD 8 - 33 (white)",null,null,0,1,1,"yes",1,1,1,1,0]
[0,"Reflex","Refix DD 12 (green)",12,9,0.75,70,4,10,"partial flow",2.5,280,318,"G 3/4\" M","-",2,"vertical","no","no","butyl","no","azote/stikstof","vert/groen",7308200,"Refix DD 2 - 33 (green)",null,null,0,1,1,"yes",1,1,1,1,0]
[0,"Reflex","Refix DD 18 (white)",18,13.5,0.75,70,4,10,"partial flow",2.5,280,420,"G 3/4\" M","-",2.5,"vertical","no","no","butyl","no","azote/stikstof","blanc/wit",7307900,"Refix DD 8 - 33 (white)",null,null,0,1,1,"yes",1,1,1,1,0]
[0,"Reflex","Refix DD 18 (green)",18,13.5,0.75,70,4,10,"partial flow",2.5,280,420,"G 3/4\" M","-",2.5,"vertical","no","no","butyl","no","azote/stikstof","vert/groen",7308300,"Refix DD 2 - 33 (green)",null,null,0,1,1,"yes",1,1,1,1,0]
[0,"Reflex","Refix DD 25 (white)",25,18.7,0.75,70,4,10,"partial flow",2.5,280,530,"G 3/4\" M","-",3.3,"vertical","no","no","butyl","no","azote/stikstof","blanc/wit",7380400,"Refix DD 8 - 33 (white)",null,null,0,1,1,"yes",1,1,1,1,0]
[0,"Reflex","Refix DD 25 (green)",25,18.7,0.75,70,4,10,"partial flow",2.5,280,530,"G 3/4\" M","-",3.3,"vertical","no","no","butyl","no","azote/stikstof","vert/groen",7308400,"Refix DD 2 - 33 (green)",null,null,0,1,1,"yes",1,1,1,1,0]
[0,"Reflex","Refix DD 33 (white)",33,23,0.7,70,4,10,"partial flow",2.5,354,468,"G 3/4\" M","-",5.8,"vertical","yes","no","butyl","no","azote/stikstof","blanc/wit",7380800,"Refix DD 8 - 33 (white)",null,null,0,1,1,"yes",1,1,1,1,0]
[0,"Reflex","Refix DD 33 (green)",33,23,0.7,70,4,10,"partial flow",2.5,354,468,"G 3/4\" M","-",5.8,"vertical","yes","no","butyl","no","azote/stikstof","vert/groen",7380700,"Refix DD 2 - 33 (green)",null,null,0,1,1,"yes",1,1,1,1,0]
[0,"Reflex","Refix DD 8 (white)",8,6,0.75,70,4,25,"partial flow",2.5,206,344,"G 3/4\" M","-",3.4,"vertical","no","no","butyl","no","azote/stikstof","blanc/wit",7290300,"Refix DD 8 - 33 (white)",null,null,{"$f":"IF(AND($C$2>0,$C$2<=D161),1,0)","v":0},1,1,"yes",1,1,1,1,0]
[0,"Reflex","Refix DD 8 (green)",8,6,0.75,70,4,25,"partial flow",2.5,206,344,"G 3/4\" M","-",3.4,"vertical","no","no","butyl","no","azote/stikstof","vert/groen",7290200,"Refix DD 2 - 33 (green)",null,null,{"$f":"IF(AND($C$2>0,$C$2<=D162),1,0)","v":0},1,1,"yes",1,1,1,1,0]
[0,"Reflex","Refix DT 60 (1 /4\") (10)",60,45,0.75,70,4,10,"partial flow",7.2,409,766,"2 x Rp 1 1/4\"","-",15,"vertical","no","yes","butyl","yes","azote/stikstof","vert/groen",7309000,"Refix DT 60 - 3000",null,null,{"$f":"IF(AND($C$2>33,$C$2<=D163),1,0)","v":0},1,1,"yes",1,1,1,1,0]
[0,"Reflex","Refix DT 80 (1 1/4\") (10)",80,60,0.75,70,4,10,"partial flow",7.2,480,750,"2 x Rp 1 1/4\"","-",17,"vertical","no","yes","butyl","yes","azote/stikstof","vert/groen",7309100,"Refix DT 60 - 3000",null,null,{"$f":"IF(AND($C$2>D163,$C$2<=D164),1,0)","v":0},1,1,"yes",1,1,1,1,0]
[0,"Reflex","Refix DT 80 (Duo DN 50) (10)",80,60,0.75,70,4,10,"partial flow",15,480,750,"-","2 x DN 50",23.7,"vertical","no","yes","butyl","yes","azote/stikstof","vert/groen",7365000,"Refix DT 60 - 3000",null,null,{"$f":"IF(AND($C$2>D163,$C$2<=D165),1,0)","v":0},1,1,"yes",1,1,1,1,0]
[0,"Reflex","Refix DT 80 (Duo DN 65) (10)",80,60,0.75,70,4,10,"partial flow",27,480,750,"-","2 x DN 65",24.7,"vertical","no","yes","butyl","yes","azote/stikstof","vert/groen",7335705,"Refix DT 60 - 3000",null,null,{"$f":"IF(AND($C$2>D163,$C$2<=D166),1,0)","v":0},1,1,"yes",1,1,1,1,0]
[0,"Reflex","Refix DT 80 (Duo DN 80) (10)",80,60,0.75,70,4,10,"partial flow",36,480,750,"-","2 x DN 80",26.8,"vertical","no","yes","butyl","yes","azote/stikstof","vert/groen",7335805,"Refix DT 60 - 3000",null,null,{"$f":"IF(AND($C$2>D163,$C$2<=D167),1,0)","v":0},1,1,"yes",1,1,1,1,0]
[0,"Reflex","Refix DT 100 (1 1/4\") (10)",100,75,0.75,70,4,10,"partial flow",7.2,480,834,"2 x Rp 1 1/4\"","-",19.2,"vertical","no","yes","butyl","yes","azote/stikstof","vert/groen",7309200,"Refix DT 60 - 3000",null,null,0,1,1,"yes",1,1,1,1,0]
[0,"Reflex","Refix DT 100 (Duo DN 50) (10)",100,75,0.75,70,4,10,"partial flow",15,480,834,"-","2 x DN 50",26.8,"vertical","no","yes","butyl","yes","azote/stikstof","vert/groen",7365400,"Refix DT 60 - 3000",null,null,0,1,1,"yes",1,1,1,1,0]
[0,"Reflex","Refix DT 100 (Duo DN 65) (10)",100,75,{"$f":"ROUND(E170/D170,2)","v":0.75},70,4,10,"partial flow",27,480,834,"-","2 x DN 65",27.8,"vertical","no","yes","butyl","yes","azote/stikstof","vert/groen",7365405,"Refix DT 60 - 3000",null,null,0,1,1,"yes",1,1,1,1,0]
[0,"Reflex","Refix DT 100 (Duo DN 80) (10)",100,75,0.75,70,4,10,"partial flow",36,480,834,"-","2 x DN 80",28.9,"vertical","no","yes","butyl","yes","azote/stikstof","vert/groen",7365406,"Refix DT 60 - 3000",null,null,0,1,1,"yes",1,1,1,1,0]
[0,"Reflex","Refix DT 200 (1 1/4\") (10)",200,150,0.75,70,4,10,"partial flow",7.2,634,973,"2 x Rp 1 1/4\"","-",37,"vertical","no","yes","butyl","yes","azote/stikstof","vert/groen",7309300,"Refix DT 60 - 3000",null,null,0,1,1,"yes",1,1,1,1,0]
[0,"Reflex","Refix DT 200 (Duo DN 50) (10)",200,150,0.75,70,4,10,"partial flow",15,634,973,"-","2 x DN 50",53,"vertical","no","yes","butyl","yes","azote/stikstof","vert/groen",7365100,"Refix DT 60 - 3000",null,null,0,1,1,"yes",1,1,1,1,0]
[0,"Reflex","Refix DT 200 (Duo DN 65) (10)",200,150,0.75,70,4,10,"partial flow",27,634,973,"-","2 x DN 65",54,"vertical","no","yes","butyl","yes","azote/stikstof","vert/groen",7365105,"Refix DT 60 - 3000",null,null,0,1,1,"yes",1,1,1,1,0]
[0,"Reflex","Refix DT 200 (Duo DN 80) (10)",200,150,0.75,70,4,10,"partial flow",36,634,973,"-","2 x DN 80",57,"vertical","no","yes","butyl","yes","azote/stikstof","vert/groen",7365106,"Refix DT 60 - 3000",null,null,0,1,1,"yes",1,1,1,1,0]
[0,"Reflex","Refix DT 300 (1 1/4\") (10)",300,225,0.75,70,4,10,"partial flow",7.2,634,1273,"2 x Rp 1 1/4\"","-",51,"vertical","no","yes","butyl","yes","azote/stikstof","vert/groen",7309400,"Refix DT 60 - 3000",null,null,0,1,1,"yes",1,1,1,1,0]
[0,"Reflex","Refix DT 300 (Duo DN 50) (10)",300,225,0.75,70,4,10,"partial flow",15,634,1273,"-","2 x DN 50",59,"vertical","no","yes","butyl","yes","azote/stikstof","vert/groen",7365200,"Refix DT 60 - 3000",null,null,0,1,1,"yes",1,1,1,1,0]
[0,"Reflex","Refix DT 300 (Duo DN 65) (10)",300,225,0.75,70,4,10,"partial flow",27,634,1273,"-","2 x DN 65",60,"vertical","no","yes","butyl","yes","azote/stikstof","vert/groen",7336305,"Refix DT 60 - 3000",null,null,0,1,1,"yes",1,1,1,1,0]
[0,"Reflex","Refix DT 300 (Duo DN 80) (10)",300,225,0.75,70,4,10,"partial flow",36,634,1273,"-","2 x DN 80",63,"vertical","no","yes","butyl","yes","azote/stikstof","vert/groen",7336405,"Refix DT 60 - 3000",null,null,0,1,1,"yes",1,1,1,1,0]
[0,"Reflex","Refix DT 400 (1 1/4\") (10)",400,300,0.75,70,4,10,"partial flow",7.2,740,1245,"2 x Rp 1 1/4\"","-",74,"vertical","no","yes","butyl","yes","azote/stikstof","vert/groen",7319305,"Refix DT 60 - 3000",null,null,0,1,1,"yes",1,1,1,1,0]
[0,"Reflex","Refix DT 400 (Duo DN 50) (10)",400,300,0.75,70,4,10,"partial flow",15,740,1245,"-","2 x DN 50",80,"vertical","no","yes","butyl","yes","azote/stikstof","vert/groen",7365500,"Refix DT 60 - 3000",null,null,0,1,1,"yes",1,1,1,1,0]
[0,"Reflex","Refix DT 400 (Duo DN 65) (10)",400,300,0.75,70,4,10,"partial flow",27,740,1245,"-","2 x DN 65",81,"vertical","no","yes","butyl","yes","azote/stikstof","vert/groen",7336505,"Refix DT 60 - 3000",null,null,0,1,1,"yes",1,1,1,1,0]
[0,"Reflex","Refix DT 400 (Duo DN 80) (10)",400,300,0.75,70,4,10,"partial flow",36,740,1245,"-","2 x DN 80",83,"vertical","no","yes","butyl","yes","azote/stikstof","vert/groen",7336605,"Refix DT 60 - 3000",null,null,0,1,1,"yes",1,1,1,1,0]
[0,"Reflex","Refix DT 500 (1 1/4\") (10)",500,375,{"$f":"ROUND(E184/D184,2)","v":0.75},70,4,10,"partial flow",7.2,740,1475,"2 x Rp 1 1/4\"","-",72,"vertical","no","yes","butyl","yes","azote/stikstof","vert/groen",7309500,"Refix DT 60 - 3000",null,null,0,1,1,"yes",1,1,1,1,0]
[0,"Reflex","Refix DT 500 (Duo DN 50) (10)",500,375,0.75,70,4,10,"partial flow",15,740,1475,"-","2 x DN 50",88,"vertical","no","yes","butyl","yes","azote/stikstof","vert/groen",7365300,"Refix DT 60 - 3000",null,null,0,1,1,"yes",1,1,1,1,0]
[0,"Reflex","Refix DT 500 (Duo DN 65) (10)",500,375,0.75,70,4,10,"partial flow",27,740,1475,"-","2 x DN 65",89,"vertical","no","yes","butyl","yes","azote/stikstof","vert/groen",7365307,"Refix DT 60 - 3000",null,null,0,1,1,"yes",1,1,1,1,0]
[0,"Reflex","Refix DT 500 (Duo DN 80) (10)",500,375,0.75,70,4,10,"partial flow",36,740,1475,"-","2 x DN 80",92,"vertical","no","yes","butyl","yes","azote/stikstof","vert/groen",7365305,"Refix DT 60 - 3000",null,null,0,1,1,"yes",1,1,1,1,0]
[0,"Reflex","Refix DT 600 (Duo DN 50) (10)",600,450,0.75,70,4,10,"partial flow",15,740,1859,"-","2 x DN 50",164,"vertical","no","yes","butyl","yes","azote/stikstof","vert/groen",7365600,"Refix DT 60 - 3000",null,null,{"$f":"IF(AND($C$2>D185,$C$2<=D188),1,0)","v":0},1,1,"yes",1,1,1,1,0]
[0,"Reflex","Refix DT 600 (Duo DN 65) (10)",600,450,0.75,70,4,10,"partial flow",27,740,1859,"-","2 x DN 65",165,"vertical","no","yes","butyl","yes","azote/stikstof","vert/groen",7336705,"Refix DT 60 - 3000",null,null,0,1,1,"yes",1,1,1,1,0]
[0,"Reflex","Refix DT 600 (Duo DN 80) (10)",600,450,0.75,70,4,10,"partial flow",36,740,1859,"-","2 x DN 80",168,"vertical","no","yes","butyl","yes","azote/stikstof","vert/groen",7336806,"Refix DT 60 - 3000",null,null,0,1,1,"yes",1,1,1,1,0]
[0,"Reflex","Refix DT 800 (Duo DN 50) (10)",800,600,0.75,70,4,10,"partial flow",15,740,2324,"-","2 x DN 50",204,"vertical","no","yes","butyl","yes","azote/stikstof","vert/groen",7365700,"Refix DT 60 - 3000",null,null,0,1,1,"yes",1,1,1,1,0]
[0,"Reflex","Refix DT 800 (Duo DN 65) (10)",800,600,0.75,70,4,10,"partial flow",27,740,2324,"-","2 x DN 65",205,"vertical","no","yes","butyl","yes","azote/stikstof","vert/groen",7336905,"Refix DT 60 - 3000",null,null,0,1,1,"yes",1,1,1,1,0]
[0,"Reflex","Refix DT 800 (Duo DN 80) (10)",800,600,0.75,70,4,10,"partial flow",36,740,2324,"-","2 x DN 80",208,"vertical","no","yes","butyl","yes","azote/stikstof","vert/groen",7337006,"Refix DT 60 - 3000",null,null,0,1,1,"yes",1,1,1,1,0]
[0,"Reflex","Refix DT 1000 (Duo DN 50) (10)",1000,750,0.75,70,4,10,"partial flow",15,740,2804,"-","2 x DN 50",260,"vertical","no","yes","butyl","yes","azote/stikstof","vert/groen",7365800,"Refix DT 60 - 3000",null,null,0,1,1,"yes",1,1,1,1,0]
[0,"Reflex","Refix DT 1000 (Duo DN 65) (10)",1000,750,0.75,70,4,10,"partial flow",27,740,2804,"-","2 x DN 65",261,"vertical","no","yes","butyl","yes","azote/stikstof","vert/groen",7337105,"Refix DT 60 - 3000",null,null,0,1,1,"yes",1,1,1,1,0]
[0,"Reflex","Refix DT 1000 (Duo DN 80) (10)",1000,750,0.75,70,4,10,"partial flow",36,740,2804,"-","2 x DN 80",264,"vertical","no","yes","butyl","yes","azote/stikstof","vert/groen",7337205,"Refix DT 60 - 3000",null,null,0,1,1,"yes",1,1,1,1,0]
[0,"Reflex","Refix DT 1000 (Duo DN 65)* (10)",1000,900,0.9,70,4,10,"partial flow",27,1000,2001,"-","2 x DN 65",386.2,"vertical","no","yes","butyl","yes","azote/stikstof","vert/groen",7320105,"Refix DT 60 - 3000",null,null,{"$f":"IF(AND($C$2>D192,$C$2<=D197),1,0)","v":0},1,1,"yes",1,1,1,1,0]
[0,"Reflex","Refix DT 1000 (Duo DN 80)* (10)",1000,900,0.9,70,4,10,"partial flow",36,1000,2001,"-","2 x DN 80",386.2,"vertical","no","yes","butyl","yes","azote/stikstof","vert/groen",7337305,"Refix DT 60 - 3000",null,null,{"$f":"IF(AND($C$2>D193,$C$2<=D198),1,0)","v":0},1,1,"yes",1,1,1,1,0]
[0,"Reflex","Refix DT 1000 (Duo DN 100) (10)",1000,900,0.9,70,4,10,"partial flow",56,1000,2001,"-","2 x DN 100",386.2,"vertical","no","yes","butyl","yes","azote/stikstof","vert/groen",7337405,"Refix DT 60 - 3000",null,null,{"$f":"IF(AND($C$2>D193,$C$2<=D199),1,0)","v":0},1,1,"yes",1,1,1,1,0]
[0,"Reflex","Refix DT 1500 (Duo DN 65) (10)",1500,1350,0.9,70,4,10,"partial flow",27,1200,2001,"-","2 x DN 65",502.4,"vertical","no","yes","butyl","yes","azote/stikstof","vert/groen",7320305,"Refix DT 60 - 3000",null,null,{"$f":"IF(AND($C$2>D197,$C$2<=D200),1,0)","v":0},{"$f":"IF(G200>=$D$2>0,1,0)","v":1},{"$f":"IF(I200>=$E$2*1.2>0,1,0)","v":1},{"$f":"IF(J200=\"no\",\"no\",\"yes\")","v":"yes"},1,{"$f":"IF(OR(($R$2=Q200),($R$2=\"\")),1,0)","v":1},{"$f":"IF(OR(($U$2=U200),($U$2=\"\")),1,0)","v":1},{"$f":"IF(OR(($W$2=B200),($W$2=\"\")),1,0)","v":1},0]
[{"$f":"AJ201","v":0},"Reflex","Refix DT 1500 (Duo DN 80) (10)",1500,1350,0.9,70,4,10,"partial flow",36,1200,2001,"-","2 x DN 80",502.4,"vertical","no","yes","butyl","yes","azote/stikstof","vert/groen",7337505,"Refix DT 60 - 3000",null,null,0,1,1,"yes",{"$f":"IF(OR(($O$2=AE201),($O$2=\"\")),1,0)","v":1},1,1,1,{"$f":"AB201*AC201*AD201*AF201*AG201*AH201*AI201","v":0}]
[0,"Reflex","Refix DT 1500 (Duo DN 100) (10)",1500,1350,0.9,70,4,10,"partial flow",56,1200,2001,"-","2 x DN 100",502.4,"vertical","no","yes","butyl","yes","azote/stikstof","vert/groen",7337605,"Refix DT 60 - 3000",null,null,0,1,1,"yes",1,1,1,1,0]
[0,"Reflex","Refix DT 2000 (Duo DN 65) (10)",2000,1800,0.9,70,4,10,"partial flow",27,1200,2461,"-","2 x DN 65",686.5,"vertical","no","yes","butyl","yes","azote/stikstof","vert/groen",7320505,"Refix DT 60 - 3000",null,null,0,1,1,"yes",1,1,1,1,0]
[0,"Reflex","Refix DT 2000 (Duo DN 80) (10)",2000,1800,0.9,70,4,10,"partial flow",36,1200,2461,"-","2 x DN 80",686.5,"vertical","no","yes","butyl","yes","azote/stikstof","vert/groen",7337705,"Refix DT 60 - 3000",null,null,0,1,1,"yes",1,1,1,1,0]
[0,"Reflex","Refix DT 2000 (Duo DN 100) (10)",2000,1800,0.9,70,4,10,"partial flow",56,1200,2461,"-","2 x DN 100",686.5,"vertical","no","yes","butyl","yes","azote/stikstof","vert/groen",7337805,"Refix DT 60 - 3000",null,null,0,1,1,"yes",1,1,1,1,0]
[0,"Reflex","Refix DT 3000 (Duo DN 65) (10)",3000,2700,0.9,70,4,10,"partial flow",27,1500,2580,"-","2 x DN 65",1054,"vertical","no","yes","butyl","yes","azote/stikstof","vert/groen",7320705,"Refix DT 60 - 3000",null,null,0,1,1,"yes",1,1,1,1,0]
[0,"Reflex","Refix DT 3000 (Duo DN 80) (10)",3000,2700,0.9,70,4,10,"partial flow",36,1500,2530,"-","2 x DN 80",1057,"vertical","no","yes","butyl","yes","azote/stikstof","vert/groen",7337905,"Refix DT 60 - 3000",null,null,0,1,1,"yes",1,1,1,1,0]
[0,"Reflex","Refix DT 3000 (Duo DN 100) (10)",3000,2700,0.9,70,4,10,"partial flow",56,1500,2530,"-","2 x DN 100",1057,"vertical","no","yes","butyl","yes","azote/stikstof","vert/groen",7338005,"Refix DT 60 - 3000",null,null,0,1,1,"yes",1,1,1,1,0]
[0,"Reflex","Refix DT 80 (1 1/4\") (16)",80,60,0.75,70,4,16,"partial flow",7.2,480,750,"2 x Rp 1 1/4\"","-",27.8,"vertical","no","yes","butyl","yes","azote/stikstof","vert/groen",7316005,"Refix DT 80 - 3000",null,null,{"$f":"IF(AND($C$2>8,$C$2<=D209),1,0)","v":0},1,1,"yes",1,1,1,1,0]
[0,"Reflex","Refix DT 80 (Duo DN 50) (16)",80,60,0.75,70,4,16,"partial flow",15,480,750,"-","2 x DN 50",33,"vertical","no","yes","butyl","yes","azote/stikstof","vert/groen",7370000,"Refix DT 80 - 3000",null,null,{"$f":"IF(AND($C$2>8,$C$2<=D210),1,0)","v":0},1,1,"yes",1,1,1,1,0]
[0,"Reflex","Refix DT 80 (Duo DN 65) (16)",80,60,0.75,70,4,16,"partial flow",27,480,750,"-","2 x DN 65",34,"vertical","no","yes","butyl","yes","azote/stikstof","vert/groen",7310306,"Refix DT 80 - 3000",null,null,{"$f":"IF(AND($C$2>8,$C$2<=D211),1,0)","v":0},1,1,"yes",1,1,1,1,0]
[0,"Reflex","Refix DT 80 (Duo DN 80) (16)",80,60,0.75,70,4,16,"partial flow",36,480,750,"-","2 x DN 80",36,"vertical","no","yes","butyl","yes","azote/stikstof","vert/groen",7310307,"Refix DT 80 - 3000",null,null,{"$f":"IF(AND($C$2>8,$C$2<=D212),1,0)","v":0},1,1,"yes",1,1,1,1,0]
[0,"Reflex","Refix DT 100 (1 1/4\") (16)",100,75,0.75,70,4,16,"partial flow",7.2,480,834,"2 x Rp 1 1/4\"","-",29.9,"vertical","no","yes","butyl","yes","azote/stikstof","vert/groen",7365408,"Refix DT 80 - 3000",null,null,{"$f":"IF(AND($C$2>D209,$C$2<=D213),1,0)","v":0},1,1,"yes",1,1,1,1,0]
[0,"Reflex","Refix DT 100 (Duo DN 50) (16)",100,75,0.75,70,4,16,"partial flow",15,480,834,"-","2 x DN 50",35,"vertical","no","yes","butyl","yes","azote/stikstof","vert/groen",7370100,"Refix DT 80 - 3000",null,null,0,1,1,"yes",1,1,1,1,0]
[0,"Reflex","Refix DT 100 (Duo DN 65) (16)",100,75,0.75,70,4,16,"partial flow",27,480,834,"-","2 x DN 65",36,"vertical","no","yes","butyl","yes","azote/stikstof","vert/groen",7370101,"Refix DT 80 - 3000",null,null,0,1,1,"yes",1,1,1,1,0]
[0,"Reflex","Refix DT 100 (Duo DN 80) (16)",100,75,0.75,70,4,16,"partial flow",36,480,834,"-","2 x DN 80",38,"vertical","no","yes","butyl","yes","azote/stikstof","vert/groen",7370102,"Refix DT 80 - 3000",null,null,0,1,1,"yes",1,1,1,1,0]
[0,"Reflex","Refix DT 200 (1 1/4\") (16)",200,150,0.75,70,4,16,"partial flow",7.2,634,973,"2 x Rp 1 1/4\"","-",55,"vertical","no","yes","butyl","yes","azote/stikstof","vert/groen",7365108,"Refix DT 80 - 3000",null,null,0,1,1,"yes",1,1,1,1,0]
[0,"Reflex","Refix DT 200 (Duo DN 50) (16)",200,150,0.75,70,4,16,"partial flow",15,634,973,"-","2 x DN 50",61,"vertical","no","yes","butyl","yes","azote/stikstof","vert/groen",7370200,"Refix DT 80 - 3000",null,null,0,1,1,"yes",1,1,1,1,0]
[0,"Reflex","Refix DT 200 (Duo DN 65) (16)",200,150,0.75,70,4,16,"partial flow",27,634,973,"-","2 x DN 65",62,"vertical","no","yes","butyl","yes","azote/stikstof","vert/groen",7370205,"Refix DT 80 - 3000",null,null,0,1,1,"yes",1,1,1,1,0]
[0,"Reflex","Refix DT 200 (Duo DN 80) (16)",200,150,0.75,70,4,16,"partial flow",36,634,973,"-","2 x DN 80",65,"vertical","no","yes","butyl","yes","azote/stikstof","vert/groen",7370206,"Refix DT 80 - 3000",null,null,0,1,1,"yes",1,1,1,1,0]
[0,"Reflex","Refix DT 300 (1 1/4\") (16)",300,225,0.75,70,4,16,"partial flow",7.2,634,1273,"2 x Rp 1 1/4\"","-",64,"vertical","no","yes","butyl","yes","azote/stikstof","vert/groen",7319205,"Refix DT 80 - 3000",null,null,0,1,1,"yes",1,1,1,1,0]
[0,"Reflex","Refix DT 300 (Duo DN 50) (16)",300,225,0.75,70,4,16,"partial flow",15,634,1273,"-","2 x DN 50",70,"vertical","no","yes","butyl","yes","azote/stikstof","vert/groen",7370300,"Refix DT 80 - 3000",null,null,0,1,1,"yes",1,1,1,1,0]
[0,"Reflex","Refix DT 300 (Duo DN 65) (16)",300,225,0.75,70,4,16,"partial flow",27,634,1273,"-","2 x DN 65",71,"vertical","no","yes","butyl","yes","azote/stikstof","vert/groen",7314205,"Refix DT 80 - 3000",null,null,0,1,1,"yes",1,1,1,1,0]
[0,"Reflex","Refix DT 300 (Duo DN 80) (16)",300,225,0.75,70,4,16,"partial flow",36,634,1273,"-","2 x DN 80",74,"vertical","no","yes","butyl","yes","azote/stikstof","vert/groen",7314206,"Refix DT 80 - 3000",null,null,0,1,1,"yes",1,1,1,1,0]
[0,"Reflex","Refix DT 400 (Duo DN 50) (16)",400,300,0.75,70,4,16,"partial flow",15,740,1394,"-","2 x DN 50",115,"vertical","no","yes","butyl","yes","azote/stikstof","vert/groen",7370400,"Refix DT 80 - 3000",null,null,{"$f":"IF(AND($C$2>D222,$C$2<=D225),1,0)","v":0},1,1,"yes",1,1,1,1,0]
[0,"Reflex","Refix DT 400 (Duo DN 65) (16)",400,300,0.75,70,4,16,"partial flow",27,740,1394,"-","2 x DN 65",121,"vertical","no","yes","butyl","yes","azote/stikstof","vert/groen",7339006,"Refix DT 80 - 3000",null,null,0,1,1,"yes",1,1,1,1,0]
[0,"Reflex","Refix DT 400 (Duo DN 80) (16)",400,300,0.75,70,4,16,"partial flow",36,740,1394,"-","2 x DN 80",124,"vertical","no","yes","butyl","yes","azote/stikstof","vert/groen",7339005,"Refix DT 80 - 3000",null,null,0,1,1,"yes",1,1,1,1,0]
[0,"Reflex","Refix DT 500 (Duo DN 50) (16)",500,375,0.75,70,4,16,"partial flow",15,740,1615,"-","2 x DN 50",136,"vertical","no","yes","butyl","yes","azote/stikstof","vert/groen",7370500,"Refix DT 80 - 3000",null,null,0,1,1,"yes",1,1,1,1,0]
[0,"Reflex","Refix DT 500 (Duo DN 65) (16)",500,375,0.75,70,4,16,"partial flow",27,740,1615,"-","2 x DN 65",137,"vertical","no","yes","butyl","yes","azote/stikstof","vert/groen",7370507,"Refix DT 80 - 3000",null,null,0,1,1,"yes",1,1,1,1,0]
[0,"Reflex","Refix DT 500 (Duo DN 80) (16)",500,375,0.75,70,4,16,"partial flow",36,740,1615,"-","2 x DN 80",140,"vertical","no","yes","butyl","yes","azote/stikstof","vert/groen",7370505,"Refix DT 80 - 3000",null,null,0,1,1,"yes",1,1,1,1,0]
[0,"Reflex","Refix DT 600 (Duo DN 50) (16)",600,450,0.75,70,4,16,"partial flow",15,740,1859,"-","2 x DN 50",174,"vertical","no","yes","butyl","yes","azote/stikstof","vert/groen",7370600,"Refix DT 80 - 3000",null,null,0,1,1,"yes",1,1,1,1,0]
[0,"Reflex","Refix DT 600 (Duo DN 65) (16)",600,450,0.75,70,4,16,"partial flow",27,740,1859,"-","2 x DN 65",175,"vertical","no","yes","butyl","yes","azote/stikstof","vert/groen",7339105,"Refix DT 80 - 3000",null,null,0,1,1,"yes",1,1,1,1,0]
[0,"Reflex","Refix DT 600 (Duo DN 80) (16)",600,450,0.75,70,4,16,"partial flow",36,740,1859,"-","2 x DN 80",178,"vertical","no","yes","butyl","yes","azote/stikstof","vert/groen",7339205,"Refix DT 80 - 3000",null,null,0,1,1,"yes",1,1,1,1,0]
[0,"Reflex","Refix DT 800 (Duo DN 50) (16)",800,600,0.75,70,4,16,"partial flow",15,740,2324,"-","2 x DN 50",224,"vertical","no","yes","butyl","yes","azote/stikstof","vert/groen",7370700,"Refix DT 80 - 3000",null,null,0,1,1,"yes",1,1,1,1,0]
[0,"Reflex","Refix DT 800 (Duo DN 65) (16)",800,600,0.75,70,4,16,"partial flow",27,740,2324,"-","2 x DN 65",225,"vertical","no","yes","butyl","yes","azote/stikstof","vert/groen",7339305,"Refix DT 80 - 3000",null,null,0,1,1,"yes",1,1,1,1,0]
[0,"Reflex","Refix DT 800 (Duo DN 80) (16)",800,600,0.75,70,4,16,"partial flow",36,740,2324,"-","2 x DN 80",228,"vertical","no","yes","butyl","yes","azote/stikstof","vert/groen",7339406,"Refix DT 80 - 3000",null,null,0,1,1,"yes",1,1,1,1,0]
[0,"Reflex","Refix DT 1000 (Duo DN 50) (16)",1000,750,0.75,70,4,16,"partial flow",15,740,2804,"-","2 x DN 50",275,"vertical","no","yes","butyl","yes","azote/stikstof","vert/groen",7370800,"Refix DT 80 - 3000",null,null,0,1,1,"yes",1,1,1,1,0]
[0,"Reflex","Refix DT 1000 (Duo DN 65) (16)",1000,750,0.75,70,4,16,"partial flow",27,740,2804,"-","2 x DN 65",276,"vertical","no","yes","butyl","yes","azote/stikstof","vert/groen",7339505,"Refix DT 80 - 3000",null,null,0,1,1,"yes",1,1,1,1,0]
[0,"Reflex","Refix DT 1000 (Duo DN 80) (16)",1000,750,0.75,70,4,16,"partial flow",36,740,2804,"-","2 x DN 80",279,"vertical","no","yes","butyl","yes","azote/stikstof","vert/groen",7339605,"Refix DT 80 - 3000",null,null,0,1,1,"yes",1,1,1,1,0]
[0,"Reflex","Refix DT 1000 (Duo DN 65)* (16)",1000,900,0.9,70,4,16,"partial flow",27,1000,2001,"-","2 x DN 65",488,"vertical","no","yes","butyl","yes","azote/stikstof","vert/groen",7320205,"Refix DT 80 - 3000",null,null,{"$f":"IF(AND($C$2>D235,$C$2<=D240),1,0)","v":0},1,1,"yes",1,1,1,1,0]
[0,"Reflex","Refix DT 1000 (Duo DN 80)* (16)",1000,900,0.9,70,4,16,"partial flow",36,1000,2001,"-","2 x DN 80",488,"vertical","no","yes","butyl","yes","azote/stikstof","vert/groen",7339705,"Refix DT 80 - 3000",null,null,{"$f":"IF(AND($C$2>D236,$C$2<=D241),1,0)","v":0},1,1,"yes",1,1,1,1,0]
[0,"Reflex","Refix DT 1000 (Duo DN 100) (16)",1000,900,0.9,70,4,16,"partial flow",56,1000,2001,"-","2 x DN 100",488,"vertical","no","yes","butyl","yes","azote/stikstof","vert/groen",7339805,"Refix DT 80 - 3000",null,null,{"$f":"IF(AND($C$2>D236,$C$2<=D242),1,0)","v":0},1,1,"yes",1,1,1,1,0]
[0,"Reflex","Refix DT 1500 (Duo DN 65) (16)",1500,1350,0.9,70,4,16,"partial flow",27,1200,2220,"-","2 x DN 65",630,"vertical","no","yes","butyl","yes","azote/stikstof","vert/groen",7320405,"Refix DT 80 - 3000",null,null,{"$f":"IF(AND($C$2>D240,$C$2<=D243),1,0)","v":0},1,1,"yes",1,1,1,1,0]
[0,"Reflex","Refix DT 1500 (Duo DN 80) (16)",1500,1350,0.9,70,4,16,"partial flow",36,1200,2220,"-","2 x DN 80",630,"vertical","no","yes","butyl","yes","azote/stikstof","vert/groen",7339905,"Refix DT 80 - 3000",null,null,0,1,1,"yes",1,1,1,1,0]
[0,"Reflex","Refix DT 1500 (Duo DN 100) (16)",1500,1350,0.9,70,4,16,"partial flow",56,1200,2220,"-","2 x DN 100",630,"vertical","no","yes","butyl","yes","azote/stikstof","vert/groen",7340005,"Refix DT 80 - 3000",null,null,0,1,1,"yes",1,1,1,1,0]
[0,"Reflex","Refix DT 2000 (Duo DN 65) (16)",2000,1800,0.9,70,4,16,"partial flow",27,1200,2480,"-","2 x DN 65",850.5,"vertical","no","yes","butyl","yes","azote/stikstof","vert/groen",7320605,"Refix DT 80 - 3000",null,null,0,1,1,"yes",1,1,1,1,0]
[0,"Reflex","Refix DT 2000 (Duo DN 80) (16)",2000,1800,0.9,70,4,16,"partial flow",36,1200,2480,"-","2 x DN 80",850.5,"vertical","no","yes","butyl","yes","azote/stikstof","vert/groen",7340105,"Refix DT 80 - 3000",null,null,0,1,1,"yes",1,1,1,1,0]
[0,"Reflex","Refix DT 2000 (Duo DN 100) (16)",2000,1800,0.9,70,4,16,"partial flow",56,1200,2480,"-","2 x DN 100",850.5,"vertical","no","yes","butyl","yes","azote/stikstof","vert/groen",7340205,"Refix DT 80 - 3000",null,null,0,1,1,"yes",1,1,1,1,0]
[0,"Reflex","Refix DT 3000 (Duo DN 65) (16)",3000,2700,0.9,70,4,16,"partial flow",27,1500,2580,"-","2 x DN 65",1240,"vertical","no","yes","butyl","yes","azote/stikstof","vert/groen",7320805,"Refix DT 80 - 3000",null,null,0,1,1,"yes",1,1,1,1,0]
[0,"Reflex","Refix DT 3000 (Duo DN 80) (16)",3000,2700,0.9,70,4,16,"partial flow",36,1500,2580,"-","2 x DN 80",1240,"vertical","no","yes","butyl","yes","azote/stikstof","vert/groen",7340305,"Refix DT 80 - 3000",null,null,0,1,1,"yes",1,1,1,1,0]
[0,"Reflex","Refix DT 3000 (Duo DN 100) (16)",3000,2700,0.9,70,4,16,"partial flow",56,1500,2580,"-","2 x DN 100",1200,"vertical","no","yes","butyl","yes","azote/stikstof","vert/groen",7340405,"Refix DT 80 - 3000",null,null,0,1,1,"yes",1,1,1,1,0]
[0,"Reflex","Refix C-DE 8",8,6.4,0.8,70,4,10,"no","/",280,296,"G 1/2\"","-",3.8,"vertical","yes","no","butyl","no","azote/stikstof","bleu/blauw",7270900,"Refix C-DE 8 - 80",null,null,{"$f":"IF(AND($C$2>0,$C$2<=D252),1,0)","v":0},1,1,"no",1,1,1,1,0]
[0,"Reflex","Refix C-DE 12",12,9.6,0.8,70,4,10,"no","/",354,370,"G 1/2\"","-",5.2,"vertical","yes","no","butyl","no","azote/stikstof","bleu/blauw",7270910,"Refix C-DE 8 - 80",null,null,{"$f":"IF(AND($C$2>D252,$C$2<=D253),1,0)","v":0},1,1,"no",1,1,1,1,0]
[0,"Reflex","Refix C-DE 18",18,14.4,{"$f":"ROUND(E254/D254,2)","v":0.8},70,4,10,"no","/",356,370,"G 3/4\"","-",5.7,"vertical","yes","no","butyl","no","azote/stikstof","bleu/blauw",7270920,"Refix C-DE 8 - 80",null,null,0,1,1,"no",1,1,1,1,0]
[0,"Reflex","Refix C-DE 25",25,20,0.8,70,4,10,"no","/",409,427,"G 3/4\"","-",8.3000000000000007,"vertical","yes","no","butyl","no","azote/stikstof","bleu/blauw",7270930,"Refix C-DE 8 - 80",null,null,0,1,1,"no",1,1,1,1,0]
[0,"Reflex","Refix C-DE 35",35,28,0.8,70,4,10,"no","/",480,465,"G 3/4\"","-",13,"vertical","yes","no","butyl","no","azote/stikstof","bleu/blauw",7270940,"Refix C-DE 8 - 80",null,null,0,1,1,"no",1,1,1,1,0]
[0,"Reflex","Refix C-DE 50",50,40,0.8,70,4,10,"no","/",480,465,"G 3/4\"","-",15.4,"vertical","yes","no","butyl","no","azote/stikstof","bleu/blauw",7270950,"Refix C-DE 8 - 80",null,null,0,1,1,"no",1,1,1,1,0]
[0,"Reflex","Refix C-DE 80",80,64,0.8,70,4,10,"no","/",634,621,"G 3/4\"","-",22.4,"vertical","yes","no","butyl","no","azote/stikstof","bleu/blauw",7270960,"Refix C-DE 8 - 80",null,null,0,1,1,"no",1,1,1,1,0]
[0,"Reflex","Refix DE 2 (10)",2,1.6,0.8,70,4,10,"no","/",132,260,"G 3/4\"","-",1,"vertical","no","no","butyl","no","azote/stikstof","bleu/blauw",7200300,"Refix DE 2 - 5000",null,null,{"$f":"IF(AND($C$2>0,$C$2<=D259),1,0)","v":0},1,1,"no",1,1,1,1,0]
[0,"Reflex","Refix DE 8 (10)",8,6,0.75,70,4,10,"no","/",206,332,"G 3/4\"","-",1.8,"vertical","no","no","butyl","no","azote/stikstof","bleu/blauw",7301000,"Refix DE 2 - 5000",null,null,{"$f":"IF(AND($C$2>D259,$C$2<=D260),1,0)","v":0},1,1,"no",1,1,1,1,0]
[0,"Reflex","Refix DE 12 (10)",12,9,0.75,70,4,10,"no","/",280,310,"G 3/4\"","-",2.4,"vertical","no","no","butyl","no","azote/stikstof","bleu/blauw",7302000,"Refix DE 2 - 5000",null,null,0,1,1,"no",1,1,1,1,0]
[0,"Reflex","Refix DE 18 (10)",18,13.5,0.75,70,4,10,"no","/",280,407,"G 3/4\"","-",3.2,"vertical","no","no","butyl","no","azote/stikstof","bleu/blauw",7303000,"Refix DE 2 - 5000",null,null,0,1,1,"no",1,1,1,1,0]
[0,"Reflex","Refix DE 25 (10)",25,18.7,{"$f":"ROUND(E263/D263,2)","v":0.75},70,4,10,"no","/",280,518,"G 3/4\"","-",3.8,"vertical","no","no","butyl","no","azote/stikstof","bleu/blauw",7304000,"Refix DE 2 - 5000",null,null,0,1,1,"no",1,1,1,1,0]
[0,"Reflex","Refix DE 33 (10)",33,23,0.7,70,4,10,"no","/",354,457,"G 3/4\"","-",5.7,"vertical","yes","no","butyl","no","azote/stikstof","bleu/blauw",7303900,"Refix DE 2 - 5000",null,null,0,{"$f":"IF(G264>=$D$2>0,1,0)","v":1},{"$f":"IF(I264>=$E$2*1.2>0,1,0)","v":1},{"$f":"IF(J264=\"no\",\"no\",\"yes\")","v":"no"},1,{"$f":"IF(OR(($R$2=Q264),($R$2=\"\")),1,0)","v":1},{"$f":"IF(OR(($U$2=U264),($U$2=\"\")),1,0)","v":1},{"$f":"IF(OR(($W$2=B264),($W$2=\"\")),1,0)","v":1},0]
[{"$f":"AJ265","v":0},"Reflex","Refix DE 33* (10)",33,23,0.7,70,4,10,"no","/",354,520,"G 3/4\"","-",6.5,"vertical","yes","no","butyl","yes","azote/stikstof","bleu/blauw",7305500,"Refix DE 2 - 5000",null,null,0,1,1,"no",{"$f":"IF(OR(($O$2=AE265),($O$2=\"\")),1,0)","v":1},1,1,1,{"$f":"AB265*AC265*AD265*AF265*AG265*AH265*AI265","v":0}]
[0,"Reflex","Refix DE 50 (10)",50,40,0.8,70,4,10,"no","/",409,604,"G 1\"","-",9.5,"vertical","no","yes","butyl","yes","azote/stikstof","bleu/blauw",7306005,"Refix DE 2 - 5000",null,null,0,1,1,"no",1,1,1,1,0]
[0,"Reflex","Refix DE 60 (10)",60,48,0.8,70,4,10,"no","/",409,734,"G 1\"","-",11.2,"vertical","no","yes","butyl","yes","azote/stikstof","bleu/blauw",7306400,"Refix DE 2 - 5000",null,null,0,1,1,"no",1,1,1,1,0]
[0,"Reflex","Refix DE 80 (10)",80,64,0.8,70,4,10,"no","/",480,737,"G 1\"","-",14,"vertical","no","yes","butyl","yes","azote/stikstof","bleu/blauw",7306500,"Refix DE 2 - 5000",null,null,0,1,1,"no",1,1,1,1,0]
[0,"Reflex","Refix DE 100 (10)",100,80,0.8,70,4,10,"no","/",480,852,"G 1\"","-",16,"vertical","no","yes","butyl","yes","azote/stikstof","bleu/blauw",7306600,"Refix DE 2 - 5000",null,null,0,1,1,"no",1,1,1,1,0]
[0,"Reflex","Refix DE 200 (10)",200,160,0.8,70,4,10,"no","/",634,967,"G 1 1/4\"","-",36.5,"vertical","no","yes","butyl","yes","azote/stikstof","bleu/blauw",7306700,"Refix DE 2 - 5000",null,null,0,1,1,"no",1,1,1,1,0]
[0,"Reflex","Refix DE 300 (10)",300,240,0.8,70,4,10,"no","/",634,1267,"G 1 1/4\"","-",41.6,"vertical","no","yes","butyl","yes","azote/stikstof","bleu/blauw",7306800,"Refix DE 2 - 5000",null,null,0,1,1,"no",1,1,1,1,0]
[0,"Reflex","Refix DE 400 (10)",400,320,0.8,70,4,10,"no","/",740,1245,"G 1 1/4\"","-",74,"vertical","no","yes","butyl","yes","azote/stikstof","bleu/blauw",7306850,"Refix DE 2 - 5000",null,null,0,1,1,"no",1,1,1,1,0]
[0,"Reflex","Refix DE 500 (10)",500,400,0.8,70,4,10,"no","/",740,1475,"G 1 1/4\"","-",106,"vertical","no","yes","butyl","yes","azote/stikstof","bleu/blauw",7306900,"Refix DE 2 - 5000",null,null,0,1,1,"no",1,1,1,1,0]
[0,"Reflex","Refix DE 600 (10)",600,480,0.8,70,4,10,"no","/",740,1859,"G 1 1/2\"","-",128,"vertical","no","yes","butyl","yes","azote/stikstof","bleu/blauw",7306950,"Refix DE 2 - 5000",null,null,0,1,1,"no",1,1,1,1,0]
[0,"Reflex","Refix DE 800 (10)",800,640,0.8,70,4,10,"no","/",740,2324,"G 1 1/2\"","-",176,"vertical","no","yes","butyl","yes","azote/stikstof","bleu/blauw",7306960,"Refix DE 2 - 5000",null,null,0,1,1,"no",1,1,1,1,0]
[0,"Reflex","Refix DE 1000 (10)",1000,800,0.8,70,4,10,"no","/",740,2804,"G 1 1/2\"","-",210,"vertical","no","yes","butyl","yes","azote/stikstof","bleu/blauw",7306970,"Refix DE 2 - 5000",null,null,0,1,1,"no",1,1,1,1,0]
[0,"Reflex","Refix DE 1000* (10)",1000,800,0.8,70,4,10,"no","/",1000,2001,"-","DN 65",427,"vertical","no","yes","butyl","yes","azote/stikstof","bleu/blauw",7311405,"Refix DE 2 - 5000",null,null,0,1,1,"no",1,1,1,1,0]
[0,"Reflex","Refix DE 1500 (10)",1500,1200,0.8,70,4,10,"no","/",1200,1991,"-","DN 65",542,"vertical","no","yes","butyl","yes","azote/stikstof","bleu/blauw",7311605,"Refix DE 2 - 5000",null,null,0,1,1,"no",1,1,1,1,0]
[0,"Reflex","Refix DE 2000 (10)",2000,1600,0.8,70,4,10,"no","/",1200,2451,"-","DN 65",717,"vertical","no","yes","butyl","yes","azote/stikstof","bleu/blauw",7311705,"Refix DE 2 - 5000",null,null,0,1,1,"no",1,1,1,1,0]
[0,"Reflex","Refix DE 3000 (10)",3000,2400,0.8,70,4,10,"no","/",1500,2531,"-","DN 65",962,"vertical","no","yes","butyl","yes","azote/stikstof","bleu/blauw",7311805,"Refix DE 2 - 5000",null,null,0,1,1,"no",1,1,1,1,0]
[0,"Reflex","Refix DE 4000 (10)",4000,3600,0.9,70,4,10,"no","/",1500,3080,"-","DN 65",1132,"vertical","no","yes","butyl","yes","azote/stikstof","bleu/blauw",7354000,"Refix DE 2 - 5000",null,null,0,1,1,"no",1,1,1,1,0]
[0,"Reflex","Refix DE 5000 (10)",5000,4500,0.9,70,4,10,"no","/",1500,3645,"-","DN 65",1292,"vertical","no","yes","butyl","yes","azote/stikstof","bleu/blauw",7354200,"Refix DE 2 - 5000",null,null,0,1,1,"no",1,1,1,1,0]
[0,"Reflex","Refix DE 8 (16)",8,6,0.75,70,4,16,"no","/",206,337,"G 3/4\"","-",2.8,"vertical","no","no","butyl","no","azote/stikstof","bleu/blauw",7301006,"Refix DE 8 - 5000",null,null,{"$f":"IF(AND($C$2>0,$C$2<=D283),1,0)","v":0},1,1,"no",1,1,1,1,0]
[0,"Reflex","Refix DE 12 (16)",12,9,0.75,70,4,16,"no","/",280,310,"G 3/4\"","-",3.5,"vertical","no","no","butyl","no","azote/stikstof","bleu/blauw",7302105,"Refix DE 8 - 5000",null,null,{"$f":"IF(AND($C$2>D283,$C$2<=D284),1,0)","v":0},1,1,"no",1,1,1,1,0]
[0,"Reflex","Refix DE 25 (16)",25,18.7,0.75,70,4,16,"no","/",280,518,"G 3/4\"","-",5.8,"vertical","no","no","butyl","no","azote/stikstof","bleu/blauw",7304015,"Refix DE 8 - 5000",null,null,0,1,1,"no",1,1,1,1,0]
[0,"Reflex","Refix DE 80 (16)",80,60,0.75,70,4,16,"no","/",480,744,"G 1\"","-",18,"vertical","no","yes","butyl","yes","azote/stikstof","bleu/blauw",7348600,"Refix DE 8 - 5000",null,null,0,1,1,"no",1,1,1,1,0]
[0,"Reflex","Refix DE 100 (16)",100,75,0.75,70,4,16,"no","/",480,849,"G 1\"","-",21,"vertical","no","yes","butyl","yes","azote/stikstof","bleu/blauw",7348610,"Refix DE 8 - 5000",null,null,0,1,1,"no",1,1,1,1,0]
[0,"Reflex","Refix DE 200 (16)",200,150,0.75,70,4,16,"no","/",634,967,"G 1 1/4\"","-",57,"vertical","no","yes","butyl","yes","azote/stikstof","bleu/blauw",7348620,"Refix DE 8 - 5000",null,null,0,1,1,"no",1,1,1,1,0]
[0,"Reflex","Refix DE 300 (16)",300,225,0.75,70,4,16,"no","/",634,1267,"G 1 1/4\"","-",66,"vertical","no","yes","butyl","yes","azote/stikstof","bleu/blauw",7348630,"Refix DE 8 - 5000",null,null,0,1,1,"no",1,1,1,1,0]
[0,"Reflex","Refix DE 400 (16)",400,300,0.75,70,4,16,"no","/",740,1394,"G 1 1/2\"","-",118,"vertical","no","yes","butyl","yes","azote/stikstof","bleu/blauw",7348640,"Refix DE 8 - 5000",null,null,0,1,1,"no",1,1,1,1,0]
[0,"Reflex","Refix DE 500 (16)",500,375,0.75,70,4,16,"no","/",740,1614,"G 1 1/2\"","-",133,"vertical","no","yes","butyl","yes","azote/stikstof","bleu/blauw",7348650,"Refix DE 8 - 5000",null,null,0,1,1,"no",1,1,1,1,0]
[0,"Reflex","Refix DE 600 (16)",600,450,0.75,70,4,16,"no","/",740,1859,"G 1 1/2\"","-",158,"vertical","no","yes","butyl","yes","azote/stikstof","bleu/blauw",7348660,"Refix DE 8 - 5000",null,null,0,1,1,"no",1,1,1,1,0]
[0,"Reflex","Refix DE 800 (16)",800,600,0.75,70,4,16,"no","/",740,2324,"G 1 1/2\"","-",202,"vertical","no","yes","butyl","yes","azote/stikstof","bleu/blauw",7348670,"Refix DE 8 - 5000",null,null,0,1,1,"no",1,1,1,1,0]
[0,"Reflex","Refix DE 1000 (16)",1000,800,0.8,70,4,16,"no","/",740,2804,"G 1 1/2\"","-",240,"vertical","no","yes","butyl","yes","azote/stikstof","bleu/blauw",7348680,"Refix DE 8 - 5000",null,null,0,1,1,"no",1,1,1,1,0]
[0,"Reflex","Refix DE 1000* (16)",1000,800,0.8,70,4,16,"no","/",1000,2001,"-","DN 65",530,"vertical","no","yes","butyl","yes","azote/stikstof","bleu/blauw",7312805,"Refix DE 8 - 5000",null,null,0,1,1,"no",1,1,1,1,0]
[0,"Reflex","Refix DE 1500 (16)",1500,1200,0.8,70,4,16,"no","/",1200,1991,"-","DN 65",685,"vertical","no","yes","butyl","yes","azote/stikstof","bleu/blauw",7312905,"Refix DE 8 - 5000",null,null,0,1,1,"no",1,1,1,1,0]
[0,"Reflex","Refix DE 2000 (16)",2000,1600,0.8,70,4,16,"no","/",1200,2451,"-","DN 65",895,"vertical","no","yes","butyl","yes","azote/stikstof","bleu/blauw",7313005,"Refix DE 8 - 5000",null,null,0,1,1,"no",1,1,1,1,0]
[0,"Reflex","Refix DE 3000 (16)",3000,2400,0.8,70,4,16,"no","/",1500,2531,"-","DN 65",1240,"vertical","no","yes","butyl","yes","azote/stikstof","bleu/blauw",7313105,"Refix DE 8 - 5000",null,null,0,1,1,"no",1,1,1,1,0]
[0,"Reflex","Refix DE 4000 (16)",4000,3600,0.9,70,4,16,"no","/",1500,3120,"-","DN 65",1442,"vertical","no","yes","butyl","yes","azote/stikstof","bleu/blauw",7354100,"Refix DE 8 - 5000",null,null,0,1,1,"no",1,1,1,1,0]
[0,"Reflex","Refix DE 5000 (16)",5000,4500,0.9,70,4,16,"no","/",1500,3655,"-","DN 65",1844,"vertical","no","yes","butyl","yes","azote/stikstof","bleu/blauw",7354300,"Refix DE 8 - 5000",null,null,0,1,1,"no",1,1,1,1,0]
[0,"Reflex","Refix DE 8 (25)",8,6,0.75,70,4,25,"no","/",206,338,"G 3/4\"","-",2.4,"vertical","no","no","butyl","no","azote/stikstof","bleu/blauw",7290100,"Refix DE 8 - 3000",null,null,{"$f":"IF(AND($C$2>0,$C$2<=D301),1,0)","v":0},1,1,"no",1,1,1,1,0]
[0,"Reflex","Refix DE 80 (25)",80,60,0.75,70,4,25,"no","/",450,942,"-","DN 50",70,"vertical","no","yes","butyl","yes","azote/stikstof","bleu/blauw",7317600,"Refix DE 8 - 3000",null,null,{"$f":"IF(AND($C$2>D301,$C$2<=D302),1,0)","v":0},1,1,"no",1,1,1,1,0]
[0,"Reflex","Refix DE 120 (25)",120,90,0.75,70,4,25,"no","/",450,1253,"-","DN 50",100,"vertical","no","yes","butyl","yes","azote/stikstof","bleu/blauw",7313700,"Refix DE 8 - 3000",null,null,0,1,1,"no",1,1,1,1,0]
[0,"Reflex","Refix DE 180 (25)",180,135,0.75,70,4,25,"no","/",450,1528,"-","DN 50",116,"vertical","no","yes","butyl","yes","azote/stikstof","bleu/blauw",7313500,"Refix DE 8 - 3000",null,null,0,1,1,"no",1,1,1,1,0]
[0,"Reflex","Refix DE 300 (25)",300,225,0.75,70,4,25,"no","/",750,1318,"-","DN 50",150,"vertical","no","yes","butyl","yes","azote/stikstof","bleu/blauw",7313800,"Refix DE 8 - 3000",null,null,0,1,1,"no",1,1,1,1,0]
[0,"Reflex","Refix DE 400 (25)",400,300,0.75,70,4,25,"no","/",750,1423,"-","DN 50",245,"vertical","no","yes","butyl","yes","azote/stikstof","bleu/blauw",7313300,"Refix DE 8 - 3000",null,null,0,1,1,"no",1,1,1,1,0]
[0,"Reflex","Refix DE 600 (25)",600,450,0.75,70,4,25,"no","/",750,1868,"-","DN 50",290,"vertical","no","yes","butyl","yes","azote/stikstof","bleu/blauw",7321500,"Refix DE 8 - 3000",null,null,0,1,1,"no",1,1,1,1,0]
[0,"Reflex","Refix DE 800 (25)",800,600,0.75,70,4,25,"no","/",750,2268,"-","DN 50",355,"vertical","no","yes","butyl","yes","azote/stikstof","bleu/blauw",7321200,"Refix DE 8 - 3000",null,null,0,1,1,"no",1,1,1,1,0]
[0,"Reflex","Refix DE 1000 (25)",1000,800,0.8,70,4,25,"no","/",750,2768,"-","DN 50",245,"vertical","no","yes","butyl","yes","azote/stikstof","bleu/blauw",7321000,"Refix DE 8 - 3000",null,null,0,1,1,"no",1,1,1,1,0]
[0,"Reflex","Refix DE 1000* (25)",1000,800,0.8,70,4,25,"no","/",1000,2051,"-","DN 65",800,"vertical","no","yes","butyl","yes","azote/stikstof","bleu/blauw",7322200,"Refix DE 8 - 3000",null,null,0,1,1,"no",1,1,1,1,0]
[0,"Reflex","Refix DE 1500 (25)",1500,1200,0.8,70,4,25,"no","/",1200,2071,"-","DN 65",850,"vertical","no","yes","butyl","yes","azote/stikstof","bleu/blauw",7322100,"Refix DE 8 - 3000",null,null,0,1,1,"no",1,1,1,1,0]
[0,"Reflex","Refix DE 2000 (25)",2000,1600,0.8,70,4,25,"no","/",1200,2531,"-","DN 65",960,"vertical","no","yes","butyl","yes","azote/stikstof","bleu/blauw",7313400,"Refix DE 8 - 3000",null,null,0,1,1,"no",1,1,1,1,0]
[0,"Reflex","Refix DE 3000 (25)",3000,2400,0.8,70,4,25,"no","/",1500,2619,"-","DN 65",1550,"vertical","no","yes","butyl","yes","azote/stikstof","bleu/blauw",7345700,"Refix DE 8 - 3000",null,null,0,1,1,"no",1,1,1,1,0]
[0,"Reflex","Refix DC 25",25,22,0.88,70,2,10,"no","/",280,510,"G 1\"","-",4.8,"vertical","no","no","butyl","no","azote/stikstof","bleu/blauw",7200400,"Refix DC 25 - 600",null,null,{"$f":"IF(AND($C$2>8,$C$2<=D314),1,0)","v":0},1,1,"no",1,1,1,1,0]
[0,"Reflex","Refix DC 50",50,45,0.9,70,4,10,"no","/",409,588,"R 1\"","-",12.5,"vertical","no","yes","butyl","no","azote/stikstof","bleu/blauw",7309600,"Refix DC 25 - 600",null,null,{"$f":"IF(AND($C$2>D314,$C$2<=D315),1,0)","v":0},1,1,"no",1,1,1,1,0]
[0,"Reflex","Refix DC 80",80,72,0.9,70,4,10,"no","/",480,676,"R 1\"","-",17.5,"vertical","no","yes","butyl","no","azote/stikstof","bleu/blauw",7309700,"Refix DC 25 - 600",null,null,0,1,1,"no",1,1,1,1,0]
[0,"Reflex","Refix DC 100",100,90,0.9,70,4,10,"no","/",480,782,"R 1\"","-",21.1,"vertical","no","yes","butyl","no","azote/stikstof","bleu/blauw",7309800,"Refix DC 25 - 600",null,null,0,1,1,"no",1,1,1,1,0]
[0,"Reflex","Refix DC 140",140,126,0.9,70,4,10,"no","/",480,997,"R 1\"","-",29,"vertical","no","yes","butyl","no","azote/stikstof","bleu/blauw",7309900,"Refix DC 25 - 600",null,null,0,1,1,"no",1,1,1,1,0]
[0,"Reflex","Refix DC 200",200,180,0.9,70,4,10,"no","/",634,883,"R 1\"","-",40,"vertical","no","yes","butyl","no","azote/stikstof","bleu/blauw",7363500,"Refix DC 25 - 600",null,null,0,1,1,"no",1,1,1,1,0]
[0,"Reflex","Refix DC 300",300,270,0.9,70,4,10,"no","/",634,1184,"R 1\"","-",52,"vertical","no","yes","butyl","no","azote/stikstof","bleu/blauw",7363600,"Refix DC 25 - 600",null,null,0,1,1,"no",1,1,1,1,0]
[0,"Reflex","Refix DC 400",400,360,0.9,70,4,10,"no","/",740,1173,"R 1\"","-",78,"vertical","no","yes","butyl","no","azote/stikstof","bleu/blauw",7363700,"Refix DC 25 - 600",null,null,0,1,1,"no",1,1,1,1,0]
[0,"Reflex","Refix DC 500",500,450,0.9,70,4,10,"no","/",740,1392,"R 1\"","-",80,"vertical","no","yes","butyl","no","azote/stikstof","bleu/blauw",7363800,"Refix DC 25 - 600",null,null,0,1,1,"no",1,1,1,1,0]
[0,"Reflex","Refix DC 600",600,540,0.9,70,4,10,"no","/",740,1629,"R 1\"","-",103,"vertical","no","yes","butyl","no","azote/stikstof","bleu/blauw",7363900,"Refix DC 25 - 600",null,null,0,1,1,"no",1,1,1,1,0]
[0,"Reflex","Refix HW 25",25,20,0.8,70,2,10,"no","/",280,301,"G 3/4\"","-",5.5,"horizontal","no","yes","butyl","no","azote/stikstof","bleu/blauw",7200310,"Refix HW 25 - 100",null,null,{"$f":"IF(AND($C$2>8,$C$2<=D324),1,0)","v":0},1,1,"no",1,1,1,1,0]
[0,"Reflex","Refix HW 50",50,45,0.9,70,2,10,"no","/",409,432,"G 1\"","-",15,"horizontal","no","yes","butyl","yes","azote/stikstof","bleu/blauw",7200320,"Refix HW 25 - 100",null,null,{"$f":"IF(AND($C$2>D324,$C$2<=D325),1,0)","v":0},1,1,"no",1,1,1,1,0]
[0,"Reflex","Refix HW 60",60,50,0.83,70,2,10,"no","/",409,432,"G 1\"","-",16,"horizontal","no","yes","butyl","yes","azote/stikstof","bleu/blauw",7200330,"Refix HW 25 - 100",null,null,{"$f":"IF(AND($C$2>D325,$C$2<=D326),1,0)","v":0},1,1,"no",1,1,1,1,0]
[0,"Reflex","Refix HW 80",80,72,{"$f":"ROUND(E327/D327,2)","v":0.9},70,2,10,"no","/",480,504,"G 1\"","-",17.399999999999999,"horizontal","no","yes","butyl","yes","azote/stikstof","bleu/blauw",7200340,"Refix HW 25 - 100",null,null,{"$f":"IF(AND($C$2>D326,$C$2<=D327),1,0)","v":0},1,1,"no",1,1,1,1,0]
[0,"Reflex","Refix HW 100",100,90,0.9,70,2,10,"no","/",480,504,"G 1\"","-",19.399999999999999,"horizontal","no","yes","butyl","yes","azote/stikstof","bleu/blauw",7200350,"Refix HW 25 - 100",null,null,{"$f":"IF(AND($C$2>D327,$C$2<=D328),1,0)","v":0},{"$f":"IF(G328>=$D$2>0,1,0)","v":1},{"$f":"IF(I328>=$E$2*1.2>0,1,0)","v":1},{"$f":"IF(J328=\"no\",\"no\",\"yes\")","v":"no"},1,{"$f":"IF(OR(($R$2=Q328),($R$2=\"\")),1,0)","v":1},{"$f":"IF(OR(($U$2=U328),($U$2=\"\")),1,0)","v":1},{"$f":"IF(OR(($W$2=B328),($W$2=\"\")),1,0)","v":1},0]
[{"$f":"AJ329","v":0},"Watts","22AR5N",5,"n.c.","n.c.",100,3,10,"no","/",160,304,"3/4\" M","-","n.c.","vertical","n.c.","n.c.","n.c.","yes","n.c.","blanc/wit","22AR5N","Watts 22ARN 5 - 25",null,null,{"$f":"IF(AND($C$2>0,$C$2<=D329),1,0)","v":0},1,1,"no",{"$f":"IF(OR(($O$2=AE329),($O$2=\"\")),1,0)","v":1},1,1,1,{"$f":"AB329*AC329*AD329*AF329*AG329*AH329*AI329","v":0}]
[0,"Watts","22AR8N",8,"n.c.","n.c.",100,3,10,"no","/",200,316,"3/4\" M","-","n.c.","vertical","n.c.","n.c.","n.c.","yes","n.c.","blanc/wit","22AR8N","Watts 22ARN 5 - 25",null,null,{"$f":"IF(AND($C$2>D329,$C$2<=D330),1,0)","v":0},1,1,"no",1,1,1,1,0]
[0,"Watts","22AR12N",12,"n.c.","n.c.",100,3,10,"no","/",280,295,"3/4\" M","-","n.c.","vertical","n.c.","n.c.","n.c.","yes","n.c.","blanc/wit","22AR12N","Watts 22ARN 5 - 25",null,null,{"$f":"IF(AND($C$2>D330,$C$2<=D331),1,0)","v":0},1,1,"no",1,1,1,1,0]
[0,"Watts","22AR18N",18,"n.c.","n.c.",100,3,10,"no","/",280,456,"3/4\" M","-","n.c.","vertical","n.c.","n.c.","n.c.","yes","n.c.","blanc/wit","22AR18N","Watts 22ARN 5 - 25",null,null,{"$f":"IF(AND($C$2>D331,$C$2<=D332),1,0)","v":0},1,1,"no",1,1,1,1,0]
[0,"Watts","22AR25N",24,"n.c.","n.c.",100,3,10,"no","/",280,489,"1\" M","-","n.c.","vertical","n.c.","n.c.","n.c.","yes","n.c.","blanc/wit","22AR25N","Watts 22ARN 5 - 25",null,null,{"$f":"IF(AND($C$2>D332,$C$2<=D333),1,0)","v":0},1,1,"no",1,1,1,1,0]

{"sheet":"Coef_expansion","index":7,"n_rows":20,"n_cols":10,"rows_kept":20,"cut":false,"hidden":true,"merged":[[2,1,2,6],[18,0,18,6]]}
[]
[]
["Température maximale de service","Coefficient d'expansion e (en %)",null,null,null,null,null,"Volume massique\neau pure\n","Pression de vapeur saturante\neau pure","Débit de contraction"]
["°C",0,null,null,null,null,null,"dm³/kg","bar","l.h/kW"]
[10,0,null,null,null,null,null,1.0003,0]
[20,0.14000000000000001,null,null,null,null,null,1.0017,0]
[30,0.4,null,null,null,null,null,1.0043,0]
[40,0.75,null,null,null,null,null,1.0078,0]
[50,1.18,null,null,null,null,null,1.0121,0,0.39]
[60,1.68,null,null,null,null,null,1.0170999999999999,0,0.45]
[70,2.25,null,null,null,null,null,1.0227999999999999,0,0.51]
[80,2.89,null,null,null,null,null,1.0291999999999999,0,0.56999999999999995]
[90,3.57,null,null,null,null,null,1.0361,0,0.63]
[100,4.34,null,null,null,null,null,1.0437000000000001,0.01,0.69]
[110,5.15,null,null,null,null,null,1.0519000000000001,0.43]
[120,6.02,null,null,null,null,null,1.0606,0.99]
[130,6.97,null,null,null,null,null,1.07,1.7]
[]
["Références:\nRecknagel - Genie Climatique 2007 - Tableau 1.3.1-6\nAshrae Handbook - Fundamentals (SI) 2009 - Tableau 6 page 31.7"]
["* Valeurs extrapolées"]

{"sheet":"Images","index":8,"n_rows":32,"n_cols":1,"rows_kept":32,"cut":false,"hidden":true,"merged":[]}
["Famille"]
[]
["_"]
["Airfix D 8 - 35"]
["Airfix A 8 - 80"]
["Airfix D-E 100 - 3000"]
["Airfix D-E 50 - 3000"]
["Airfix P 2 - 300"]
["Airfix P 400 - 5000"]
["Airfix P 24-H - 300-H"]
["Airfix D-E-B 1600 - 3000"]
["Airfix D-E-B 50 - 3000"]
["Aquapresso AD 8 - 80"]
["Aquapresso ADF 8 - 80"]
["Aquapresso AU 140 - 600"]
["Aquapresso AUF 140 - 600"]
["Aquapresso AUF 140 - 500"]
["Aquapresso AG 700 - 5000"]
["Aquapresso AG 300 - 5000"]
["Aquapresso AGF 700 - 5000"]
["Aquapresso AGF 300 - 5000"]
["Refix DD 2 - 33 (green)"]
["Refix DD 8 - 33 (white)"]
["Refix DT 60 - 3000"]
["Refix DT 80 - 3000"]
["Refix C-DE 8 - 80"]
["Refix DE 2 - 5000"]
["Refix DE 8 - 5000"]
["Refix DE 8 - 3000"]
["Refix DC 25 - 600"]
["Refix HW 25 - 100"]
["Watts 22ARN 5 - 25"]